Workbook

Sheet Cover
M2: Example and Worksheet Checklist
G3: Statistical Measurement Methods in Excel: Basic
N4: Reference Slides
N5: Data from Worksheets
N6: Bayes Theorem
N7: The Beta Distribution
N8: Catch and Recatch
N9: Estimating a Distribution and Mean
F13: Hubbard Decision Research
F14: 2S410 Canterbury Ct
F15: Glen Ellyn, IL 60137
F16: www.hubbardresearch.com

Sheet Reference Slides
B1: Reference Slides
B2: Mathless Table | S2: Laplace's Rule of Succession

Sheet Data
A1: Data for the Worksheets
A2: Instructions: This page contains data that is on the designated worksheets so the user can use them to see the original results or reset the worksheets after using them.
A3: Worksheet: A Simple Bayesian Illustration | G3: Population Mean Worksheet
A4: Your "prior probabiltiy" for H: | E4: P(H) | F4: 0.652 | G4: Sample Value | H4: Survey Results: Case Example (Hours spent per week)
A5: Probability of seeing D, Given H is true: | E5: P(D|H) | F5: 0.2
A6: Probability of seeing D, Given H is false: | E6: P(D|~H) | F6: 0.25 | G6: 19.60341451 | H6: 3.2
G7: 14 | H7: 5.8
G8: 29.77796994 | H8: 6.5
A9: Worksheet: A Simple Bayesian Illustration | G9: 19 | H9: 6.5
E10: H | F10: ~H | G10: 22.47266207 | H10: 7.1
A11: H = Illness is present | D11: D | E11: 55 | F11: 20 | G11: 36 | H11: 7.5
A12: D= Patient has the indicating gene | D12: ~D | E12: 30 | F12: 45 | G12: 26.24873078 | H12: 8.4
G13: 32.49631261 | H13: 8.9
G14: 17 | H14: 9
G15: 35 | H15: 9.5
A16: Worksheet: CatchRecatch | G16: 26.44677252 | H16: 10.1
A17: First sample size (i.e. the fish that were tagged) | F17: 1000 | G17: 39 | H17: 10.2
A18: The second sample size | F18: 1000 | G18: 41.5 | H18: 10.5
A19: Overlap between samples (i.e. the tagged fish that showed up in the second sample) | F19: 11 | G19: 22.85143994 | H19: 11.3
G20: 30.26941439 | H20: 12.2
G21: 34
G22: 23.50836979
G23: 22.52725565
G24: 21.82083612
G25: 28.548209

Sheet Small Bayes Ex
A1: Example: A Simple Bayesian Illustration
A2: Bayesian methods work out the probability of something given a "prior" probability and new data. The charts below show the simplest example of a Bayesian inference. Consider two urns, A and B. Each urn contains a large number of red and green marbles but the proporations of colors are different between the urns. You know the proportion of marbles in each urn but you don't know which urn is which. You try to determine the probability you are drawing from urn A by the color of a single randomly drawn marble. Urn A can be thought of as a hypothesis H being true and the draw of a red marble can be thought of as specific observed data D. You have a prior for H of P(H) and you would like to know the probability of H given additional data D, written P(H|D). This simple example applies to many practical situations by itself (medical tests, quality control, etc.) and it is also the basis of more elaborate methods shown in some of the other worksheets in this file.
A5: Urn of Mystery (Max 10 each) | E5: Bayes Shown as Sets and Subsets | T5: A Few Rules of Probability
A6: Fill in the table below and choose from pull-down to show how the probability is computed on the chart. The number of dots within the dashed borders are divided by the number of dots within the solid borders. In this example the hypothesis H is that Urn A is the urn being sampled from and D represents the data of drawing a red marble. | E6: The probability you choose in the pull-down menu to the left is illustrated in a simple 2x2 table below. The table shows four combinations of the hypothesis being true or not and the data being observed or not. Any of those probabilities can be shown as the number of dots within the dashed line rectangle divided by the total set of dots within a larger solid-line rectangle (the specific number of dots is an approximation for illustration). | T6: The following are a set of basic probability rules that can be used in any probability problem. Using several of the initial rules one can derive Bayes Theorem. Here H and D are events and ~D and ~H denote not D and not H.
A8: Your "prior probabiltiy" for H: | B8: P(H) | C8: 0.5
A9: …and "not H: | B9: P(~H) | C9: =1-C8 -> 0.5 | G9: Hypothesis True (Urn A) | M9: Hypothesis False (Urn B)
B10: Urn A | C10: Urn B | E10: Data Observed | F10: (Draw Red)
A11: Number of Red Marbles | B11: 9 | C11: 3 | T11: Probability: between impossible and inescapable
A12: Number of Green Marbles | B12: 3 | C12: 9
T13: To be or not to be…adds up to a probability of 1
B14: P(H|~D) | C14: P(D)
A15: Probability of seeing D, Given H is true: | B15: P(D|H) | C15: =B11/(B11+B12) -> 0.75 | T15: The "It depends" Rule: conditional probability
A16: …and "not D" given H is true: | B16: P(~D|H) | C16: =1-C15 -> 0.25
A17: Probability of seeing D, Given H is false: | B17: P(D|~H) | C17: =C11/(C11+C12) -> 0.25 | T17: The probability of more than one thing; the Chain Rule
A18: …and "not D" given H is false: | B18: P(~D|~H) | C18: =1-C17 -> 0.75 | E18: Data Not Observed | F18: (Draw Green)
A19: Probability of seeing D: | B19: P(D) | C19: =C15*C8+C17*C9 -> 0.5 | T19: The law of total probability
A20: …and not seeing D: | B20: P(~D) | C20: =C16*C8+C18*C9 -> 0.5
A21: Probability of H, given D: | B21: P(H|D) | C21: =C15*C8/C19 -> 0.75 | T21: Bayes Theorem
A22: ..and not H, given D: | B22: P(~H|D) | C22: =C17*C9/C19 -> 0.25
A23: Probability of H, given not D: | B23: P(H|~D) | C23: =C8*C16/C20 -> 0.25
A24: ..and not H, given not D: | B24: P(~H|~D) | C24: =1-C23 -> 0.75
C31: Random Dot Coordinates | I31: Lookup Table for Chart Lines
D32: Initial | F32: By Quadrant | I32: =SUM(J33:J44) -> 7 | K32: =OFFSET(K33,$I32-1,) -> 0 | L32: 0 | M32: 0 | N32: 0 | O32: 0 | P32: 0 | Q32: 0 | R32: 0 | S32: 0 | T32: 0 | U32: 0.02 | V32: 0.98 | W32: 0.98 | X32: 0.02 | Y32: 0.02 | Z32: 0.52 | AA32: 0.52 | AB32: 0.98 | AC32: 0.98 | AD32: 0.52
C33: 1 | D33: 0.4977074723 | E33: 0.7210216036 | F33: =IF(C33-INT((C33-1)/100)*100<=CHOOSE(INT((C33-1)/100)+1,C$11,C$12,B$11,B$12),CHOOSE(INT((C33-1)/200)+1,D33*0.46+0.52,D33*0.46+0.02),100) -> 0.7489454373 | G33: =IF(C33-INT((C33-1)/100)*100<=CHOOSE(INT((C33-1)/100)+1,C$11,C$12,B$11,B$12),CHOOSE(INT((C33-1)/100)+1,E33*0.46+0.52,E33*0.46+0.02,E33*0.46+0.52,E33*0.46+0.02),100) -> 0.8516699377 | I33: 1 | J33: =IF(B8=C$14,I33,0) -> 0 | K33: 0 | L33: 1 | M33: 1 | N33: 0 | O33: 0 | P33: 0 | Q33: 0 | R33: 1 | S33: 1 | T33: 0 | U33: 0.02 | V33: 0.48 | W33: 0.48 | X33: 0.02 | Y33: 0.02 | Z33: 0.02 | AA33: 0.02 | AB33: 0.98 | AC33: 0.98 | AD33: 0.02
C34: 2 | D34: 0.8536350963 | E34: 0.8921108831 | F34: 0.9126721443 | G34: 0.9303710062 | I34: 2 | J34: =IF(B9=C$14,I34,0) -> 0 | K34: 0 | L34: 1 | M34: 1 | N34: 0 | O34: 0 | P34: 0 | Q34: 0 | R34: 1 | S34: 1 | T34: 0 | U34: 0.52 | V34: 0.98 | W34: 0.98 | X34: 0.52 | Y34: 0.52 | Z34: 0.02 | AA34: 0.02 | AB34: 0.98 | AC34: 0.98 | AD34: 0.02
C35: 3 | D35: 0.04078860015 | E35: 0.2885215948 | F35: 0.5387627561 | G35: 0.6527199336 | I35: 3 | J35: =IF(B15=C$14,I35,0) -> 0 | K35: 0 | L35: 0.5 | M35: 0.5 | N35: 0 | O35: 0 | P35: 0 | Q35: 0 | R35: 1 | S35: 1 | T35: 0 | U35: 0.02 | V35: 0.48 | W35: 0.48 | X35: 0.02 | Y35: 0.02 | Z35: 0.52 | AA35: 0.52 | AB35: 0.98 | AC35: 0.98 | AD35: 0.52
C36: 4 | D36: 0.4121032364 | E36: 0.6136395628 | F36: 100 | G36: 100 | I36: 4 | J36: 0 | K36: 0 | L36: 0.5 | M36: 0.5 | N36: 0 | O36: 0 | P36: 0 | Q36: 0 | R36: 1 | S36: 1 | T36: 0 | U36: 0.02 | V36: 0.48 | W36: 0.48 | X36: 0.02 | Y36: 0.02 | Z36: 0.02 | AA36: 0.02 | AB36: 0.48 | AC36: 0.48 | AD36: 0.02
C37: 5 | D37: 0.7126579007 | E37: 0.4012996017 | F37: 100 | G37: 100 | I37: 5 | J37: 0 | K37: 0.5 | L37: 1 | M37: 1 | N37: 0.5 | O37: 0.5 | P37: 0 | Q37: 0 | R37: 1 | S37: 1 | T37: 0 | U37: 0.52 | V37: 0.98 | W37: 0.98 | X37: 0.52 | Y37: 0.52 | Z37: 0.52 | AA37: 0.52 | AB37: 0.98 | AC37: 0.98 | AD37: 0.52
C38: 6 | D38: 0.6795043765 | E38: 0.083484986 | F38: 100 | G38: 100 | I38: 6 | J38: 0 | K38: 0.5 | L38: 1 | M38: 1 | N38: 0.5 | O38: 0.5 | P38: 0 | Q38: 0 | R38: 1 | S38: 1 | T38: 0 | U38: 0.52 | V38: 0.98 | W38: 0.98 | X38: 0.52 | Y38: 0.52 | Z38: 0.02 | AA38: 0.02 | AB38: 0.48 | AC38: 0.48 | AD38: 0.02
C39: 7 | D39: 0.3585195596 | E39: 0.8776508942 | F39: 100 | G39: 100 | I39: 7 | J39: 7 | U39: 0.02 | V39: 0.98 | W39: 0.98 | X39: 0.02 | Y39: 0.02 | Z39: 0.52 | AA39: 0.52 | AB39: 0.98 | AC39: 0.98 | AD39: 0.52
C40: 8 | D40: 0.7635811827 | E40: 0.2006373645 | F40: 100 | G40: 100 | I40: 8 | J40: 0 | U40: 0.02 | V40: 0.98 | W40: 0.98 | X40: 0.02 | Y40: 0.02 | Z40: 0.02 | AA40: 0.02 | AB40: 0.48 | AC40: 0.48 | AD40: 0.02
C41: 9 | D41: 0.009310515556 | E41: 0.7734346385 | F41: 100 | G41: 100 | I41: 9 | J41: 0 | K41: 0 | L41: 1 | M41: 1 | N41: 0 | O41: 0 | P41: 0.5 | Q41: 0.5 | R41: 1 | S41: 1 | T41: 0.5 | U41: 0.02 | V41: 0.48 | W41: 0.48 | X41: 0.02 | Y41: 0.02 | Z41: 0.52 | AA41: 0.52 | AB41: 0.98 | AC41: 0.98 | AD41: 0.52
C42: 10 | D42: 0.2231471407 | E42: 0.5768817682 | F42: 100 | G42: 100 | I42: 10 | J42: 0 | K42: 0 | L42: 1 | M42: 1 | N42: 0 | O42: 0 | P42: 0.5 | Q42: 0.5 | R42: 1 | S42: 1 | T42: 0.5 | U42: 0.52 | V42: 0.98 | W42: 0.98 | X42: 0.52 | Y42: 0.52 | Z42: 0.52 | AA42: 0.52 | AB42: 0.98 | AC42: 0.98 | AD42: 0.52
C43: 101 | D43: 0.3588359344 | E43: 0.7924200521 | F43: 0.6850645298 | G43: 0.384513224 | I43: 11 | J43: 0 | K43: 0 | L43: 1 | M43: 1 | N43: 0 | O43: 0 | P43: 0 | Q43: 0 | R43: 0.5 | S43: 0.5 | T43: 0 | U43: 0.02 | V43: 0.48 | W43: 0.48 | X43: 0.02 | Y43: 0.02 | Z43: 0.02 | AA43: 0.02 | AB43: 0.48 | AC43: 0.48 | AD43: 0.02
C44: 102 | D44: 0.5558321132 | E44: 0.4108397967 | F44: 0.7756827721 | G44: 0.2089863065 | I44: 12 | J44: 0 | K44: 0 | L44: 1 | M44: 1 | N44: 0 | O44: 0 | P44: 0 | Q44: 0 | R44: 0.5 | S44: 0.5 | T44: 0 | U44: 0.52 | V44: 0.98 | W44: 0.98 | X44: 0.52 | Y44: 0.52 | Z44: 0.02 | AA44: 0.02 | AB44: 0.48 | AC44: 0.48 | AD44: 0.02
C45: 103 | D45: 0.7313963671 | E45: 0.08716493649 | F45: 0.8564423288 | G45: 0.06009587078
C46: 104 | D46: 0.4126751308 | E46: 0.1497459504 | F46: 0.7098305602 | G46: 0.0888831372
C47: 105 | D47: 0.1496020454 | E47: 0.2473403913 | F47: 0.5888169409 | G47: 0.13377658
C48: 106 | D48: 0.1760881757 | E48: 0.9489090469 | F48: 0.6010005608 | G48: 0.4564981616
C49: 107 | D49: 0.7961881822 | E49: 0.004960464968 | F49: 0.8862465638 | G49: 0.02228181389
C50: 108 | D50: 0.9796937122 | E50: 0.5 | F50: 0.9706591076 | G50: 0.25
C51: 109 | D51: 0.9176403116 | E51: 0.7939134205 | F51: 0.9421145433 | G51: 0.3852001734
C52: 110 | D52: 0.8749698536 | E52: 0.8903008992 | F52: 100 | G52: 100
C53: 201 | D53: 0.3940604976 | E53: 0.1542733535 | F53: 0.2012678289 | G53: 0.5909657426
C54: 202 | D54: 0.3289703304 | E54: 0.4 | F54: 0.171326352 | G54: 0.704
C55: 203 | D55: 0.9 | E55: 0.1 | F55: 0.434 | G55: 0.566
C56: 204 | D56: 0.4 | E56: 0.8 | F56: 0.204 | G56: 0.888
C57: 205 | D57: 0.1196239872 | E57: 0.6 | F57: 0.0750270341 | G57: 0.796
C58: 206 | D58: 0.05175058562 | E58: 0.4 | F58: 0.04380526938 | G58: 0.704
C59: 207 | D59: 0.4755506396 | E59: 0.04903940069 | F59: 0.2387532942 | G59: 0.5425581243
C60: 208 | D60: 0.6500436524 | E60: 0.7 | F60: 0.3190200801 | G60: 0.842
C61: 209 | D61: 0.5616551848 | E61: 0.2636396478 | F61: 0.278361385 | G61: 0.641274238
C62: 210 | D62: 0.07842892921 | E62: 0.05645503824 | F62: 100 | G62: 100
C63: 301 | D63: 0.1659524041 | E63: 0.07337634676 | F63: 0.09633810589 | G63: 0.05375311951
C64: 302 | D64: 0.7796887323 | E64: 0.1 | F64: 0.3786568169 | G64: 0.066
C65: 303 | D65: 0.9208239963 | E65: 0.6879384431 | F65: 0.4435790383 | G65: 0.3364516838
C66: 304 | D66: 0.9214301553 | E66: 0.43902244 | F66: 100 | G66: 100
C67: 305 | D67: 0.8001179835 | E67: 0.5921690818 | F67: 100 | G67: 100
C68: 306 | D68: 0.3759904105 | E68: 0.4715947349 | F68: 100 | G68: 100
C69: 307 | D69: 0.719282279 | E69: 0.3877068766 | F69: 100 | G69: 100
C70: 308 | D70: 0.4 | E70: 0.6928896738 | F70: 100 | G70: 100
C71: 309 | D71: 0.04089030843 | E71: 0.06613682395 | F71: 100 | G71: 100
C72: 310 | D72: 0.07109209728 | E72: 0.3458876963 | F72: 100 | G72: 100

Sheet Large Bayes Ws
A1: Example: A Simple Bayesian Illustration
A2: This worksheet can be used to create an example like the ones seen in the other Bayesian examples. The user should define H (hypothesis) and D (data) as well as their frequencies here. In the current example the sheet calculates the probability of someone developing an illness given they have a gene or not. Even though it appears that the gene predicts the illness some people without the gene can get the illness and some people with the gene will not get the illness.
A3: H= | B3: Illness is present | C3: D= | D3: Patient has the indicating gene | I3: N= | J3: Number of people sampled
A5: Observed Events | F5: Bayes Shown as Sets and Subsets | U5: A Few Rules of Probability
A6: Fill in the number of observed events to calculate the probabilities below. You should use the space above to fomulate the ecperiment you want to calculate the probabilities for. | C6: H | D6: ~H | F6: The probability you choose in the pull-down menu to the left is illustrated in a simple 2x2 table below. The table shows four combinations of the hypothesis being true or not and the data being observed or not. Any of those probabilities can be shown as the number of dots within the dashed line rectangle divided by the total set of dots within a larger solid-line rectangle (the specific number of dots is an approximation for illustration). | U6: The following are a set of basic probability rules that can be used in any probability problem. Using several of the initial rules one can derive Bayes Theorem. Here H and D are events and ~D and ~H denote not D and not H.
B7: D | C7: 55 | D7: 20
B8: ~D | C8: 30 | D8: 45
A9: Number of people sampled: | B9: N | C9: =SUM(C7:D8) -> 150
A10: Probability for H: | B10: P(H) | C10: =SUM(C7:C8)/SUM(C7:D8) -> 0.5666666667
A11: Probability of seeing D, Given H is true: | B11: P(D|H) | C11: =C7/(C7+C8) -> 0.6470588235 | H11: H | N11: ~H
A12: Probability of seeing D, Given H is false: | B12: P(D|~H) | C12: =D7/(D7+D8) -> 0.3076923077 | G12: D | U12: Probability: between impossible and inescapable
A14: Calculated Probabilities and Inputs | U14: To be or not to be…adds up to a probability of 1
A15: This table calculates the probabilities of all of the different combinations.
U16: The "It depends" Rule: conditional probability
C17: P(H|~D) | D17: P(H|D)
B18: Your "prior probability" for H: | C18: P(H) | D18: =C10 -> 0.5666666667 | U18: The probability of more than one thing; the Chain Rule
B19: …and "not H: | C19: P(~H) | D19: =1-D18 -> 0.4333333333
B20: Probability of seeing D, Given H is true: | C20: P(D|H) | D20: =C11 -> 0.6470588235 | G20: ~D | U20: The law of total probability
B21: …and "not D" given H is true: | C21: P(~D|H) | D21: =1-D20 -> 0.3529411765
B22: Probability of seeing D, Given H is false: | C22: P(D|~H) | D22: =C12 -> 0.3076923077 | U22: Bayes Theorem
B23: …and "not D" given H is false: | C23: P(~D|~H) | D23: =1-D22 -> 0.6923076923
B24: Probability of seeing D: | C24: P(D) | D24: =D20*D18+D22*D19 -> 0.5
B25: …and not seeing D: | C25: P(~D) | D25: =D21*D18+D23*D19 -> 0.5
B26: Probability of H, given D: | C26: P(H|D) | D26: =D20*D18/D24 -> 0.7333333333
B27: ..and not H, given D: | C27: P(~H|D) | D27: =D22*D19/D24 -> 0.2666666667
B28: Probability of H, given not D: | C28: P(H|~D) | D28: =D18*D21/D25 -> 0.4
B29: ..and not H, given not D: | C29: P(~H|~D) | D29: =1-D28 -> 0.6
D33: Random Dot Coordinates | J33: Computing Number of Dots By quadrant
E34: Initial | G34: By Quadrant | J34: Initial Calc | M34: Normalized
D35: 1 | E35: 0.4977074723 | F35: 0.7210216036 | G35: =IF(D35-INT((D35-1)/100)*100<=CHOOSE(INT((D35-1)/100)+1,N$35,N$36,M$35,M$36),CHOOSE(INT((D35-1)/200)+1,E35*0.46+0.52,E35*0.46+0.02),100) -> 0.7489454373 | H35: =IF(D35-INT((D35-1)/100)*100<=CHOOSE(INT((D35-1)/100)+1,N$35,N$36,M$35,M$36),CHOOSE(INT((D35-1)/100)+1,F35*0.46+0.52,F35*0.46+0.02,F35*0.46+0.52,F35*0.46+0.02),100) -> 0.8516699377 | J35: =D20*D18*100 -> 36.66666667 | K35: =D22*D19*100 -> 13.33333333 | M35: =J35*100/MAX($J$35:$K$36) -> 100 | N35: =K35*100/MAX($J$35:$K$36) -> 36.36363636
D36: 2 | E36: 0.8536350963 | F36: 0.8921108831 | G36: 0.9126721443 | H36: 0.9303710062 | J36: =D21*D18*100 -> 20 | K36: =D23*D19*100 -> 30 | M36: =J36*100/MAX($J$35:$K$36) -> 54.54545455 | N36: =K36*100/MAX($J$35:$K$36) -> 81.81818182
D37: 3 | E37: 0.04078860015 | F37: 0.2885215948 | G37: 0.5387627561 | H37: 0.6527199336
D38: 4 | E38: 0.4121032364 | F38: 0.6136395628 | G38: 0.7095674887 | H38: 0.8022741989 | J38: Lookup Table for Chart Lines
D39: 5 | E39: 0.7126579007 | F39: 0.4012996017 | G39: 0.8478226343 | H39: 0.7045978168 | J39: =SUM(K40:K51) -> 9 | L39: =OFFSET(L40,$J39-1,) -> 0 | M39: 1 | N39: 1 | O39: 0 | P39: 0 | Q39: 0.5 | R39: 0.5 | S39: 1 | T39: 1 | U39: 0.5 | V39: 0.02 | W39: 0.48 | X39: 0.48 | Y39: 0.02 | Z39: 0.02 | AA39: 0.52 | AB39: 0.52 | AC39: 0.98 | AD39: 0.98 | AE39: 0.52
D40: 6 | E40: 0.6795043765 | F40: 0.083484986 | G40: 0.8325720132 | H40: 0.5584030936 | J40: 1 | K40: =IF(C18=D$17,J40,0) -> 0 | L40: 0 | M40: 1 | N40: 1 | O40: 0 | P40: 0 | Q40: 0 | R40: 0 | S40: 1 | T40: 1 | U40: 0 | V40: 0.02 | W40: 0.48 | X40: 0.48 | Y40: 0.02 | Z40: 0.02 | AA40: 0.02 | AB40: 0.02 | AC40: 0.98 | AD40: 0.98 | AE40: 0.02
D41: 7 | E41: 0.3585195596 | F41: 0.8776508942 | G41: 0.6849189974 | H41: 0.9237194113 | J41: 2 | K41: 0 | L41: 0 | M41: 1 | N41: 1 | O41: 0 | P41: 0 | Q41: 0 | R41: 0 | S41: 1 | T41: 1 | U41: 0 | V41: 0.52 | W41: 0.98 | X41: 0.98 | Y41: 0.52 | Z41: 0.52 | AA41: 0.02 | AB41: 0.02 | AC41: 0.98 | AD41: 0.98 | AE41: 0.02
D42: 8 | E42: 0.7635811827 | F42: 0.2006373645 | G42: 0.871247344 | H42: 0.6122931877 | J42: 3 | K42: 0 | L42: 0 | M42: 0.5 | N42: 0.5 | O42: 0 | P42: 0 | Q42: 0 | R42: 0 | S42: 1 | T42: 1 | U42: 0 | V42: 0.02 | W42: 0.48 | X42: 0.48 | Y42: 0.02 | Z42: 0.02 | AA42: 0.52 | AB42: 0.52 | AC42: 0.98 | AD42: 0.98 | AE42: 0.52
D43: 9 | E43: 0.009310515556 | F43: 0.7734346385 | G43: 0.5242828372 | H43: 0.8757799337 | J43: 4 | K43: 0 | L43: 0 | M43: 0.5 | N43: 0.5 | O43: 0 | P43: 0 | Q43: 0 | R43: 0 | S43: 1 | T43: 1 | U43: 0 | V43: 0.02 | W43: 0.48 | X43: 0.48 | Y43: 0.02 | Z43: 0.02 | AA43: 0.02 | AB43: 0.02 | AC43: 0.48 | AD43: 0.48 | AE43: 0.02
D44: 10 | E44: 0.2231471407 | F44: 0.5768817682 | G44: 0.6226476847 | H44: 0.7853656134 | J44: 5 | K44: 0 | L44: 0.5 | M44: 1 | N44: 1 | O44: 0.5 | P44: 0.5 | Q44: 0 | R44: 0 | S44: 1 | T44: 1 | U44: 0 | V44: 0.52 | W44: 0.98 | X44: 0.98 | Y44: 0.52 | Z44: 0.52 | AA44: 0.52 | AB44: 0.52 | AC44: 0.98 | AD44: 0.98 | AE44: 0.52
D45: 11 | E45: 0.8493307777 | F45: 0.2909083683 | G45: 0.9106921577 | H45: 0.6538178494 | J45: 6 | K45: 0 | L45: 0.5 | M45: 1 | N45: 1 | O45: 0.5 | P45: 0.5 | Q45: 0 | R45: 0 | S45: 1 | T45: 1 | U45: 0 | V45: 0.52 | W45: 0.98 | X45: 0.98 | Y45: 0.52 | Z45: 0.52 | AA45: 0.02 | AB45: 0.02 | AC45: 0.48 | AD45: 0.48 | AE45: 0.02
D46: 12 | E46: 0.6462223424 | F46: 0.1588491629 | G46: 0.8172622775 | H46: 0.5930706149 | J46: 7 | K46: 0 | V46: 0.02 | W46: 0.98 | X46: 0.98 | Y46: 0.02 | Z46: 0.02 | AA46: 0.52 | AB46: 0.52 | AC46: 0.98 | AD46: 0.98 | AE46: 0.52
D47: 13 | E47: 0.2935907209 | F47: 0.2297827807 | G47: 0.6550517316 | H47: 0.6257000791 | J47: 8 | K47: 0 | V47: 0.02 | W47: 0.98 | X47: 0.98 | Y47: 0.02 | Z47: 0.02 | AA47: 0.02 | AB47: 0.02 | AC47: 0.48 | AD47: 0.48 | AE47: 0.02
D48: 14 | E48: 0.2093901279 | F48: 0.1834395753 | G48: 0.6163194588 | H48: 0.6043822046 | J48: 9 | K48: 9 | L48: 0 | M48: 1 | N48: 1 | O48: 0 | P48: 0 | Q48: 0.5 | R48: 0.5 | S48: 1 | T48: 1 | U48: 0.5 | V48: 0.02 | W48: 0.48 | X48: 0.48 | Y48: 0.02 | Z48: 0.02 | AA48: 0.52 | AB48: 0.52 | AC48: 0.98 | AD48: 0.98 | AE48: 0.52
D49: 15 | E49: 0.8007685323 | F49: 0.6137345414 | G49: 0.8883535249 | H49: 0.8023178891 | J49: 10 | K49: 0 | L49: 0 | M49: 1 | N49: 1 | O49: 0 | P49: 0 | Q49: 0.5 | R49: 0.5 | S49: 1 | T49: 1 | U49: 0.5 | V49: 0.52 | W49: 0.98 | X49: 0.98 | Y49: 0.52 | Z49: 0.52 | AA49: 0.52 | AB49: 0.52 | AC49: 0.98 | AD49: 0.98 | AE49: 0.52
D50: 16 | E50: 0.1901377572 | F50: 0.5322500724 | G50: 0.6074633683 | H50: 0.7648350333 | J50: 11 | K50: 0 | L50: 0 | M50: 1 | N50: 1 | O50: 0 | P50: 0 | Q50: 0 | R50: 0 | S50: 0.5 | T50: 0.5 | U50: 0 | V50: 0.02 | W50: 0.48 | X50: 0.48 | Y50: 0.02 | Z50: 0.02 | AA50: 0.02 | AB50: 0.02 | AC50: 0.48 | AD50: 0.48 | AE50: 0.02
D51: 17 | E51: 0.6875287566 | F51: 0.7236791942 | G51: 0.836263228 | H51: 0.8528924293 | J51: 12 | K51: 0 | L51: 0 | M51: 1 | N51: 1 | O51: 0 | P51: 0 | Q51: 0 | R51: 0 | S51: 0.5 | T51: 0.5 | U51: 0 | V51: 0.52 | W51: 0.98 | X51: 0.98 | Y51: 0.52 | Z51: 0.52 | AA51: 0.02 | AB51: 0.02 | AC51: 0.48 | AD51: 0.48 | AE51: 0.02
D52: 18 | E52: 0.7938900081 | F52: 0.1588069852 | G52: 0.8851894037 | H52: 0.5930512132
D53: 19 | E53: 0.06183532045 | F53: 0.3761754849 | G53: 0.5484442474 | H53: 0.693040723
D54: 20 | E54: 0.9747129154 | F54: 0.4764901409 | G54: 0.9683679411 | H54: 0.7391854648
D55: 21 | E55: 0.7908071117 | F55: 0.51009198 | G55: 0.8837712714 | H55: 0.7546423108
D56: 22 | E56: 0.9344323251 | F56: 0.9204159658 | G56: 0.9498388696 | H56: 0.9433913443
D57: 23 | E57: 0.5215063791 | F57: 0.744104262 | G57: 0.7598929344 | H57: 0.8622879605
D58: 24 | E58: 0.9867069807 | F58: 0.07235438061 | G58: 0.9738852111 | H58: 0.5532830151
D59: 25 | E59: 0.2609982003 | F59: 0.9376367472 | G59: 0.6400591721 | H59: 0.9513129037
D60: 26 | E60: 0.7802678885 | F60: 0.005319504208 | G60: 0.8789232287 | H60: 0.5224469719
D61: 27 | E61: 0.9068168895 | F61: 0.3266649664 | G61: 0.9371357692 | H61: 0.6702658845
D62: 28 | E62: 0.4155090383 | F62: 0.5980947677 | G62: 0.7111341576 | H62: 0.7951235931
D63: 29 | E63: 0.5887845381 | F63: 0.5138765548 | G63: 0.7908408875 | H63: 0.7563832152
D64: 30 | E64: 0.9177925634 | F64: 0.954840484 | G64: 0.9421845792 | H64: 0.9592266226
D65: 31 | E65: 0.2224559293 | F65: 0.3642033085 | G65: 0.6223297275 | H65: 0.6875335219
D66: 32 | E66: 0.8364309351 | F66: 0.9903715545 | G66: 0.9047582301 | H66: 0.9755709151
D67: 33 | E67: 0.7664484731 | F67: 0.4206020821 | G67: 0.8725662976 | H67: 0.7134769578
D68: 34 | E68: 0.8540718806 | F68: 0.3204954391 | G68: 0.9128730651 | H68: 0.667427902
D69: 35 | E69: 0.2248179418 | F69: 0.9893370693 | G69: 0.6234162532 | H69: 0.9750950519
D70: 36 | E70: 0.1568974114 | F70: 0.4545169791 | G70: 0.5921728092 | H70: 0.7290778104
D71: 37 | E71: 0.8937850988 | F71: 0.3221115293 | G71: 100 | H71: 100
D72: 38 | E72: 0.7890224482 | F72: 0.07823436013 | G72: 100 | H72: 100
D73: 39 | E73: 0.2764479827 | F73: 0.4802976648 | G73: 100 | H73: 100
D74: 40 | E74: 0.5795681611 | F74: 0.5059382826 | G74: 100 | H74: 100
D75: 41 | E75: 0.5407486877 | F75: 0.3447013369 | G75: 100 | H75: 100
D76: 42 | E76: 0.9930891279 | F76: 0.6019638725 | G76: 100 | H76: 100
D77: 43 | E77: 0.4390932236 | F77: 0.02429323788 | G77: 100 | H77: 100
D78: 44 | E78: 0.6472718122 | F78: 0.9659684338 | G78: 100 | H78: 100
D79: 45 | E79: 0.2975137563 | F79: 0.299697719 | G79: 100 | H79: 100
D80: 46 | E80: 0.5227991088 | F80: 0.1871901537 | G80: 100 | H80: 100
D81: 47 | E81: 0.2471768864 | F81: 0.6995756926 | G81: 100 | H81: 100
D82: 48 | E82: 0.7481292334 | F82: 0.6735411811 | G82: 100 | H82: 100
D83: 49 | E83: 0.4283547077 | F83: 0.2266196007 | G83: 100 | H83: 100
D84: 50 | E84: 0.8422231397 | F84: 0.2827400574 | G84: 100 | H84: 100
D85: 51 | E85: 0.7769203259 | F85: 0.2316472 | G85: 100 | H85: 100
D86: 52 | E86: 0.4916068437 | F86: 0.3198673781 | G86: 100 | H86: 100
D87: 53 | E87: 0.6951662123 | F87: 0.897795094 | G87: 100 | H87: 100
D88: 54 | E88: 0.3585645311 | F88: 0.7541279177 | G88: 100 | H88: 100
D89: 55 | E89: 0.6856516059 | F89: 0.4228366836 | G89: 100 | H89: 100
D90: 56 | E90: 0.6033718979 | F90: 0.9291788033 | G90: 100 | H90: 100
D91: 57 | E91: 0.7604292359 | F91: 0.4716334468 | G91: 100 | H91: 100
D92: 58 | E92: 0.8155829545 | F92: 0.2807697012 | G92: 100 | H92: 100
D93: 59 | E93: 0.7795896524 | F93: 0.2250057396 | G93: 100 | H93: 100
D94: 60 | E94: 0.7462431729 | F94: 0.06167811617 | G94: 100 | H94: 100
D95: 61 | E95: 0.0722674818 | F95: 0.9853621934 | G95: 100 | H95: 100
D96: 62 | E96: 0.07761624611 | F96: 0.2497166293 | G96: 100 | H96: 100
D97: 63 | E97: 0.2664076272 | F97: 0.5545833545 | G97: 100 | H97: 100
D98: 64 | E98: 0.8746669265 | F98: 0.7601523597 | G98: 100 | H98: 100
D99: 65 | E99: 0.8424394671 | F99: 0.2361047752 | G99: =IF(D99-INT((D99-1)/100)*100<=CHOOSE(INT((D99-1)/100)+1,N$35,N$36,M$35,M$36),CHOOSE(INT((D99-1)/200)+1,E99*0.46+0.52,E99*0.46+0.02),100) -> 100 | H99: =IF(D99-INT((D99-1)/100)*100<=CHOOSE(INT((D99-1)/100)+1,N$35,N$36,M$35,M$36),CHOOSE(INT((D99-1)/100)+1,F99*0.46+0.52,F99*0.46+0.02,F99*0.46+0.52,F99*0.46+0.02),100) -> 100
D100: 66 | E100: 0.4551637344 | F100: 0.1626261201 | G100: 100 | H100: 100
D101: 67 | E101: 0.125595953 | F101: 0.4920350706 | G101: 100 | H101: 100
D102: 68 | E102: 0.8491395755 | F102: 0.3795619965 | G102: 100 | H102: 100
D103: 69 | E103: 0.4373403892 | F103: 0.2990084608 | G103: 100 | H103: 100
D104: 70 | E104: 0.3833262561 | F104: 0.208182159 | G104: 100 | H104: 100
D105: 71 | E105: 0.4359505537 | F105: 0.4174118674 | G105: 100 | H105: 100
D106: 72 | E106: 0.6556129265 | F106: 0.3001478841 | G106: 100 | H106: 100
D107: 73 | E107: 0.3876921489 | F107: 0.1015989587 | G107: 100 | H107: 100
D108: 74 | E108: 0.7280328755 | F108: 0.753742267 | G108: 100 | H108: 100
D109: 75 | E109: 0.1734905248 | F109: 0.3378543066 | G109: 100 | H109: 100
D110: 76 | E110: 0.8008077705 | F110: 0.2587485502 | G110: 100 | H110: 100
D111: 77 | E111: 0.7256672217 | F111: 0.1920903196 | G111: 100 | H111: 100
D112: 78 | E112: 0.05082665914 | F112: 0.7601852194 | G112: 100 | H112: 100
D113: 79 | E113: 0.1137888597 | F113: 0.4632813687 | G113: 100 | H113: 100
D114: 80 | E114: 0.8508800103 | F114: 0.2160585104 | G114: 100 | H114: 100
D115: 81 | E115: 0.6624704749 | F115: 0.4166745696 | G115: 100 | H115: 100
D116: 82 | E116: 0.928052397 | F116: 0.3999392165 | G116: 100 | H116: 100
D117: 83 | E117: 0.9451510171 | F117: 0.5471692409 | G117: 100 | H117: 100
D118: 84 | E118: 0.5454419198 | F118: 0.8164867713 | G118: 100 | H118: 100
D119: 85 | E119: 0.9296307189 | F119: 0.8913487568 | G119: 100 | H119: 100
D120: 86 | E120: 0.5775822633 | F120: 0.4483822591 | G120: 100 | H120: 100
D121: 87 | E121: 0.9863957956 | F121: 0.5442231957 | G121: 100 | H121: 100
D122: 88 | E122: 0.4652187884 | F122: 0.3607541593 | G122: 100 | H122: 100
D123: 89 | E123: 0.203037245 | F123: 0.8508808922 | G123: 100 | H123: 100
D124: 90 | E124: 0.1362539507 | F124: 0.5086979829 | G124: 100 | H124: 100
D125: 91 | E125: 0.7783408954 | F125: 0.1614425555 | G125: 100 | H125: 100
D126: 92 | E126: 0.7213761237 | F126: 0.2745865027 | G126: 100 | H126: 100
D127: 93 | E127: 0.4998857585 | F127: 0.6581837642 | G127: 100 | H127: 100
D128: 94 | E128: 0.7112258285 | F128: 0.4414946737 | G128: 100 | H128: 100
D129: 95 | E129: 0.485025455 | F129: 0.6174764135 | G129: 100 | H129: 100
D130: 96 | E130: 0.8438545802 | F130: 0.7773138358 | G130: 100 | H130: 100
D131: 97 | E131: 0.639325904 | F131: 0.9708056393 | G131: 100 | H131: 100
D132: 98 | E132: 0.51141726 | F132: 0.6551366251 | G132: 100 | H132: 100
D133: 99 | E133: 0.8285633724 | F133: 0.3544904479 | G133: 100 | H133: 100
D134: 100 | E134: 0.4731105459 | F134: 0.6954982577 | G134: 100 | H134: 100
D135: 101 | E135: 0.3588359344 | F135: 0.7924200521 | G135: 0.6850645298 | H135: 0.384513224
D136: 102 | E136: 0.5558321132 | F136: 0.4108397967 | G136: 0.7756827721 | H136: 0.2089863065
D137: 103 | E137: 0.7313963671 | F137: 0.08716493649 | G137: 0.8564423288 | H137: 0.06009587078
D138: 104 | E138: 0.4126751308 | F138: 0.1497459504 | G138: 0.7098305602 | H138: 0.0888831372
D139: 105 | E139: 0.1496020454 | F139: 0.2473403913 | G139: 0.5888169409 | H139: 0.13377658
D140: 106 | E140: 0.1760881757 | F140: 0.9489090469 | G140: 0.6010005608 | H140: 0.4564981616
D141: 107 | E141: 0.7961881822 | F141: 0.004960464968 | G141: 0.8862465638 | H141: 0.02228181389
D142: 108 | E142: 0.9796937122 | F142: 0.2340083423 | G142: 0.9706591076 | H142: 0.1276438375
D143: 109 | E143: 0.9176403116 | F143: 0.7939134205 | G143: 0.9421145433 | H143: 0.3852001734
D144: 110 | E144: 0.8749698536 | F144: 0.8903008992 | G144: 0.9224861327 | H144: 0.4295384136
D145: 111 | E145: 0.6128919868 | F145: 0.9647328229 | G145: 0.8019303139 | H145: 0.4637770985
D146: 112 | E146: 0.5148312239 | F146: 0.5764695451 | G146: 0.756822363 | H146: 0.2851759908
D147: 113 | E147: 0.6369813291 | F147: 0.005178893861 | G147: 0.8130114114 | H147: 0.02238229118
D148: 114 | E148: 0.1066104627 | F148: 0.8314419234 | G148: 0.5690408128 | H148: 0.4024632848
D149: 115 | E149: 0.09627059051 | F149: 0.2251064492 | G149: 0.5642844716 | H149: 0.1235489666
D150: 116 | E150: 0.2706666318 | F150: 0.02024326847 | G150: 0.6445066506 | H150: 0.0293119035
D151: 117 | E151: 0.7828349266 | F151: 0.6857588637 | G151: 0.8801040662 | H151: 0.3354490773
D152: 118 | E152: 0.8165417727 | F152: 0.7078322464 | G152: 0.8956092154 | H152: 0.3456028333
D153: 119 | E153: 0.6391287362 | F153: 0.2016598132 | G153: 0.8139992186 | H153: 0.1127635141
D154: 120 | E154: 0.09152875664 | F154: 0.3065511238 | G154: 0.5621032281 | H154: 0.161013517
D155: 121 | E155: 0.8688111375 | F155: 0.003277443904 | G155: 0.9196531233 | H155: 0.0215076242
D156: 122 | E156: 0.3861510257 | F156: 0.1929019124 | G156: 0.6976294718 | H156: 0.1087348797
D157: 123 | E157: 0.768821762 | F157: 0.298852108 | G157: 0.8736580105 | H157: 0.1574719697
D158: 124 | E158: 0.7309464839 | F158: 0.9598702999 | G158: 0.8562353826 | H158: 0.461540338
D159: 125 | E159: 0.2922046742 | F159: 0.4751447403 | G159: 0.6544141502 | H159: 0.2385665806
D160: 126 | E160: 0.152599913 | F160: 0.5044745813 | G160: 0.59019596 | H160: 0.2520583074
D161: 127 | E161: 0.4796416529 | F161: 0.9162395125 | G161: 0.7406351603 | H161: 0.4414701758
D162: 128 | E162: 0.4263318661 | F162: 0.02495350221 | G162: 0.7161126584 | H162: 0.03147861102
D163: 129 | E163: 0.1372876671 | F163: 0.320850644 | G163: =IF(D163-INT((D163-1)/100)*100<=CHOOSE(INT((D163-1)/100)+1,N$35,N$36,M$35,M$36),CHOOSE(INT((D163-1)/200)+1,E163*0.46+0.52,E163*0.46+0.02),100) -> 0.5831523269 | H163: =IF(D163-INT((D163-1)/100)*100<=CHOOSE(INT((D163-1)/100)+1,N$35,N$36,M$35,M$36),CHOOSE(INT((D163-1)/100)+1,F163*0.46+0.52,F163*0.46+0.02,F163*0.46+0.52,F163*0.46+0.02),100) -> 0.1675912962
D164: 130 | E164: 0.1460253341 | F164: 0.289224484 | G164: 0.5871716537 | H164: 0.1530432626
D165: 131 | E165: 0.4417187814 | F165: 0.2949564348 | G165: 0.7231906394 | H165: 0.15567996
D166: 132 | E166: 0.4534224616 | F166: 0.6425982344 | G166: 0.7285743323 | H166: 0.3155951878
D167: 133 | E167: 0.4704142315 | F167: 0.6189619409 | G167: 0.7363905465 | H167: 0.3047224928
D168: 134 | E168: 0.5169929061 | F168: 0.1141500902 | G168: 0.7578167368 | H168: 0.07250904151
D169: 135 | E169: 0.1142477101 | F169: 0.8000006697 | G169: 0.5725539466 | H169: 0.388000308
D170: 136 | E170: 0.5384981127 | F170: 0.5587419225 | G170: 0.7677091319 | H170: 0.2770212843
D171: 137 | E171: 0.7672407576 | F171: 0.02827042138 | G171: 0.8729307485 | H171: 0.03300439384
D172: 138 | E172: 0.3189891265 | F172: 0.02589800396 | G172: 0.6667349982 | H172: 0.03191308182
D173: 139 | E173: 0.8942136963 | F173: 0.3908802808 | G173: 0.9313383003 | H173: 0.1998049292
D174: 140 | E174: 0.5912547743 | F174: 0.9866555194 | G174: 0.7919771962 | H174: 0.4738615389
D175: 141 | E175: 0.3466908367 | F175: 0.5272909631 | G175: 0.6794777849 | H175: 0.262553843
D176: 142 | E176: 0.5468296567 | F176: 0.784001738 | G176: 0.7715416421 | H176: 0.3806407995
D177: 143 | E177: 0.8961780489 | F177: 0.548949545 | G177: 0.9322419025 | H177: 0.2725167907
D178: 144 | E178: 0.1131041795 | F178: 0.3156054049 | G178: 0.5720279226 | H178: 0.1651784863
D179: 145 | E179: 0.5727884272 | F179: 0.1999743625 | G179: 0.7834826765 | H179: 0.1119882067
D180: 146 | E180: 0.5099883006 | F180: 0.6283598669 | G180: 0.7545946183 | H180: 0.3090455388
D181: 147 | E181: 0.80445791 | F181: 0.1151671583 | G181: 0.8900506386 | H181: 0.07297689284
D182: 148 | E182: 0.8925420448 | F182: 0.04923284624 | G182: 0.9305693406 | H182: 0.04264710927
D183: 149 | E183: 0.002300620854 | F183: 0.3513909226 | G183: 0.5210582856 | H183: 0.1816398244
D184: 150 | E184: 0.5085265798 | F184: 0.4719055694 | G184: 0.7539222267 | H184: 0.2370765619
D185: 151 | E185: 0.6559528709 | F185: 0.9356278032 | G185: 0.8217383206 | H185: 0.4503887895
D186: 152 | E186: 0.9383400299 | F186: 0.7250830588 | G186: 0.9516364137 | H186: 0.353538207
D187: 153 | E187: 0.8396255273 | F187: 0.8900544212 | G187: 0.9062277426 | H187: 0.4294250337
D188: 154 | E188: 0.07931405701 | F188: 0.6934439106 | G188: 0.5564844662 | H188: 0.3389841989
D189: 155 | E189: 0.4615296253 | F189: 0.8567247004 | G189: 0.7323036276 | H189: 0.4140933622
D190: 156 | E190: 0.003488778888 | F190: 0.2015222837 | G190: 0.5216048383 | H190: 0.1127002505
D191: 157 | E191: 0.775967892 | F191: 0.7318201731 | G191: 0.8769452303 | H191: 0.3566372796
D192: 158 | E192: 0.6751637136 | F192: 0.6794069137 | G192: 0.8305753082 | H192: 0.3325271803
D193: 159 | E193: 0.9279115573 | F193: 0.691435155 | G193: 0.9468393163 | H193: 0.3380601713
D194: 160 | E194: 0.6755943652 | F194: 0.224410456 | G194: 0.830773408 | H194: 0.1232288098
D195: 161 | E195: 0.7223315307 | F195: 0.6683440277 | G195: 0.8522725041 | H195: 0.3274382527
D196: 162 | E196: 0.1202001026 | F196: 0.6818880229 | G196: 0.5752920472 | H196: 0.3336684905
D197: 163 | E197: 0.1898853499 | F197: 0.4462985134 | G197: 0.6073472609 | H197: 0.2252973162
D198: 164 | E198: 0.7962611609 | F198: 0.2809986384 | G198: 0.886280134 | H198: 0.1492593737
D199: 165 | E199: 0.5574265181 | F199: 0.663302561 | G199: 0.7764161983 | H199: 0.325119178
D200: 166 | E200: 0.4284510657 | F200: 0.3178532291 | G200: 0.7170874902 | H200: 0.1662124854
D201: 167 | E201: 0.8246947744 | F201: 0.1484475507 | G201: 0.8993595962 | H201: 0.08828587331
D202: 168 | E202: 0.9363088667 | F202: 0.3706048039 | G202: 0.9507020787 | H202: 0.1904782098
D203: 169 | E203: 0.4249769868 | F203: 0.5312056488 | G203: 0.7154894139 | H203: 0.2643545985
D204: 170 | E204: 0.8017854602 | F204: 0.3540505208 | G204: 0.8888213117 | H204: 0.1828632396
D205: 171 | E205: 0.5114194403 | F205: 0.2705424435 | G205: 0.7552529425 | H205: 0.144449524
... 229 more rows

Sheet BetaDistPopProportion Ws
A1: Worksheet: The Beta Distribution
A2: This spreadsheet computes how uncertainty about an estimate of a "population proportion" (e.g., "what percentage of customers want X?"). It uses a method called a beta distribution, which allows for establishing a "prior" uncertainty which is updated with new data. Enter values in the yellow "prior" fields to set the initial estimate. Enter "hits" and "misses" from a random sample in the yellow "Observations" fields. This distribution is confirmed using the probability of seeing that outcome from a Binomial distribution.
B5: Prior | C5: w/Data
A6: alpha | B6: 1 | C6: =B6+C15 -> 2
A7: beta | B7: 1 | C7: =B7+C16 -> 1
A9: P5 | B9: =_xlfn.BETA.INV(0.05,B6,B7) -> 0.05 | C9: =_xlfn.BETA.INV(0.05,C6,C7) -> 0.2236067977
A10: Median | B10: =_xlfn.BETA.INV(0.5,B6,B7) -> 0.5 | C10: =_xlfn.BETA.INV(0.5,C6,C7) -> 0.7071067812
A11: Mean | B11: =B6/(B6+B7) -> 0.5 | C11: =C6/(C6+C7) -> 0.6666666667
A12: P95 | B12: =_xlfn.BETA.INV(0.95,B6,B7) -> 0.95 | C12: =_xlfn.BETA.INV(0.95,C6,C7) -> 0.9746794345
A14: Observations
A15: "Hits" | C15: 1
A16: "Misses" | C16: 0
A17: Total Observations | C17: =C16+C15 -> 1
A19: Calcs for Chart Boundaries
A20: =A21 -> 0.05 | B20: 0
A21: =B9 -> 0.05 | B21: =VLOOKUP(A21,D$31:E$1029,2) -> 0.001
A22: =A23 -> 0.95 | B22: 0
A23: =B12 -> 0.95 | B23: =VLOOKUP(A23,D$31:E$1029,2) -> 0.001
A24: =A25 -> 0.2236067977 | B24: 0
A25: =C9 -> 0.2236067977 | B25: =VLOOKUP(A25,D$31:F$1029,3) -> 0.000446
A26: =A27 -> 0.9746794345 | B26: 0
A27: =C12 -> 0.9746794345 | B27: =VLOOKUP(A27,D$31:F$1029,3) -> 0.001948
D29: Chart Distribution Calculations | G29: Prob. of sample result if the hypothetical proportion was the actual proportion | H29: Bayesian Inversion: Prob. that actual proportion is equal to hypothetical proportion
D30: Population Proportion | E30: Prior | F30: w/Data
D31: 0.001 | E31: =_xlfn.BETA.DIST(D31+D$31/2,B$6,B$7,1)-_xlfn.BETA.DIST(D31-D$31/2,B$6,B$7,1) -> 0.001 | F31: =_xlfn.BETA.DIST(D31+D$31/2,C$6,C$7,1)-_xlfn.BETA.DIST(D31-D$31/2,C$6,C$7,1) -> 2e-06 | G31: =BINOMDIST(C$15,C$15+C$16,D31,0) -> 0.001 | H31: =(G31*E31/SUMPRODUCT($G$31:$G$1029,$E$31:$E$1029)) -> 2.002002002e-06
D32: =D31+D$31 -> 0.002 | E32: 0.001 | F32: 4e-06 | G32: 0.002 | H32: =(G32*E32/SUMPRODUCT($G$31:$G$1029,$E$31:$E$1029)) -> 4.004004004e-06
D33: 0.003 | E33: 0.001 | F33: =_xlfn.BETA.DIST(D33+D$31/2,C$6,C$7,1)-_xlfn.BETA.DIST(D33-D$31/2,C$6,C$7,1) -> 6e-06 | G33: 0.003 | H33: 6.006006006e-06
D34: 0.004 | E34: 0.001 | F34: 8e-06 | G34: 0.004 | H34: 8.008008008e-06
D35: 0.005 | E35: 0.001 | F35: 1e-05 | G35: 0.005 | H35: 1.001001001e-05
D36: 0.006 | E36: 0.001 | F36: 1.2e-05 | G36: =BINOMDIST(C$15,C$15+C$16,D36,0) -> 0.006 | H36: 1.201201201e-05
D37: 0.007 | E37: 0.001 | F37: 1.4e-05 | G37: 0.007 | H37: 1.401401401e-05
D38: 0.008 | E38: 0.001 | F38: 1.6e-05 | G38: 0.008 | H38: 1.601601602e-05
D39: 0.009 | E39: 0.001 | F39: 1.8e-05 | G39: 0.009 | H39: 1.801801802e-05
D40: 0.01 | E40: 0.001 | F40: 2e-05 | G40: 0.01 | H40: 2.002002002e-05
D41: 0.011 | E41: 0.001 | F41: 2.2e-05 | G41: 0.011 | H41: 2.202202202e-05
D42: 0.012 | E42: 0.001 | F42: 2.4e-05 | G42: 0.012 | H42: 2.402402402e-05
D43: 0.013 | E43: 0.001 | F43: 2.6e-05 | G43: 0.013 | H43: 2.602602603e-05
D44: 0.014 | E44: 0.001 | F44: 2.8e-05 | G44: 0.014 | H44: 2.802802803e-05
D45: 0.015 | E45: 0.001 | F45: 3e-05 | G45: 0.015 | H45: 3.003003003e-05
D46: 0.016 | E46: 0.001 | F46: 3.2e-05 | G46: 0.016 | H46: 3.203203203e-05
D47: 0.017 | E47: 0.001 | F47: 3.4e-05 | G47: 0.017 | H47: 3.403403403e-05
D48: 0.018 | E48: 0.001 | F48: 3.6e-05 | G48: 0.018 | H48: 3.603603604e-05
D49: 0.019 | E49: 0.001 | F49: 3.8e-05 | G49: 0.019 | H49: 3.803803804e-05
D50: 0.02 | E50: 0.001 | F50: 4e-05 | G50: 0.02 | H50: 4.004004004e-05
D51: 0.021 | E51: 0.001 | F51: 4.2e-05 | G51: 0.021 | H51: 4.204204204e-05
D52: 0.022 | E52: 0.001 | F52: 4.4e-05 | G52: 0.022 | H52: 4.404404404e-05
D53: 0.023 | E53: 0.001 | F53: 4.6e-05 | G53: 0.023 | H53: 4.604604605e-05
D54: 0.024 | E54: 0.001 | F54: 4.8e-05 | G54: 0.024 | H54: 4.804804805e-05
D55: 0.025 | E55: 0.001 | F55: 5e-05 | G55: 0.025 | H55: 5.005005005e-05
D56: 0.026 | E56: 0.001 | F56: 5.2e-05 | G56: 0.026 | H56: 5.205205205e-05
D57: 0.027 | E57: 0.001 | F57: 5.4e-05 | G57: 0.027 | H57: 5.405405405e-05
D58: 0.028 | E58: 0.001 | F58: 5.6e-05 | G58: 0.028 | H58: 5.605605606e-05
D59: 0.029 | E59: 0.001 | F59: 5.8e-05 | G59: 0.029 | H59: 5.805805806e-05
D60: 0.03 | E60: 0.001 | F60: 6e-05 | G60: 0.03 | H60: 6.006006006e-05
D61: 0.031 | E61: 0.001 | F61: 6.2e-05 | G61: 0.031 | H61: 6.206206206e-05
D62: 0.032 | E62: 0.001 | F62: 6.4e-05 | G62: 0.032 | H62: 6.406406406e-05
D63: 0.033 | E63: 0.001 | F63: 6.6e-05 | G63: 0.033 | H63: 6.606606607e-05
D64: 0.034 | E64: 0.001 | F64: 6.8e-05 | G64: 0.034 | H64: 6.806806807e-05
D65: 0.035 | E65: 0.001 | F65: 7e-05 | G65: 0.035 | H65: 7.007007007e-05
D66: 0.036 | E66: 0.001 | F66: 7.2e-05 | G66: 0.036 | H66: 7.207207207e-05
D67: 0.037 | E67: 0.001 | F67: 7.4e-05 | G67: 0.037 | H67: 7.407407407e-05
D68: 0.038 | E68: 0.001 | F68: 7.6e-05 | G68: 0.038 | H68: 7.607607608e-05
D69: 0.039 | E69: 0.001 | F69: 7.8e-05 | G69: 0.039 | H69: 7.807807808e-05
D70: 0.04 | E70: 0.001 | F70: 8e-05 | G70: 0.04 | H70: 8.008008008e-05
D71: 0.041 | E71: 0.001 | F71: 8.2e-05 | G71: 0.041 | H71: 8.208208208e-05
D72: 0.042 | E72: 0.001 | F72: 8.4e-05 | G72: 0.042 | H72: 8.408408408e-05
D73: 0.043 | E73: 0.001 | F73: 8.6e-05 | G73: 0.043 | H73: 8.608608609e-05
D74: 0.044 | E74: 0.001 | F74: 8.8e-05 | G74: 0.044 | H74: 8.808808809e-05
D75: 0.045 | E75: 0.001 | F75: 9e-05 | G75: 0.045 | H75: 9.009009009e-05
D76: 0.046 | E76: 0.001 | F76: 9.2e-05 | G76: 0.046 | H76: 9.209209209e-05
D77: 0.047 | E77: 0.001 | F77: 9.4e-05 | G77: 0.047 | H77: 9.409409409e-05
D78: 0.048 | E78: 0.001 | F78: 9.6e-05 | G78: 0.048 | H78: 9.60960961e-05
D79: 0.049 | E79: 0.001 | F79: 9.8e-05 | G79: 0.049 | H79: 9.80980981e-05
D80: 0.05 | E80: 0.001 | F80: 0.0001 | G80: 0.05 | H80: 0.0001001001001
D81: 0.051 | E81: 0.001 | F81: 0.000102 | G81: 0.051 | H81: 0.0001021021021
D82: 0.052 | E82: 0.001 | F82: 0.000104 | G82: 0.052 | H82: 0.0001041041041
D83: 0.053 | E83: 0.001 | F83: 0.000106 | G83: 0.053 | H83: 0.0001061061061
D84: 0.054 | E84: 0.001 | F84: 0.000108 | G84: 0.054 | H84: 0.0001081081081
D85: 0.055 | E85: 0.001 | F85: 0.00011 | G85: 0.055 | H85: 0.0001101101101
D86: 0.056 | E86: 0.001 | F86: 0.000112 | G86: 0.056 | H86: 0.0001121121121
D87: 0.057 | E87: 0.001 | F87: 0.000114 | G87: 0.057 | H87: 0.0001141141141
D88: 0.058 | E88: 0.001 | F88: 0.000116 | G88: 0.058 | H88: 0.0001161161161
D89: 0.059 | E89: 0.001 | F89: 0.000118 | G89: 0.059 | H89: 0.0001181181181
D90: 0.06 | E90: 0.001 | F90: 0.00012 | G90: 0.06 | H90: 0.0001201201201
D91: 0.061 | E91: 0.001 | F91: 0.000122 | G91: 0.061 | H91: 0.0001221221221
D92: 0.062 | E92: 0.001 | F92: 0.000124 | G92: 0.062 | H92: 0.0001241241241
D93: 0.063 | E93: 0.001 | F93: 0.000126 | G93: 0.063 | H93: 0.0001261261261
D94: 0.064 | E94: 0.001 | F94: 0.000128 | G94: 0.064 | H94: 0.0001281281281
D95: 0.065 | E95: =_xlfn.BETA.DIST(D95+D$31/2,B$6,B$7,1)-_xlfn.BETA.DIST(D95-D$31/2,B$6,B$7,1) -> 0.001 | F95: =_xlfn.BETA.DIST(D95+D$31/2,C$6,C$7,1)-_xlfn.BETA.DIST(D95-D$31/2,C$6,C$7,1) -> 0.00013 | G95: =BINOMDIST(C$15,C$15+C$16,D95,0) -> 0.065 | H95: 0.0001301301301
D96: =D95+D$31 -> 0.066 | E96: 0.001 | F96: 0.000132 | G96: 0.066 | H96: =(G96*E96/SUMPRODUCT($G$31:$G$1029,$E$31:$E$1029)) -> 0.0001321321321
D97: 0.067 | E97: 0.001 | F97: 0.000134 | G97: 0.067 | H97: 0.0001341341341
D98: 0.068 | E98: 0.001 | F98: 0.000136 | G98: 0.068 | H98: 0.0001361361361
D99: 0.069 | E99: 0.001 | F99: 0.000138 | G99: 0.069 | H99: 0.0001381381381
D100: 0.07 | E100: 0.001 | F100: 0.00014 | G100: 0.07 | H100: 0.0001401401401
D101: 0.071 | E101: 0.001 | F101: 0.000142 | G101: 0.071 | H101: 0.0001421421421
D102: 0.072 | E102: 0.001 | F102: 0.000144 | G102: 0.072 | H102: 0.0001441441441
D103: 0.073 | E103: 0.001 | F103: 0.000146 | G103: 0.073 | H103: 0.0001461461461
D104: 0.074 | E104: 0.001 | F104: 0.000148 | G104: 0.074 | H104: 0.0001481481481
D105: 0.075 | E105: 0.001 | F105: 0.00015 | G105: 0.075 | H105: 0.0001501501502
D106: 0.076 | E106: 0.001 | F106: 0.000152 | G106: 0.076 | H106: 0.0001521521522
D107: 0.077 | E107: 0.001 | F107: 0.000154 | G107: 0.077 | H107: 0.0001541541542
D108: 0.078 | E108: 0.001 | F108: 0.000156 | G108: 0.078 | H108: 0.0001561561562
D109: 0.079 | E109: 0.001 | F109: 0.000158 | G109: 0.079 | H109: 0.0001581581582
D110: 0.08 | E110: 0.001 | F110: 0.00016 | G110: 0.08 | H110: 0.0001601601602
D111: 0.081 | E111: 0.001 | F111: 0.000162 | G111: 0.081 | H111: 0.0001621621622
D112: 0.082 | E112: 0.001 | F112: 0.000164 | G112: 0.082 | H112: 0.0001641641642
D113: 0.083 | E113: 0.001 | F113: 0.000166 | G113: 0.083 | H113: 0.0001661661662
D114: 0.084 | E114: 0.001 | F114: 0.000168 | G114: 0.084 | H114: 0.0001681681682
D115: 0.085 | E115: 0.001 | F115: 0.00017 | G115: 0.085 | H115: 0.0001701701702
D116: 0.086 | E116: 0.001 | F116: 0.000172 | G116: 0.086 | H116: 0.0001721721722
D117: 0.087 | E117: 0.001 | F117: 0.000174 | G117: 0.087 | H117: 0.0001741741742
D118: 0.088 | E118: 0.001 | F118: 0.000176 | G118: 0.088 | H118: 0.0001761761762
D119: 0.089 | E119: 0.001 | F119: 0.000178 | G119: 0.089 | H119: 0.0001781781782
D120: 0.09 | E120: 0.001 | F120: 0.00018 | G120: 0.09 | H120: 0.0001801801802
D121: 0.091 | E121: 0.001 | F121: 0.000182 | G121: 0.091 | H121: 0.0001821821822
D122: 0.092 | E122: 0.001 | F122: 0.000184 | G122: 0.092 | H122: 0.0001841841842
D123: 0.093 | E123: 0.001 | F123: 0.000186 | G123: 0.093 | H123: 0.0001861861862
D124: 0.094 | E124: 0.001 | F124: 0.000188 | G124: 0.094 | H124: 0.0001881881882
D125: 0.095 | E125: 0.001 | F125: 0.00019 | G125: 0.095 | H125: 0.0001901901902
D126: 0.096 | E126: 0.001 | F126: 0.000192 | G126: 0.096 | H126: 0.0001921921922
D127: 0.097 | E127: 0.001 | F127: 0.000194 | G127: 0.097 | H127: 0.0001941941942
D128: 0.098 | E128: 0.001 | F128: 0.000196 | G128: 0.098 | H128: 0.0001961961962
D129: 0.099 | E129: 0.001 | F129: 0.000198 | G129: 0.099 | H129: 0.0001981981982
D130: 0.1 | E130: 0.001 | F130: 0.0002 | G130: 0.1 | H130: 0.0002002002002
D131: 0.101 | E131: 0.001 | F131: 0.000202 | G131: 0.101 | H131: 0.0002022022022
D132: 0.102 | E132: 0.001 | F132: 0.000204 | G132: 0.102 | H132: 0.0002042042042
D133: 0.103 | E133: 0.001 | F133: 0.000206 | G133: 0.103 | H133: 0.0002062062062
D134: 0.104 | E134: 0.001 | F134: 0.000208 | G134: 0.104 | H134: 0.0002082082082
D135: 0.105 | E135: 0.001 | F135: 0.00021 | G135: 0.105 | H135: 0.0002102102102
D136: 0.106 | E136: 0.001 | F136: 0.000212 | G136: 0.106 | H136: 0.0002122122122
D137: 0.107 | E137: 0.001 | F137: 0.000214 | G137: 0.107 | H137: 0.0002142142142
D138: 0.108 | E138: 0.001 | F138: 0.000216 | G138: 0.108 | H138: 0.0002162162162
D139: 0.109 | E139: 0.001 | F139: 0.000218 | G139: 0.109 | H139: 0.0002182182182
D140: 0.11 | E140: 0.001 | F140: 0.00022 | G140: 0.11 | H140: 0.0002202202202
D141: 0.111 | E141: 0.001 | F141: 0.000222 | G141: 0.111 | H141: 0.0002222222222
D142: 0.112 | E142: 0.001 | F142: 0.000224 | G142: 0.112 | H142: 0.0002242242242
D143: 0.113 | E143: 0.001 | F143: 0.000226 | G143: 0.113 | H143: 0.0002262262262
D144: 0.114 | E144: 0.001 | F144: 0.000228 | G144: 0.114 | H144: 0.0002282282282
D145: 0.115 | E145: 0.001 | F145: 0.00023 | G145: 0.115 | H145: 0.0002302302302
D146: 0.116 | E146: 0.001 | F146: 0.000232 | G146: 0.116 | H146: 0.0002322322322
D147: 0.117 | E147: 0.001 | F147: 0.000234 | G147: 0.117 | H147: 0.0002342342342
D148: 0.118 | E148: 0.001 | F148: 0.000236 | G148: 0.118 | H148: 0.0002362362362
D149: 0.119 | E149: 0.001 | F149: 0.000238 | G149: 0.119 | H149: 0.0002382382382
D150: 0.12 | E150: 0.001 | F150: 0.00024 | G150: 0.12 | H150: 0.0002402402402
D151: 0.121 | E151: 0.001 | F151: 0.000242 | G151: 0.121 | H151: 0.0002422422422
D152: 0.122 | E152: 0.001 | F152: 0.000244 | G152: 0.122 | H152: 0.0002442442442
D153: 0.123 | E153: 0.001 | F153: 0.000246 | G153: 0.123 | H153: 0.0002462462462
D154: 0.124 | E154: 0.001 | F154: 0.000248 | G154: 0.124 | H154: 0.0002482482482
D155: 0.125 | E155: 0.001 | F155: 0.00025 | G155: 0.125 | H155: 0.0002502502503
D156: 0.126 | E156: 0.001 | F156: 0.000252 | G156: 0.126 | H156: 0.0002522522523
D157: 0.127 | E157: 0.001 | F157: 0.000254 | G157: 0.127 | H157: 0.0002542542543
D158: 0.128 | E158: 0.001 | F158: 0.000256 | G158: 0.128 | H158: 0.0002562562563
D159: 0.129 | E159: =_xlfn.BETA.DIST(D159+D$31/2,B$6,B$7,1)-_xlfn.BETA.DIST(D159-D$31/2,B$6,B$7,1) -> 0.001 | F159: =_xlfn.BETA.DIST(D159+D$31/2,C$6,C$7,1)-_xlfn.BETA.DIST(D159-D$31/2,C$6,C$7,1) -> 0.000258 | G159: =BINOMDIST(C$15,C$15+C$16,D159,0) -> 0.129 | H159: 0.0002582582583
D160: =D159+D$31 -> 0.13 | E160: 0.001 | F160: 0.00026 | G160: 0.13 | H160: =(G160*E160/SUMPRODUCT($G$31:$G$1029,$E$31:$E$1029)) -> 0.0002602602603
D161: 0.131 | E161: 0.001 | F161: 0.000262 | G161: 0.131 | H161: 0.0002622622623
D162: 0.132 | E162: 0.001 | F162: 0.000264 | G162: 0.132 | H162: 0.0002642642643
D163: 0.133 | E163: 0.001 | F163: 0.000266 | G163: 0.133 | H163: 0.0002662662663
D164: 0.134 | E164: 0.001 | F164: 0.000268 | G164: 0.134 | H164: 0.0002682682683
D165: 0.135 | E165: 0.001 | F165: 0.00027 | G165: 0.135 | H165: 0.0002702702703
D166: 0.136 | E166: 0.001 | F166: 0.000272 | G166: 0.136 | H166: 0.0002722722723
D167: 0.137 | E167: 0.001 | F167: 0.000274 | G167: 0.137 | H167: 0.0002742742743
D168: 0.138 | E168: 0.001 | F168: 0.000276 | G168: 0.138 | H168: 0.0002762762763
D169: 0.139 | E169: 0.001 | F169: 0.000278 | G169: 0.139 | H169: 0.0002782782783
D170: 0.14 | E170: 0.001 | F170: 0.00028 | G170: 0.14 | H170: 0.0002802802803
D171: 0.141 | E171: 0.001 | F171: 0.000282 | G171: 0.141 | H171: 0.0002822822823
D172: 0.142 | E172: 0.001 | F172: 0.000284 | G172: 0.142 | H172: 0.0002842842843
D173: 0.143 | E173: 0.001 | F173: 0.000286 | G173: 0.143 | H173: 0.0002862862863
D174: 0.144 | E174: 0.001 | F174: 0.000288 | G174: 0.144 | H174: 0.0002882882883
D175: 0.145 | E175: 0.001 | F175: 0.00029 | G175: 0.145 | H175: 0.0002902902903
D176: 0.146 | E176: 0.001 | F176: 0.000292 | G176: 0.146 | H176: 0.0002922922923
D177: 0.147 | E177: 0.001 | F177: 0.000294 | G177: 0.147 | H177: 0.0002942942943
D178: 0.148 | E178: 0.001 | F178: 0.000296 | G178: 0.148 | H178: 0.0002962962963
D179: 0.149 | E179: 0.001 | F179: 0.000298 | G179: 0.149 | H179: 0.0002982982983
D180: 0.15 | E180: 0.001 | F180: 0.0003 | G180: 0.15 | H180: 0.0003003003003
D181: 0.151 | E181: 0.001 | F181: 0.000302 | G181: 0.151 | H181: 0.0003023023023
D182: 0.152 | E182: 0.001 | F182: 0.000304 | G182: 0.152 | H182: 0.0003043043043
D183: 0.153 | E183: 0.001 | F183: 0.000306 | G183: 0.153 | H183: 0.0003063063063
D184: 0.154 | E184: 0.001 | F184: 0.000308 | G184: 0.154 | H184: 0.0003083083083
D185: 0.155 | E185: 0.001 | F185: 0.00031 | G185: 0.155 | H185: 0.0003103103103
D186: 0.156 | E186: 0.001 | F186: 0.000312 | G186: 0.156 | H186: 0.0003123123123
D187: 0.157 | E187: 0.001 | F187: 0.000314 | G187: 0.157 | H187: 0.0003143143143
D188: 0.158 | E188: 0.001 | F188: 0.000316 | G188: 0.158 | H188: 0.0003163163163
D189: 0.159 | E189: 0.001 | F189: 0.000318 | G189: 0.159 | H189: 0.0003183183183
D190: 0.16 | E190: 0.001 | F190: 0.00032 | G190: 0.16 | H190: 0.0003203203203
D191: 0.161 | E191: 0.001 | F191: 0.000322 | G191: 0.161 | H191: 0.0003223223223
D192: 0.162 | E192: 0.001 | F192: 0.000324 | G192: 0.162 | H192: 0.0003243243243
D193: 0.163 | E193: 0.001 | F193: 0.000326 | G193: 0.163 | H193: 0.0003263263263
D194: 0.164 | E194: 0.001 | F194: 0.000328 | G194: 0.164 | H194: 0.0003283283283
D195: 0.165 | E195: 0.001 | F195: 0.00033 | G195: 0.165 | H195: 0.0003303303303
D196: 0.166 | E196: 0.001 | F196: 0.000332 | G196: 0.166 | H196: 0.0003323323323
D197: 0.167 | E197: 0.001 | F197: 0.000334 | G197: 0.167 | H197: 0.0003343343343
D198: 0.168 | E198: 0.001 | F198: 0.000336 | G198: 0.168 | H198: 0.0003363363363
D199: 0.169 | E199: 0.001 | F199: 0.000338 | G199: 0.169 | H199: 0.0003383383383
D200: 0.17 | E200: 0.001 | F200: 0.00034 | G200: 0.17 | H200: 0.0003403403403
D201: 0.171 | E201: 0.001 | F201: 0.000342 | G201: 0.171 | H201: 0.0003423423423
D202: 0.172 | E202: 0.001 | F202: 0.000344 | G202: 0.172 | H202: 0.0003443443443
D203: 0.173 | E203: 0.001 | F203: 0.000346 | G203: 0.173 | H203: 0.0003463463463
D204: 0.174 | E204: 0.001 | F204: 0.000348 | G204: 0.174 | H204: 0.0003483483483
D205: 0.175 | E205: 0.001 | F205: 0.00035 | G205: 0.175 | H205: 0.0003503503504
D206: 0.176 | E206: 0.001 | F206: 0.000352 | G206: 0.176 | H206: 0.0003523523524
... 823 more rows

Sheet CatchRecatch Ws
A1: Worksheet: Computing a 90% Confidence with Catch/Recatch
A2: This shows the calculations for the estimation of the size of a population when you can't actually count or even see the entire population. Note the similarities to and differences from the 90% CI calculation on other worksheets.
A3: 90% Confidence Interval Calculations
A4: First sample size (i.e. the fish that were tagged) | B4: 1000
A5: The second sample size | B5: 1000
A6: Overlap between samples (i.e. the tagged fish that showed up in the second sample) - THIS APPROXIMATION IS ONLY VALID WHERE THIS VALUE >10 | B6: 250
C7: Beta Distribution
A11: Computing bounds for 90% CI for the percentage of tagged fish
A12: Upper bound | C12: =_xlfn.BETA.INV(0.95,B6+1,B5-B6+1) -> 0.2732846682
A13: Lower bound | C13: =_xlfn.BETA.INV(0.05,B6+1,B5-B6+1) -> 0.2282798473
A14: Computing bounds for 90% CI for the total population of fish
A15: Upper bound | C15: =(B5-B6)/C13+B5 -> 4285.441133
A16: Lower bound | C16: =(B5-B6)/C12+B5 -> 3744.391059

Sheet EstimatingDistAndMean Ex
A1: Example Estimating a Population Distribution and Mean
A2: This worksheet computes a distribution for he estimate of the mean of several different population data sets. For each data set it will also compute an estimate of the underlying distribution. The graph on the right also shows how the 90% confidence interval for the mean narrows as more samples are taken. The user can also explore different groups of sample points by changing the scenario. Different populations can be selected from the drop down menu.
A4: Scenario | D4: Estimate of True Population Distribution and Its Mean | K4: 90% Confidence Interval for Estimate of Mean as Samples Increase
A5: Different scenarios will randomly changes the samples to show how different random samples could change the estimates. | D5: The chart below shows the "true" shape of the distribution for a population (dashed line). It also shows an estimate of that true shape (dark blue) and an estimate of the true mean (light blue) based on a random sample of values from the population (green diamonds) | K5: This chart shows how the estimate of the mean of a population improves with sample size. The true mean is shown as a dashed grey line. The estimate of the mean is shown with blue lines representing upper and lower bounds of the 90% confidence interval.
B6: 46
A7: Number of Samples
A8: Enter number of samples or use slider bar below. For a given scenario, increasing the number of samples improves estimates.
B9: 5
A10: True, Hidden Distribution
A11: Population # | B11: 10
A12: Reveal Distribution? | B12: FALSE
A13: =IF(B12,OFFSET(W18,,B11-1),"") -> 
X14: Make new tab
A16: Estimates Based on Samples
A17: Average of sample | B17: =AVERAGE(L26:L227) -> 179.76
A18: Standard Deviation of Sample | B18: =_xlfn.STDEV.S(L26:L227) -> 43.64519447 | W18: Normal | X18: Beta | Y18: Uniform | Z18: lognormal | AA18: MLB Player Batting | AB18: book ratings w/>10 reviews | AC18: Book num of pages | AD18: NJ teacher salary | AE18: age of working adults | AF18: Work hours per month
A19: Error of the Estimate of the Mean | B19: =B18/B9^0.5 -> 19.51872434 | W19: 100 | X19: =6/9*100 -> 66.66666667 | Y19: 50 | Z19: =EXP((LN(120)+LN(10))/2+((LN(120)-LN(10))/3.29)^2/2) -> 46.07499962 | AA19: 278.87 | AB19: 3.945 | AC19: 348.18 | AD19: 73990 | AE19: 38.64358544 | AF19: 201.05
W21: 0 | X21: 0 | Y21: 0 | Z21: 0 | AA21: 140 | AC21: 0 | AD21: 0 | AE21: 0 | AF21: 90
A22: Increments for chart | B22: =OFFSET(W23,,B11-1) -> 1.1 | W22: 200 | X22: 100 | Y22: 100 | Z22: 200 | AA22: 400 | AC22: 1800 | AD22: 300000 | AE22: 98 | AF22: 310
B23: Distribution curves | I23: Sample Values | N23: Running Calculations for Chart Above | T23: True Mean Plot | W23: =(W22-W21)/200 -> 1 | X23: 0.5 | Y23: 0.5 | Z23: 1 | AA23: 1.3 | AB23: 0 | AC23: 9 | AD23: 1500 | AE23: 0.49 | AF23: 1.1
A24: True Population Cumulative Distribution | B24: True Population Distribution | C24: Horizontal axis values | D24: Estimated Distribution pdf | F24: Error of the Mean Estimate pdf | I24: Y-axis Value for Samples | J24: Sample Count | K24: Random Number | L24: For Calcs | M24: For Chart | O24: Running Average | T24: Mean | U24: Count | W24: =NORMDIST(C25,100,15,1) -> 0.2524925375 | X24: =IFERROR(BETADIST(C25,6,3,0,100),"") -> 0.96190821 | Y24: =C25/100 -> 0.9 | Z24: 0 | AA24: 1.561051409e-06 | AB24: 0.0001248510013 | AC24: 2.24927649e-11 | AD24: 0.0001431941569 | AE24: 1.880110674e-18 | AF24: 4.363697002e-05 | AT24: 1 | AU24: 2 | AV24: 3 | AW24: 4 | AX24: 5 | AY24: 6 | AZ24: 7 | BA24: 8 | BB24: 9 | BC24: 10 | BD24: 11 | BE24: 12 | BF24: 13 | BG24: 14 | BH24: 15 | BI24: 16 | BJ24: 17 | BK24: 18 | BL24: 19 | BM24: 20 | BN24: 21 | BO24: 22 | BP24: 23 | BQ24: 24 | BR24: 25 | BS24: 26 | BT24: 27 | BU24: 28 | BV24: 29 | BW24: 30
A25: =OFFSET(W24,,B$11-1) -> 4.363697002e-05 | B25: =IF(B12,A25/1000,"") ->  | C25: =OFFSET(W21,,B$11-1) -> 90 | D25: =_xlfn.T.DIST((C25+B$22/2-B$17)/B$18,B$9-1,1)-_xlfn.T.DIST((C25-B$22/2-B$17)/B$18,B$9-1,1) -> 0.001556743789 | F25: =_xlfn.T.DIST((C25+B$22/2-B$17)/B$19,B$9-1,1)-_xlfn.T.DIST((C25-B$22/2-B$17)/B$19,B$9-1,1) -> 0.0002132717453 | J25: 0 | K25: Not applicable | O25: =NA() ->  | P25: =NA() ->  | U25: 0 | W25: =NORMDIST(C26,100,15,1) -> 0.2764790475 | X25: =IFERROR(BETADIST(C26,6,3,0,100),"") -> 0.9719552923 | Y25: =C26/100 -> 0.911 | Z25: =_xlfn.LOGNORM.DIST(C26,(LN(120)+LN(10))/2,(LN(120)-LN(10))/3.29,1) -> 0.8997616977 | AA25: 3.280644506e-06 | AB25: 0.0003148691637 | AC25: 6.74782947e-11 | AD25: 0.0003069917895 | AE25: 3.969122535e-18 | AF25: 0.0001254562888
A26: =OFFSET(W25,,B$11-1) -> 0.0001254562888 | B26: =IF(B$12,A26-A25,"") ->  | C26: =C25+OFFSET(W$23,,B$11-1) -> 91.1 | D26: =_xlfn.T.DIST((C26+B$22/2-B$17)/B$18,B$9-1,1)-_xlfn.T.DIST((C26-B$22/2-B$17)/B$18,B$9-1,1) -> 0.001606555661 | F26: =_xlfn.T.DIST((C26+B$22/2-B$17)/B$19,B$9-1,1)-_xlfn.T.DIST((C26-B$22/2-B$17)/B$19,B$9-1,1) -> 0.0002245982972 | I26: =IF(L26<>"",0,"") -> 0 | J26: =IF(B$9>J25,J25+1,"") -> 1 | K26: =IFERROR(( MOD(( MOD( MOD( 999999999999989, MOD( PM_Index*2499997 +$J26*1800451, 7450589 ) * 4658 + 7450581 ) * 383, 99991 ) * 7440893 + MOD( MOD( 999999999999989, MOD( PM_Index*2246527 +$J26*2399993, 7450987 ) * 7580 + 7560584 ) * 17669, 7440893 )) * 1343, 4294967296 ) + 0.5 ) / 4294967296,"") -> 0.08229044394 | L26: =IFERROR(VLOOKUP(K26,A$25:C$225,3),"") -> 134 | M26: =IF(L26="",NA(),L26) -> 134 | O26: =IF(K26="","",AVERAGE(L$26:L26)) -> 134 | P26: =NA() ->  | Q26: =NA() ->  | R26: =NA() ->  | S26: =NA() ->  | T26: =OFFSET(W$19,,B$11-1) -> 201.05 | U26: 1 | W26: 0.3015317875 | X26: 0.980289136 | Y26: 0.922 | Z26: =_xlfn.LOGNORM.DIST(C27,(LN(120)+LN(10))/2,(LN(120)-LN(10))/3.29,1) -> 0.9025270514 | AA26: 5.174880915e-06 | AB26: 0.0004962405508 | AC26: 1.349565894e-10 | AD26: 0.0004883023766 | AE26: 8.147146256e-18 | AF26: 0.000266107594
A27: 0.000266107594 | B27: =IF(B$12,A27-A26,"") ->  | C27: 92.2 | D27: =_xlfn.T.DIST((C27+B$22/2-B$17)/B$18,B$9-1,1)-_xlfn.T.DIST((C27-B$22/2-B$17)/B$18,B$9-1,1) -> 0.001657971415 | F27: =_xlfn.T.DIST((C27+B$22/2-B$17)/B$19,B$9-1,1)-_xlfn.T.DIST((C27-B$22/2-B$17)/B$19,B$9-1,1) -> 0.0002366293763 | I27: 0 | J27: 2 | K27: 0.324718316 | L27: =IFERROR(VLOOKUP(K27,A$25:C$225,3),"") -> 165.9 | M27: =IF(L27="",NA(),L27) -> 165.9 | O27: =IF(K27="","",AVERAGE(L$26:L27)) -> 149.95 | P27: =IFERROR(_xlfn.STDEV.S(L$26:L27)/J27^0.5,"") -> 15.95 | Q27: =IFERROR(TINV(0.1,J27-1)*P27,"") -> 100.7043367 | R27: =IFERROR(O27+Q27,"") -> 250.6543367 | S27: =IFERROR(O27-Q27,"") -> 49.24566334 | T27: 201.05 | U27: 2 | W27: 0.3275578764 | X27: 0.986959975 | Y27: 0.933 | Z27: 0.9052042329 | AA27: 7.258533931e-06 | AB27: 0.00062678577 | AC27: 0.003540995842 | AD27: 0.0007128802629 | AE27: 1.441418184e-17 | AF27: 0.0004895522574
A28: 0.0004895522574 | B28: =IF(B$12,A28-A27,"") ->  | C28: 93.3 | D28: =_xlfn.T.DIST((C28+B$22/2-B$17)/B$18,B$9-1,1)-_xlfn.T.DIST((C28-B$22/2-B$17)/B$18,B$9-1,1) -> 0.00171103469 | F28: 0.0002494146451 | I28: 0 | J28: 3 | K28: 0.1887691383 | L28: =IFERROR(VLOOKUP(K28,A$25:C$225,3),"") -> 148.3 | M28: 148.3 | O28: =IF(K28="","",AVERAGE(L$26:L28)) -> 149.4 | P28: =IFERROR(_xlfn.STDEV.S(L$26:L28)/J28^0.5,"") -> 9.225146792 | Q28: =IFERROR(TINV(0.1,J28-1)*P28,"") -> 26.93729561 | R28: =IFERROR(O28+Q28,"") -> 176.3372956 | S28: =IFERROR(O28-Q28,"") -> 122.4627044 | T28: 201.05 | U28: 3 | W28: 0.3544501852 | X28: 0.9920541325 | Y28: 0.944 | Z28: 0.9077964084 | AA28: 9.555941544e-06 | AB28: 0.0007062939246 | AC28: 0.007683553512 | AD28: 0.0008869796335 | AE28: 2.277022928e-17 | AF28: 0.0008216997301
A29: 0.0008216997301 | C29: 94.4 | D29: =_xlfn.T.DIST((C29+B$22/2-B$17)/B$18,B$9-1,1)-_xlfn.T.DIST((C29-B$22/2-B$17)/B$18,B$9-1,1) -> 0.001765789422 | F29: =_xlfn.T.DIST((C29+B$22/2-B$17)/B$19,B$9-1,1)-_xlfn.T.DIST((C29-B$22/2-B$17)/B$19,B$9-1,1) -> 0.0002630076246 | I29: 0 | J29: 4 | K29: 0.6916174385 | L29: 235.2 | M29: 235.2 | O29: =IF(K29="","",AVERAGE(L$26:L29)) -> 170.85 | P29: =IFERROR(_xlfn.STDEV.S(L$26:L29)/J29^0.5,"") -> 22.41995019 | Q29: 52.76229099 | R29: 223.612291 | S29: 118.087709 | T29: 201.05 | U29: 4 | W29: 0.3820885778 | X29: 0.9956984104 | Y29: 0.955 | Z29: 0.91030662 | AA29: 1.210005806e-05 | AB29: 0.0007543784318 | AC29: 0.0123858336 | AD29: 0.001076531611 | AE29: 3.321528858e-17 | AF29: 0.001283589265
A30: 0.001283589265 | C30: 95.5 | D30: 0.001822279748 | F30: 0.0002774660157 | I30: 0 | J30: 5 | K30: 0.5818286905 | L30: 215.4 | M30: 215.4 | O30: =IF(K30="","",AVERAGE(L$26:L30)) -> 179.76 | P30: =IFERROR(_xlfn.STDEV.S(L$26:L30)/J30^0.5,"") -> 19.51872434 | Q30: 41.61092977 | R30: 221.3709298 | S30: 138.1490702 | T30: 201.05 | U30: 5 | W30: 0.4103414743 | X30: 0.9980647665 | Y30: 0.966 | Z30: 0.9127377902 | AA30: 1.512055328e-05 | AB30: 0.0007887546366 | AC30: 0.01758948906 | AD30: 0.001279475848 | AE30: 4.574935974e-17 | AF30: 0.001886519722
A31: 0.001886519722 | C31: 96.6 | D31: 0.001880549913 | F31: 0.000292852049 | O31: =IF(K31="","",AVERAGE(L$26:L31)) ->  | P31: =IFERROR(_xlfn.STDEV.S(L$26:L31)/J31^0.5,"") ->  | T31: 201.05 | U31: 6 | W31: 0.4390677076 | X31: 0.999375293 | Y31: 0.977 | Z31: 0.9150927275 | AA31: 1.871270297e-05 | AB31: 0.0008184911082 | AC31: 0.02322551292 | AD31: 0.001499933039 | AE31: 6.037244277e-17 | AF31: 0.002637309376
A32: 0.002637309376 | C32: 97.7 | D32: 0.001940644151 | F32: 0.0003092328641 | O32: =IF(K32="","",AVERAGE(L$26:L32)) ->  | P32: =IFERROR(_xlfn.STDEV.S(L$26:L32)/J32^0.5,"") ->  | T32: 201.05 | U32: 7 | W32: 0.468118628 | X32: 0.9999075038 | Y32: 0.988 | Z32: 0.9173741307 | AA32: 2.299199286e-05 | AB32: 0.0008480166828 | AC32: 0.02925387643 | AD32: 0.001729661794 | AE32: 7.708453765e-17 | AF32: 0.003535178995
A33: 0.003535178995 | C33: 98.8 | D33: 0.002002606566 | F33: 0.0003266809224 | O33: =IF(K33="","",AVERAGE(L$26:L33)) ->  | P33: =IFERROR(_xlfn.STDEV.S(L$26:L33)/J33^0.5,"") ->  | T33: 201.05 | U33: 8 | W33: 0.4973404045 | X33: 0.9999999442 | Y33: 0.999 | Z33: 0.9195845937 | AA33: 2.799683108e-05 | AB33: 0.0008790185362 | AC33: 0.03565072511 | AD33: 0.002235477125 | AE33: 9.58856444e-17 | AF33: 0.004563569909
A34: 0.004563569909 | C34: 99.9 | D34: 0.002066480995 | F34: 0.0003452744547 | O34: =IF(K34="","",AVERAGE(L$26:L34)) ->  | P34: =IFERROR(_xlfn.STDEV.S(L$26:L34)/J34^0.5,"") ->  | T34: 201.05 | U34: 9 | W34: 0.5265764643 | Y34: 1.01 | Z34: 0.9217266096 | AA34: 3.389832824e-05 | AB34: 0.0009100203895 | AC34: 0.04241522867 | AD34: 0.002779408886 | AE34: 1.16775763e-16 | AF34: 0.005698325938
A35: 0.005698325938 | C35: 101 | D35: 0.002132310866 | F35: 0.0003650979478 | O35: =IF(K35="","",AVERAGE(L$26:L35)) ->  | P35: =IFERROR(_xlfn.STDEV.S(L$26:L35)/J35^0.5,"") ->  | T35: 201.05 | U35: 10 | W35: 0.5556700048 | Y35: 1.021 | Z35: 0.923802575 | AA35: 4.090945127e-05 | AB35: 0.0009368043036 | AC35: 0.04957422135 | AD35: 0.003386181249 | AE35: 1.397548935e-16 | AF35: 0.006907498585
A36: 0.006907498585 | C36: 102.1 | D36: 0.002200139034 | F36: 0.0003862426729 | O36: =IF(K36="","",AVERAGE(L$26:L36)) ->  | P36: =IFERROR(_xlfn.STDEV.S(L$26:L36)/J36^0.5,"") ->  | T36: 201.05 | U36: 11 | W36: 0.5844665122 | Y36: 1.032 | Z36: 0.925814794 | AA36: 4.929368638e-05 | AB36: 0.0009557850302 | AC36: 0.0571791675 | AD36: 0.004054764039 | AE36: 1.648230358e-16 | AF36: 0.008164983591
A37: 0.008164983591 | C37: 103.2 | D37: 0.002270007611 | F37: 0.000408807258 | O37: =IF(K37="","",AVERAGE(L$26:L37)) ->  | P37: =IFERROR(_xlfn.STDEV.S(L$26:L37)/J37^0.5,"") ->  | T37: 201.05 | U37: 12 | W37: 0.6128162185 | Y37: 1.043 | Z37: 0.9277654818 | AA37: 5.93823631e-05 | AB37: 0.0009663298783 | AC37: 0.06530321465 | AD37: 0.004841816814 | AE37: 1.9198019e-16 | AF37: 0.009449936512
A38: 0.009449936512 | C38: 104.3 | D38: 0.002341957778 | F38: 0.0004328983105 | O38: =IF(K38="","",AVERAGE(L$26:L38)) ->  | P38: =IFERROR(_xlfn.STDEV.S(L$26:L38)/J38^0.5,"") ->  | T38: 201.05 | U38: 13 | W38: 0.6405764332 | Y38: 1.054 | Z38: 0.9296567688 | AA38: 7.155947153e-05 | AB38: 0.0009707587145 | AC38: 0.07403550159 | AD38: 0.005739098186 | AE38: 2.21226356e-16 | AF38: 0.01074482464
A39: 0.01074482464 | C39: 105.4 | D39: 0.002416029584 | F39: 0.0004586310898 | O39: =IF(K39="","",AVERAGE(L$26:L39)) ->  | P39: =IFERROR(_xlfn.STDEV.S(L$26:L39)/J39^0.5,"") ->  | T39: 201.05 | U39: 14 | W39: 0.6676136874 | Y39: 1.065 | Z39: 0.9314907036 | AA39: 8.629705967e-05 | AB39: 0.0009720240962 | AC39: 0.0834732652 | AD39: 0.006813569449 | AE39: 2.525615339e-16 | AF39: 0.01203464775
A40: 0.01203464775 | C40: 106.5 | D40: 0.002492261731 | F40: 0.0004861302385 | O40: =IF(K40="","",AVERAGE(L$26:L40)) ->  | P40: =IFERROR(_xlfn.STDEV.S(L$26:L40)/J40^0.5,"") ->  | T40: 201.05 | U40: 15 | W40: 0.6938056386 | Y40: 1.076 | Z40: 0.9332692567 | AA40: 0.0001041624513 | AB40: 0.0009724458902 | AC40: 0.09371324252 | AD40: 0.007768540553 | AE40: 2.859857237e-16 | AF40: 0.01331667856
A41: 0.01331667856 | C41: 107.6 | D41: 0.002570691339 | F41: 0.0005155305717 | O41: =IF(K41="","",AVERAGE(L$26:L41)) ->  | P41: =IFERROR(_xlfn.STDEV.S(L$26:L41)/J41^0.5,"") ->  | T41: 201.05 | U41: 16 | W41: 0.7190426911 | Y41: 1.087 | Z41: 0.9349943236 | AA41: 0.0001258429178 | AB41: 0.0009739221689 | AC41: 0.10484295 | AD41: 0.008838891121 | AE41: 3.214989253e-16 | AF41: 0.01459344955
A42: 0.01459344955 | C42: 108.7 | D42: 0.002651353705 | F42: 0.0005469779318 | O42: =IF(K42="","",AVERAGE(L$26:L42)) ->  | P42: =IFERROR(_xlfn.STDEV.S(L$26:L42)/J42^0.5,"") ->  | T42: 201.05 | U42: 17 | W42: 0.7432292963 | Y42: 1.098 | Z42: 0.9366677281 | AA42: 0.000152117988 | AB42: 0.0009798272838 | AC42: 0.1169333011 | AD42: 0.01000401768 | AE42: 3.591011388e-16 | AF42: 0.0158694413
A43: 0.0158694413 | C43: 109.8 | D43: 0.002734282033 | F43: 0.0005806301119 | O43: =IF(K43="","",AVERAGE(L$26:L43)) ->  | P43: =IFERROR(_xlfn.STDEV.S(L$26:L43)/J43^0.5,"") ->  | T43: 201.05 | U43: 18 | W43: 0.7662849111 | Y43: 1.109 | Z43: 0.9382912246 | AA43: 0.0001838895612 | AB43: 0.0009960663499 | AC43: 0.1300335368 | AD43: 0.01124949779 | AE43: 3.987923642e-16 | AF43: 0.01713549786
A44: 0.01713549786 | C44: 110.9 | D44: 0.002819507158 | F44: 0.0006166578514 | O44: =IF(K44="","",AVERAGE(L$26:L44)) ->  | P44: =IFERROR(_xlfn.STDEV.S(L$26:L44)/J44^0.5,"") ->  | T44: 201.05 | U44: 19 | W44: 0.7881446014 | Y44: 1.12 | Z44: 0.9398665018 | AA44: 0.0002222019585 | AB44: 0.001030231658 | AC44: 0.1441687927 | AD44: 0.01248982703 | AE44: 4.405726014e-16 | AF44: 0.01838499574
A45: 0.01838499574 | C45: 112 | D45: 0.002907057248 | F45: 0.0006552459097 | O45: =IF(K45="","",AVERAGE(L$26:L45)) ->  | P45: =IFERROR(_xlfn.STDEV.S(L$26:L45)/J45^0.5,"") ->  | T45: 201.05 | U45: 20 | W45: 0.8087592916 | Y45: 1.131 | Z45: 0.9413951846 | AA45: 0.0002682677804 | AB45: 0.001087595631 | AC45: 0.1593403824 | AD45: 0.01371161315 | AE45: 4.844418504e-16 | AF45: 0.01960897379
A46: 0.01960897379 | C46: 113.1 | D46: 0.002996957494 | F46: 0.0006965942199 | O46: =IF(K46="","",AVERAGE(L$26:L46)) ->  | P46: =IFERROR(_xlfn.STDEV.S(L$26:L46)/J46^0.5,"") ->  | T46: 201.05 | U46: 21 | W46: 0.8280956695 | Y46: 1.142 | Z46: 0.9428788373 | AA46: 0.0003234670814 | AB46: 0.001167314683 | AC46: 0.1755285646 | AD46: 0.01488292075 | AE46: 5.304001114e-16 | AF46: 0.02080587354
A47: 0.02080587354 | C47: 114.2 | D47: 0.003089229778 | F47: 0.0007409191288 | O47: =IF(K47="","",AVERAGE(L$26:L47)) ->  | P47: =IFERROR(_xlfn.STDEV.S(L$26:L47)/J47^0.5,"") ->  | T47: 201.05 | U47: 22 | W47: 0.8461357696 | Y47: 1.153 | Z47: 0.9443189657 | AA47: 0.0003893921214 | AB47: 0.001261374728 | AC47: 0.1926975141 | AD47: 0.01605010765 | AE47: 5.784473842e-16 | AF47: 0.02197140921
A48: 0.02197140921 | C48: 115.3 | D48: 0.003183892329 | F48: 0.0007884547238 | O48: =IF(K48="","",AVERAGE(L$26:L48)) ->  | P48: =IFERROR(_xlfn.STDEV.S(L$26:L48)/J48^0.5,"") ->  | T48: 201.05 | U48: 23 | W48: 0.8628762637 | Y48: 1.164 | Z48: 0.9457170196 | AA48: 0.0004678213809 | AB48: 0.001359441815 | AC48: 0.2108018897 | AD48: 0.01719669108 | AE48: 6.285836688e-16 | AF48: 0.02310285351
A49: 0.02310285351 | C49: 116.4 | D49: 0.003280959362 | F49: 0.0008394542518 | O49: =IF(K49="","",AVERAGE(L$26:L49)) ->  | P49: =IFERROR(_xlfn.STDEV.S(L$26:L49)/J49^0.5,"") ->  | T49: 201.05 | U49: 24 | W49: 0.8783274954 | Y49: 1.175 | Z49: 0.9470743952 | AA49: 0.0005607874091 | AB49: 0.001455399932 | AC49: 0.2297934692 | AD49: 0.01850398162 | AE49: 6.808089653e-16 | AF49: 0.02421540143
A50: 0.02421540143 | C50: 117.5 | D50: 0.003380440705 | F50: 0.0008941916303 | O50: =IF(K50="","",AVERAGE(L$26:L50)) ->  | P50: =IFERROR(_xlfn.STDEV.S(L$26:L50)/J50^0.5,"") ->  | T50: 201.05 | U50: 25 | W50: 0.8925123029 | Y50: 1.186 | Z50: 0.9483924368 | AA50: 0.0006705811546 | AB50: 0.001551147153 | AC50: 0.249626906 | AD50: 0.01996991893 | AE50: 7.351232737e-16 | AF50: 0.02535054708
A51: 0.02535054708 | C51: 118.6 | D51: 0.003482341403 | F51: 0.0009529630519 | O51: =IF(K51="","",AVERAGE(L$26:L51)) ->  | P51: =IFERROR(_xlfn.STDEV.S(L$26:L51)/J51^0.5,"") ->  | T51: 201.05 | U51: 26 | W51: 0.9054646745 | Y51: 1.197 | Z51: 0.9496724395 | AA51: 0.0007997909416 | AB51: 0.001653432179 | AC51: 0.2702637938 | AD51: 0.02207971485 | AE51: 7.915265939e-16 | AF51: 0.02655309626
A52: 0.02655309626 | C52: 119.7 | D52: 0.003586661321 | F52: 0.001016088681 | O52: =IF(K52="","",AVERAGE(L$26:L52)) ->  | P52: =IFERROR(_xlfn.STDEV.S(L$26:L52)/J52^0.5,"") ->  | T52: 201.05 | U52: 27 | W52: 0.9172282853 | Y52: 1.208 | Z52: 0.9509156507 | AA52: 0.0009512793733 | AB52: 0.001767105642 | AC52: 0.2916745425 | AD52: 0.02516096465 | AE52: 8.50018926e-16 | AF52: 0.02787915365
A53: 0.02787915365 | C53: 120.8 | D53: 0.003693394726 | F53: 0.001083914441 | O53: =IF(K53="","",AVERAGE(L$26:L53)) ->  | P53: =IFERROR(_xlfn.STDEV.S(L$26:L53)/J53^0.5,"") ->  | T53: 201.05 | U53: 28 | W53: 0.927854963 | Y53: 1.219 | Z53: 0.9521232724 | AA53: 0.001128284381 | AB53: 0.001890691261 | AC53: 0.3138380179 | AD53: 0.03020881623 | AE53: 9.1060027e-16 | AF53: 0.02938131738
A54: 0.02938131738 | C54: 121.9 | D54: 0.003802529857 | F54: 0.001156813882 | O54: =IF(K54="","",AVERAGE(L$26:L54)) ->  | P54: =IFERROR(_xlfn.STDEV.S(L$26:L54)/J54^0.5,"") ->  | T54: 201.05 | U54: 29 | W54: 0.9374031272 | Y54: 1.23 | Z54: 0.9532964626 | AA54: 0.001334387467 | AB54: 0.002017651232 | AC54: 0.3367386003 | AD54: 0.03814630528 | AE54: 9.732706258e-16 | AF54: 0.03112757541
A55: 0.03112757541 | C55: 123 | D55: 0.0039140485 | F55: 0.001235190128 | O55: =IF(K55="","",AVERAGE(L$26:L55)) ->  | P55: =IFERROR(_xlfn.STDEV.S(L$26:L55)/J55^0.5,"") ->  | T55: 201.05 | U55: 30 | W55: 0.9459362452 | Y55: 1.241 | Z55: 0.9544363373 | AA55: 0.001573620528 | AB55: 0.002140815058 | AC55: 0.3603607735 | AD55: 0.05115740025 | AE55: 1.038029993e-15 | AF55: 0.03319292878
A56: 0.03319292878 | C56: 124.1 | D56: 0.004027925536 | F56: 0.001319477885 | O56: =IF(K56="","",AVERAGE(L$26:L56)) ->  | P56: =IFERROR(_xlfn.STDEV.S(L$26:L56)/J56^0.5,"") ->  | T56: 201.05 | U56: 31 | W56: 0.9535213421 | Y56: 1.252 | Z56: 0.9555439723 | AA56: 0.001850434095 | AB56: 0.002255753902 | AC56: 0.3846823355 | AD56: 0.06969434744 | AE56: 1.104878373e-15 | AF56: 0.03566309298
A57: 0.03566309298 | C57: 125.2 | D57: 0.004144128503 | F57: 0.001410145488 | O57: =IF(K57="","",AVERAGE(L$26:L57)) ->  | P57: =IFERROR(_xlfn.STDEV.S(L$26:L57)/J57^0.5,"") ->  | T57: 201.05 | U57: 32 | W57: 0.9602275965 | Y57: 1.263 | Z57: 0.9566204044 | AA57: 0.002169828701 | AB57: 0.002360780589 | AC57: 0.4096668737 | AD57: 0.09456274273 | AE57: 1.173815764e-15 | AF57: 0.03860430268
A58: 0.03860430268 | C58: =C57+OFFSET(W$23,,B$11-1) -> 126.3 | D58: 0.004262617145 | F58: 0.00150769698 | I58: =IF(L58<>"",0,"") ->  | J58: =IF(B$9>J57,J57+1,"") ->  | K58: =IFERROR(( MOD(( MOD( MOD( 999999999999989, MOD( PM_Index*2499997 +$J58*1800451, 7450589 ) * 4658 + 7450581 ) * 383, 99991 ) * 7440893 + MOD( MOD( 999999999999989, MOD( PM_Index*2246527 +$J58*2399993, 7450987 ) * 7580 + 7560584 ) * 17669, 7440893 )) * 1343, 4294967296 ) + 0.5 ) / 4294967296,"") ->  | M58: =IF(L58="",NA(),L58) ->  | O58: =IF(K58="","",AVERAGE(L$26:L58)) ->  | P58: =IFERROR(_xlfn.STDEV.S(L$26:L58)/J58^0.5,"") ->  | T58: =OFFSET(W$19,,B$11-1) -> 201.05 | U58: 33 | W58: 0.9661250485 | Y58: 1.274 | Z58: 0.9576666332 | AA58: 0.002537324565 | AB58: 0.0024571605 | AC58: 0.4352566773 | AD58: 0.1247993737 | AE58: 0.003973684189 | AF58: 0.0420808445
A59: 0.0420808445 | C59: 127.4 | D59: 0.004383342967 | F59: 0.00161267417 | O59: =IF(K59="","",AVERAGE(L$26:L59)) ->  | P59: =IFERROR(_xlfn.STDEV.S(L$26:L59)/J59^0.5,"") ->  | T59: 201.05 | U59: 34 | W59: 0.9712834402 | Y59: 1.285 | Z59: 0.9586836227 | AA59: 0.002959058312 | AB59: 0.002548478885 | AC59: 0.4613670868 | AD59: 0.1598469162 | AE59: 0.009558180278 | AF59: 0.04614336849
A60: 0.04614336849 | C60: 128.5 | D60: 0.004506248795 | F60: 0.001725658652 | O60: =IF(K60="","",AVERAGE(L$26:L60)) ->  | P60: =IFERROR(_xlfn.STDEV.S(L$26:L60)/J60^0.5,"") ->  | T60: 201.05 | U60: 35 | W60: 0.9757712012 | Y60: 1.296 | Z60: 0.9596723023 | AA60: 0.003441759872 | AB60: 0.002641273548 | AC60: 0.4878827329 | AD60: 0.1981632001 | AE60: 0.01688999939 | AF60: 0.05084291431
A61: 0.05084291431 | C61: 129.6 | D61: 0.004631268338 | F61: 0.001847273718 | O61: =IF(K61="","",AVERAGE(L$26:L61)) ->  | P61: =IFERROR(_xlfn.STDEV.S(L$26:L61)/J61^0.5,"") ->  | T61: 201.05 | U61: 36 | W61: 0.9796545879 | Y61: 1.307 | Z61: 0.9606335686 | AA61: 0.00399289107 | AB61: 0.002741660501 | AC61: 0.5146565883 | AD61: 0.2387365949 | AE61: 0.02549327075 | AF61: 0.056204807
A62: 0.056204807 | C62: 130.7 | D62: 0.004758325773 | F62: 0.001978186114 | O62: =IF(K62="","",AVERAGE(L$26:L62)) ->  | P62: =IFERROR(_xlfn.STDEV.S(L$26:L62)/J62^0.5,"") ->  | T62: 201.05 | U62: 37 | W62: 0.9829969774 | Y62: 1.318 | Z62: 0.9615682863 | AA62: 0.004620554674 | AB62: 0.002852592303 | AC62: 0.5415122875 | AD62: 0.2786651008 | AE62: 0.03517110982 | AF62: 0.06223820253
A63: 0.06223820253 | C63: 131.8 | D63: 0.004887335338 | F63: 0.002119107564 | O63: =IF(K63="","",AVERAGE(L$26:L63)) ->  | P63: =IFERROR(_xlfn.STDEV.S(L$26:L63)/J63^0.5,"") ->  | T63: 201.05 | U63: 38 | W63: 0.9858583141 | Y63: 1.329 | Z63: 0.9624772895 | AA63: 0.005333706604 | AB63: 0.002971116396 | AC63: 0.5682495392 | AD63: 0.3171410617 | AE63: 0.04568980034 | AF63: 0.06885816465
A64: 0.06885816465 | C64: 132.9 | D64: 0.005018200948 | F64: 0.002270795964 | O64: =IF(K64="","",AVERAGE(L$26:L64)) ->  | P64: =IFERROR(_xlfn.STDEV.S(L$26:L64)/J64^0.5,"") ->  | T64: 201.05 | U64: 39 | W64: 0.9882947019 | Y64: 1.34 | Z64: 0.9633613834 | AA64: 0.006141998581 | AB64: 0.003091116767 | AC64: 0.5946525661 | AD64: 0.3529499026 | AE64: 0.05679288226 | AF64: 0.07597975712
A65: 0.07597975712 | C65: 134 | D65: 0.005150815841 | F65: 0.002434056138 | O65: =IF(K65="","",AVERAGE(L$26:L65)) ->  | P65: =IFERROR(_xlfn.STDEV.S(L$26:L65)/J65^0.5,"") ->  | T65: 201.05 | U65: 40 | W65: 0.9903581301 | Y65: 1.351 | Z65: 0.9642213445 | AA65: 0.007055945584 | AB65: 0.003209219065 | AC65: 0.620500541 | AD65: 0.3862337876 | AE65: 0.06834340924 | AF65: 0.08349875771
A66: 0.08349875771 | C66: 135.1 | D66: 0.005285062248 | F66: 0.002609740029 | O66: =IF(K66="","",AVERAGE(L$26:L66)) ->  | P66: =IFERROR(_xlfn.STDEV.S(L$26:L66)/J66^0.5,"") ->  | T66: 201.05 | U66: 41 | W66: 0.9920963222 | Y66: 1.362 | Z66: 0.9650579225 | AA66: 0.008086816133 | AB66: 0.003330484818 | AC66: 0.6455788637 | AD66: 0.4172100833 | AE66: 0.08023391646 | AF66: 0.09133938614
A67: 0.09133938614 | C67: 136.2 | D67: 0.005420811111 | F67: 0.002798746171 | O67: =IF(K67="","",AVERAGE(L$26:L67)) ->  | P67: =IFERROR(_xlfn.STDEV.S(L$26:L67)/J67^0.5,"") ->  | T67: 201.05 | U67: 42 | W67: 0.9935526923 | Y67: 1.373 | Z67: 0.965871841 | AA67: 0.009246877703 | AB67: 0.003469465916 | AC67: 0.6696904305 | AD67: 0.4460085916 | AE67: 0.09238962824 | AF67: 0.09941261521
A68: 0.09941261521 | C68: 137.3 | D68: 0.005557921827 | F68: 0.003002018252 | O68: =IF(K68="","",AVERAGE(L$26:L68)) ->  | P68: =IFERROR(_xlfn.STDEV.S(L$26:L68)/J68^0.5,"") ->  | T68: 201.05 | U68: 43 | W68: 0.9947663918 | Y68: 1.384 | Z68: 0.9666637985 | AA68: 0.01054912388 | AB68: 0.003643455909 | AC68: 0.6926657035 | AD68: 0.47261386 | AE68: 0.1047481805 | AF68: 0.1076327294
A69: 0.1076327294 | C69: 138.4 | D69: 0.00569624206 | F69: 0.003220542572 | O69: =IF(K69="","",AVERAGE(L$26:L69)) ->  | P69: =IFERROR(_xlfn.STDEV.S(L$26:L69)/J69^0.5,"") ->  | T69: 201.05 | U69: 44 | W69: 0.9957724339 | Y69: 1.395 | Z69: 0.9674344695 | AA69: 0.01200752412 | AB69: 0.003865741307 | AC69: 0.7143707138 | AD69: 0.4975172812 | AE69: 0.1172544304 | AF69: 0.1159216109
A70: 0.1159216109 | C70: 139.5 | D70: 0.00583560759 | F70: 0.003455344151 | O70: =IF(K70="","",AVERAGE(L$26:L70)) ->  | P70: =IFERROR(_xlfn.STDEV.S(L$26:L70)/J70^0.5,"") ->  | T70: 201.05 | U70: 45 | W70: 0.9966018771 | Y70: 1.406 | Z70: 0.968184505 | AA70: 0.01363671479 | AB70: 0.004143070812 | AC70: 0.7347123322 | AD70: 0.520853808 | AE70: 0.1298552661 | AF70: 0.1242987403
A71: 0.1242987403 | C71: 140.6 | D71: 0.005975842232 | F71: 0.003707481227 | O71: =IF(K71="","",AVERAGE(L$26:L71)) ->  | P71: =IFERROR(_xlfn.STDEV.S(L$26:L71)/J71^0.5,"") ->  | T71: 201.05 | U71: 46 | W71: 0.9972820551 | Y71: 1.417 | Z71: 0.9689145341 | AA71: 0.01545234709 | AB71: 0.004481349538 | AC71: 0.7536400803 | AD71: 0.5428480185 | AE71: 0.1425054741 | AF71: 0.1327861309
A72: 0.1327861309 | C72: 141.7 | D72: 0.006116757817 | F72: 0.003978037832 | O72: =IF(K72="","",AVERAGE(L$26:L72)) ->  | P72: =IFERROR(_xlfn.STDEV.S(L$26:L72)/J72^0.5,"") ->  | T72: 201.05 | U72: 47 | W72: 0.9978368393 | Y72: 1.428 | Z72: 0.9696251641 | AA72: 0.01747076516 | AB72: 0.004889013365 | AC72: 0.7711446365 | AD72: 0.5639985165 | AE72: 0.1551736063 | AF72: 0.1414270302
A73: 0.1414270302 | C73: 142.8 | D73: 0.006258154248 | F73: 0.004268114139 | O73: =IF(K73="","",AVERAGE(L$26:L73)) ->  | P73: =IFERROR(_xlfn.STDEV.S(L$26:L73)/J73^0.5,"") ->  | T73: 201.05 | U73: 48 | W73: 0.9982869206 | Y73: 1.439 | Z73: 0.9703169819 | AA73: 0.01970923698 | AB73: 0.005370912922 | AC73: 0.7872535642 | AD73: 0.5842434919 | AE73: 0.1678424961 | AF73: 0.1501857883
A74: 0.1501857883 | C74: 143.9 | D74: 0.006399819628 | F74: 0.004578814214 | O74: =IF(K74="","",AVERAGE(L$26:L74)) ->  | P74: =IFERROR(_xlfn.STDEV.S(L$26:L74)/J74^0.5,"") ->  | T74: 201.05 | U74: 49 | W74: 0.998650102 | Y74: 1.45 | Z74: 0.9709905542 | AA74: 0.02218554305 | AB74: 0.005918401435 | AC74: 0.8020249921 | AD74: 0.6040578546 | AE74: 0.180509774 | AF74: 0.1590380542
A75: 0.1590380542 | C75: 145 | D75: 0.006541530475 | F75: 0.004911230817 | O75: =IF(K75="","",AVERAGE(L$26:L75)) ->  | P75: =IFERROR(_xlfn.STDEV.S(L$26:L75)/J75^0.5,"") ->  | T75: 201.05 | U75: 50 | W75: 0.9989415905 | Y75: 1.461 | Z75: 0.971646429 | AA75: 0.0249181885 | AB75: 0.006506382164 | AC75: 0.8155400099 | AD75: 0.6237825921 | AE75: 0.1931855788 | AF75: 0.1679678536
A76: 0.1679678536 | C76: 146.1 | D76: 0.006683052027 | F76: 0.005266426876 | O76: =IF(K76="","",AVERAGE(L$26:L76)) ->  | P76: =IFERROR(_xlfn.STDEV.S(L$26:L76)/J76^0.5,"") ->  | T76: 201.05 | U76: 51 | W76: 0.9991742844 | Y76: 1.472 | Z76: 0.9722851354 | AA76: 0.02792600474 | AB76: 0.007110180165 | AC76: 0.8278944398 | AD76: 0.6436051962 | AE76: 0.2058902688 | AF76: 0.1769773294
A77: 0.1769773294 | C77: 147.2 | D77: 0.006824138628 | F77: 0.005645413273 | O77: =IF(K77="","",AVERAGE(L$26:L77)) ->  | P77: =IFERROR(_xlfn.STDEV.S(L$26:L77)/J77^0.5,"") ->  | T77: 201.05 | U77: 52 | W77: 0.999359047 | Y77: 1.483 | Z77: 0.9729071851 | AA77: 0.03122851029 | AB77: 0.007720937766 | AC77: 0.8391906452 | AD77: 0.6636441368 | AE77: 0.2186469744 | AF77: 0.1860431048
A78: 0.1860431048 | C78: 148.3 | D78: 0.006964534225 | F78: 0.006049122597 | O78: =IF(K78="","",AVERAGE(L$26:L78)) ->  | P78: =IFERROR(_xlfn.STDEV.S(L$26:L78)/J78^0.5,"") ->  | T78: 201.05 | U78: 53 | W78: 0.9995049649 | Y78: 1.494 | Z78: 0.9735130726 | AA78: 0.03484532331 | AB78: 0.008352785063 | AC78: 0.8495304567 | AD78: 0.6839395906 | AE78: 0.231474152 | AF78: 0.1951334259
A79: 0.1951334259 | C79: 149.4 | D79: 0.00710397295 | F79: 0.006478378599 | O79: =IF(K79="","",AVERAGE(L$26:L79)) ->  | P79: =IFERROR(_xlfn.STDEV.S(L$26:L79)/J79^0.5,"") ->  | T79: 201.05 | U79: 54 | W79: 0.999619587 | Y79: 1.505 | Z79: 0.9741032758 | AA79: 0.03879655706 | AB79: 0.009025968165 | AC79: 0.8590098387 | AD79: 0.7042494669 | AE79: 0.2443846724 | AF79: 0.2042134222
A80: 0.2042134222 | C80: 150.5 | D80: 0.007242179811 | F80: 0.00693386115 | O80: =IF(K80="","",AVERAGE(L$26:L80)) ->  | P80: =IFERROR(_xlfn.STDEV.S(L$26:L80)/J80^0.5,"") ->  | T80: 201.05 | U80: 55 | W80: 0.9997091429 | Y80: 1.516 | Z80: 0.9746782571 | AA80: 0.04310220792 | AB80: 0.009756093446 | AC80: 0.8677155235 | AD80: 0.7247643477 | AE80: 0.2573849108 | AF80: 0.2133193279
A81: 0.2133193279 | C81: 151.6 | D81: 0.007378871481 | F81: 0.007416066631 | O81: =IF(K81="","",AVERAGE(L$26:L81)) ->  | P81: =IFERROR(_xlfn.STDEV.S(L$26:L81)/J81^0.5,"") ->  | T81: 201.05 | U81: 56 | W81: 0.999778739 | Y81: 1.527 | Z81: 0.9752384632 | AA81: 0.0477825292 | AB81: 0.01054632436 | AC81: 0.8757232535 | AD81: 0.7450464093 | AE81: 0.270475399 | AF81: 0.2224809488
A82: 0.2224809488 | C82: 152.7 | D82: 0.007513757192 | F82: 0.007925263871 | O82: =IF(K82="","",AVERAGE(L$26:L82)) ->  | P82: =IFERROR(_xlfn.STDEV.S(L$26:L82)/J82^0.5,"") ->  | T82: 201.05 | U82: 57 | W82: 0.999832534 | Y82: 1.538 | Z82: 0.9757843264 | AA82: 0.05285716791 | AB82: 0.01139518463 | AC82: 0.8830974553 | AD82: 0.7644857888 | AE82: 0.2836514786 | AF82: 0.2317160122
A83: 0.2317160122 | C83: 153.8 | D83: 0.007646539732 | F83: 0.008461445965 | O83: =IF(K83="","",AVERAGE(L$26:L83)) ->  | P83: =IFERROR(_xlfn.STDEV.S(L$26:L83)/J83^0.5,"") ->  | T83: 201.05 | U83: 58 | W83: 0.9998738924 | Y83: 1.549 | Z83: 0.9763162647 | AA83: 0.05834573208 | AB83: 0.01229655825 | AC83: 0.889892199 | AD83: 0.7831968353 | AE83: 0.2969063636 | AF83: 0.2409584783
A84: 0.2409584783 | C84: 154.9 | D84: 0.007776916532 | F84: 0.009024278572 | O84: =IF(K84="","",AVERAGE(L$26:L84)) ->  | P84: =IFERROR(_xlfn.STDEV.S(L$26:L84)/J84^0.5,"") ->  | T84: 201.05 | U84: 59 | W84: 0.9999055189 | Y84: 1.56 | Z84: 0.9768346825 | AA84: 0.06426698671 | AB84: 0.01324960162 | AC84: 0.8961533033 | AD84: 0.800841652 | AE84: 0.3102342029 | AF84: 0.2501263329
A85: 0.2501263329 | C85: 156 | D85: 0.007904580861 | F85: 0.009613045655 | O85: =IF(K85="","",AVERAGE(L$26:L85)) ->  | P85: =IFERROR(_xlfn.STDEV.S(L$26:L85)/J85^0.5,"") ->  | T85: 201.05 | U85: 60 | W85: 0.9999295738 | Y85: 1.571 | Z85: 0.977339971 | AA85: 0.07063941096 | AB85: 0.01426886663 | AC85: 0.9019208135 | AD85: 0.8175345881 | AE85: 0.3236297094 | AF85: 0.2591422374
A86: 0.2591422374 | C86: 157.1 | D86: 0.008029223104 | F86: 0.01022659398 | O86: =IF(K86="","",AVERAGE(L$26:L86)) ->  | P86: =IFERROR(_xlfn.STDEV.S(L$26:L86)/J86^0.5,"") ->  | T86: 201.05 | U86: 61 | W86: 0.9999477718 | Y86: 1.582 | Z86: 0.9778325086 | AA86: 0.07747992205 | AB86: 0.0153952673 | AC86: 0.9072311886 | AD86: 0.8332292858 | AE86: 0.3370877895 | AF86: 0.2679311907
A87: 0.2679311907 | C87: 158.2 | D87: 0.008150532127 | F87: 0.01086327817 | O87: =IF(K87="","",AVERAGE(L$26:L87)) ->  | P87: =IFERROR(_xlfn.STDEV.S(L$26:L87)/J87^0.5,"") ->  | T87: 201.05 | U87: 62 | W87: 0.999961465 | Y87: 1.593 | Z87: 0.9783126617 | AA87: 0.08480453786 | AB87: 0.01667773173 | AC87: 0.9121187628 | AD87: 0.8476609904 | AE87: 0.3506042926 | AF87: 0.276407867
A88: 0.276407867 | C88: 159.3 | D88: 0.008268196719 | F88: 0.01152090845 | O88: =IF(K88="","",AVERAGE(L$26:L88)) ->  | P88: =IFERROR(_xlfn.STDEV.S(L$26:L88)/J88^0.5,"") ->  | T88: 201.05 | U88: 63 | W88: 0.9999717134 | Y88: 1.604 | Z88: 0.9787807846 | AA88: 0.0926274227 | AB88: 0.01813777139 | AC88: 0.9166167095 | AD88: 0.8611830516 | AE88: 0.3641767606 | AF88: 0.2844933689
A89: =OFFSET(W88,,B$11-1) -> 0.2844933689 | C89: 160.4 | D89: =_xlfn.T.DIST((C89+B$22/2-B$17)/B$18,B$9-1,1)-_xlfn.T.DIST((C89-B$22/2-B$17)/B$18,B$9-1,1) -> 0.008381907102 | F89: =_xlfn.T.DIST((C89+B$22/2-B$17)/B$19,B$9-1,1)-_xlfn.T.DIST((C89-B$22/2-B$17)/B$19,B$9-1,1) -> 0.01219670391 | O89: =IF(K89="","",AVERAGE(L$26:L89)) ->  | P89: =IFERROR(_xlfn.STDEV.S(L$26:L89)/J89^0.5,"") ->  | T89: 201.05 | U89: 64 | W89: =NORMDIST(C90,100,15,1) -> 0.9999793425 | X89: =IFERROR(BETADIST(C90,6,3,0,100),"") ->  | Y89: =C90/100 -> 1.615 | Z89: 0.9792372204 | AA89: 0.1009615846 | AB89: 0.01974311906 | AC89: 0.9207575629 | AD89: 0.8742508061 | AE89: 0.3778019698 | AF89: 0.2921313972
A90: 0.2921313972 | C90: =C89+OFFSET(W$23,,B$11-1) -> 161.5 | D90: 0.008491356502 | F90: 0.01288725414 | I90: =IF(L90<>"",0,"") ->  | J90: =IF(B$9>J89,J89+1,"") ->  | K90: =IFERROR(( MOD(( MOD( MOD( 999999999999989, MOD( PM_Index*2499997 +$J90*1800451, 7450589 ) * 4658 + 7450581 ) * 383, 99991 ) * 7440893 + MOD( MOD( 999999999999989, MOD( PM_Index*2246527 +$J90*2399993, 7450987 ) * 7580 + 7560584 ) * 17669, 7440893 )) * 1343, 4294967296 ) + 0.5 ) / 4294967296,"") ->  | M90: =IF(L90="",NA(),L90) ->  | O90: =IF(K90="","",AVERAGE(L$26:L90)) ->  | P90: =IFERROR(_xlfn.STDEV.S(L$26:L90)/J90^0.5,"") ->  | T90: =OFFSET(W$19,,B$11-1) -> 201.05 | U90: 65 | W90: 0.9999849912 | Y90: 1.626 | Z90: =_xlfn.LOGNORM.DIST(C91,(LN(120)+LN(10))/2,(LN(120)-LN(10))/3.29,1) -> 0.9796823014 | AA90: 0.1098179586 | AB90: 0.02142544413 | AC90: 0.924573281 | AD90: 0.8862389385 | AE90: 0.3914734724 | AF90: 0.2993679263
A91: 0.2993679263 | B91: =IF(B$12,A91-A90,"") ->  | C91: 162.6 | D91: 0.00859624276 | F91: 0.01358849292 | L91: =IFERROR(VLOOKUP(K91,A$25:C$225,3),"") ->  | O91: =IF(K91="","",AVERAGE(L$26:L91)) ->  | P91: =IFERROR(_xlfn.STDEV.S(L$26:L91)/J91^0.5,"") ->  | T91: 201.05 | U91: 66 | W91: 0.9999891513 | Y91: 1.637 | Z91: 0.9801163489 | AA91: 0.119206019 | AB91: 0.02312864799 | AC91: 0.9280947239 | AD91: 0.8971968971 | AE91: 0.4051811459 | AF91: 0.3062734768
A92: 0.3062734768 | C92: 163.7 | D92: 0.008696269982 | F92: 0.01429568738 | O92: =IF(K92="","",AVERAGE(L$26:L92)) ->  | P92: =IFERROR(_xlfn.STDEV.S(L$26:L92)/J92^0.5,"") ->  | Q92: =IFERROR(TINV(0.1,J92-1)*P92,"") ->  | R92: =IFERROR(O92+Q92,"") ->  | S92: =IFERROR(O92-Q92,"") ->  | T92: 201.05 | U92: 67 | W92: 0.9999921985 | Y92: 1.648 | Z92: 0.9805396742 | AA92: 0.1291325648 | AB92: 0.02485526142 | AC92: 0.9313509545 | AD92: 0.907332777 | AE92: 0.4189107412 | AF92: 0.3129331797
A93: 0.3129331797 | C93: 164.8 | D93: 0.008791150207 | F93: 0.01500344632 | O93: =IF(K93="","",AVERAGE(L$26:L93)) ->  | P93: =IFERROR(_xlfn.STDEV.S(L$26:L93)/J93^0.5,"") ->  | T93: 201.05 | U93: 68 | W93: 0.9999944187 | Y93: 1.659 | Z93: 0.9809525789 | AA93: 0.1396025851 | AB93: 0.02666665542 | AC93: 0.934368706 | AD93: 0.9164024271 | AE93: 0.4326427946 | AF93: 0.3193959319
A94: 0.3193959319 | C94: 165.9 | D94: 0.008880605085 | F94: 0.0157057512 | O94: =IF(K94="","",AVERAGE(L$26:L94)) ->  | P94: =IFERROR(_xlfn.STDEV.S(L$26:L94)/J94^0.5,"") ->  | T94: 201.05 | U94: 69 | W94: 0.9999960276 | Y94: 1.67 | Z94: 0.9813553548 | AA94: 0.1506180201 | AB94: 0.02864845417 | AC94: 0.9371723326 | AD94: 0.9246304252 | AE94: 0.44635154 | AF94: 0.3257032273
A95: 0.3257032273 | C95: 167 | D95: 0.00896436753 | F95: 0.01639601244 | O95: =IF(K95="","",AVERAGE(L$26:L95)) ->  | P95: =IFERROR(_xlfn.STDEV.S(L$26:L95)/J95^0.5,"") ->  | T95: 201.05 | U95: 70 | W95: 0.9999971873 | Y95: 1.681 | Z95: 0.9817482847 | AA95: 0.1621786921 | AB95: 0.03085042934 | AC95: 0.9397840582 | AD95: 0.9318086761 | AE95: 0.4600082294 | AF95: 0.3319004563
A96: 0.3319004563 | C96: 168.1 | D96: 0.009042183368 | F96: 0.01706715324 | O96: =IF(K96="","",AVERAGE(L$26:L96)) ->  | P96: =IFERROR(_xlfn.STDEV.S(L$26:L96)/J96^0.5,"") ->  | T96: 201.05 | U96: 71 | W96: 0.9999980187 | Y96: 1.692 | Z96: 0.9821316426 | AA96: 0.1742810718 | AB96: 0.03327194826 | AC96: 0.9422243234 | AD96: 0.9378547661 | AE96: 0.4735844531 | AF96: 0.3380335935
A97: 0.3380335935 | C97: 169.2 | D97: 0.009113812926 | F97: 0.01771172163 | O97: =IF(K97="","",AVERAGE(L$26:L97)) ->  | P97: =IFERROR(_xlfn.STDEV.S(L$26:L97)/J97^0.5,"") ->  | T97: 201.05 | U97: 72 | W97: 0.9999986115 | Y97: 1.703 | Z97: 0.9825056936 | AA97: 0.186919568 | AB97: 0.03587104241 | AC97: 0.9445121483 | AD97: 0.9431364671 | AE97: 0.4870550979 | AF97: 0.3441160806
A98: 0.3441160806 | C98: 170.3 | D98: 0.009179032566 | F98: 0.01832203008 | O98: =IF(K98="","",AVERAGE(L$26:L98)) ->  | P98: =IFERROR(_xlfn.STDEV.S(L$26:L98)/J98^0.5,"") ->  | T98: 201.05 | U98: 73 | W98: 0.999999032 | Y98: 1.714 | Z98: 0.9828706951 | AA98: 0.2000851744 | AB98: 0.038620717 | AC98: 0.9466655945 | AD98: 0.9477969733 | AE98: 0.5004013047 | AF98: 0.3501418786
A99: 0.3501418786 | C99: 171.4 | D99: 0.00923763615 | F99: 0.01889032019 | O99: =IF(K99="","",AVERAGE(L$26:L99)) ->  | P99: =IFERROR(_xlfn.STDEV.S(L$26:L99)/J99^0.5,"") ->  | T99: 201.05 | U99: 74 | W99: 0.9999993287 | Y99: 1.725 | Z99: 0.983226896 | AA99: 0.2137665055 | AB99: 0.04152244829 | AC99: 0.9487020654 | AD99: 0.9517229657 | AE99: 0.5136116692 | AF99: 0.3560930652
A100: 0.3560930652 | C100: 172.5 | D100: 0.009289436405 | F100: 0.0194089483 | O100: =IF(K100="","",AVERAGE(L$26:L100)) ->  | P100: =IFERROR(_xlfn.STDEV.S(L$26:L100)/J100^0.5,"") ->  | T100: 201.05 | U100: 75 | W100: 0.9999995368 | Y100: 1.736 | Z100: 0.9835745379 | AA100: 0.2279484976 | AB100: 0.04462368812 | AC100: 0.9506383469 | AD100: 0.9552111341 | AE100: 0.5266834433 | AF100: 0.3620058746
A101: 0.3620058746 | C101: 173.6 | D101: 0.009334266187 | F101: 0.01987058563 | O101: =IF(K101="","",AVERAGE(L$26:L101)) ->  | P101: =IFERROR(_xlfn.STDEV.S(L$26:L101)/J101^0.5,"") ->  | T101: 201.05 | U101: 76 | W101: 0.9999996821 | Y101: 1.747 | Z101: 0.9839138547 | AA101: 0.2426142971 | AB101: 0.04798180044 | AC101: 0.9524902173 | AD101: 0.9581873062 | AE101: 0.5396194397 | AF101: 0.3679180996
A102: 0.3679180996 | C102: 174.7 | D102: 0.009371979623 | F102: 0.02026842534 | O102: =IF(K102="","",AVERAGE(L$26:L102)) ->  | P102: =IFERROR(_xlfn.STDEV.S(L$26:L102)/J102^0.5,"") ->  | T102: 201.05 | U102: 77 | W102: 0.9999997829 | Y102: 1.758 | Z102: 0.9842450732 | AA102: 0.2577436102 | AB102: 0.05164761142 | AC102: 0.9542717342 | AD102: 0.9607967364 | AE102: 0.5524249374 | AF102: 0.3738640264
A103: 0.3738640264 | C103: 175.8 | D103: 0.009402453118 | F103: 0.02059638712 | O103: =IF(K103="","",AVERAGE(L$26:L103)) ->  | P103: =IFERROR(_xlfn.STDEV.S(L$26:L103)/J103^0.5,"") ->  | T103: 201.05 | U103: 78 | W103: 0.9999998525 | Y103: 1.769 | Z103: 0.9845684134 | AA103: 0.2733141553 | AB103: 0.0556196448 | AC103: 0.955994489 | AD103: 0.9630157308 | AE103: 0.5651045785 | AF103: 0.3798346938
A104: 0.3798346938 | C104: 176.9 | D104: 0.00942558622 | F104: 0.02084930955 | O104: =IF(K104="","",AVERAGE(L$26:L104)) ->  | P104: =IFERROR(_xlfn.STDEV.S(L$26:L104)/J104^0.5,"") ->  | T104: 201.05 | U104: 79 | W104: 0.9999999004 | Y104: 1.78 | Z104: 0.9848840884 | AA104: 0.2893004564 | AB104: 0.05986816409 | AC104: 0.9576670057 | AD104: 0.9650935913 | AE104: 0.5776592658 | AF104: 0.3858086729
A105: 0.3858086729 | C105: 178 | D105: 0.009441302323 | F105: 0.02102312021 | O105: =IF(K105="","",AVERAGE(L$26:L105)) ->  | P105: =IFERROR(_xlfn.STDEV.S(L$26:L105)/J105^0.5,"") ->  | T105: 201.05 | U105: 80 | W105: 0.999999933 | Y105: 1.791 | Z105: 0.9851923048 | AA105: 0.3056752328 | AB105: 0.06436997063 | AC105: 0.959294288 | AD105: 0.9670169258 | AE105: 0.5900860494 | AF105: 0.3917740805
A106: 0.3917740805 | C106: 179.1 | D106: 0.009449549211 | F106: 0.02111497403 | O106: =IF(K106="","",AVERAGE(L$26:L106)) ->  | P106: =IFERROR(_xlfn.STDEV.S(L$26:L106)/J106^0.5,"") ->  | T106: 201.05 | U106: 81 | W106: 0.9999999552 | Y106: 1.802 | Z106: 0.9854932633 | AA106: 0.3224081593 | AB106: 0.06916682203 | AC106: 0.9608777233 | AD106: 0.968737316 | AE106: 0.6023780144 | AF106: 0.3977377348
A107: 0.3977377348 | C107: 180.2 | D107: 0.009450299428 | F107: 0.02112335221 | O107: =IF(K107="","",AVERAGE(L$26:L107)) ->  | P107: =IFERROR(_xlfn.STDEV.S(L$26:L107)/J107^0.5,"") ->  | T107: 201.05 | U107: 82 | W107: 0.9999999702 | Y107: 1.813 | Z107: 0.9857871582 | AA107: 0.3394676146 | AB107: 0.07432557261 | AC107: 0.9624153287 | AD107: 0.9703546888 | AE107: 0.6145283425 | AF107: 0.4036811291
A108: 0.4036811291 | C108: 181.3 | D108: 0.009443550475 | F108: 0.0210481157 | O108: =IF(K108="","",AVERAGE(L$26:L108)) ->  | P108: =IFERROR(_xlfn.STDEV.S(L$26:L108)/J108^0.5,"") ->  | T108: 201.05 | U108: 83 | W108: 0.9999999803 | Y108: 1.824 | Z108: 0.986074178 | AA108: 0.3568192719 | AB108: 0.07989219791 | AC108: 0.9639024202 | AD108: 0.9718608029 | AE108: 0.626534374 | AF108: 0.4095882891
A109: 0.4095882891 | C109: 182.4 | D109: 0.009429324826 | F109: 0.02089051009 | O109: =IF(K109="","",AVERAGE(L$26:L109)) ->  | P109: =IFERROR(_xlfn.STDEV.S(L$26:L109)/J109^0.5,"") ->  | T109: 201.05 | U109: 84 | W109: 0.999999987 | Y109: 1.835 | Z109: 0.9863545057 | AA109: 0.3744280049 | AB109: 0.08583907043 | AC109: 0.9653326669 | AD109: 0.9733174687 | AE109: 0.6383974065 | AF109: 0.4154344742
A110: 0.4154344742 | C110: 183.5 | D110: 0.009407669769 | F110: 0.02065312173 | O110: =IF(K110="","",AVERAGE(L$26:L110)) ->  | P110: =IFERROR(_xlfn.STDEV.S(L$26:L110)/J110^0.5,"") ->  | T110: 201.05 | U110: 85 | W110: 0.9999999915 | Y110: 1.846 | Z110: 0.9866283188 | AA110: 0.3922564956 | AB110: 0.09211325504 | AC110: 0.9666992625 | AD110: 0.9747391085 | AE110: 0.6501224933 | AF110: 0.4212405289
A111: 0.4212405289 | C111: 184.6 | D111: 0.00937865707 | F111: 0.02033978748 | O111: =IF(K111="","",AVERAGE(L$26:L111)) ->  | P111: =IFERROR(_xlfn.STDEV.S(L$26:L111)/J111^0.5,"") ->  | T111: 201.05 | U111: 86 | W111: 0.9999999945 | Y111: 1.857 | Z111: 0.9868957893 | AA111: 0.4102670367 | AB111: 0.09866223839 | AC111: 0.9679960126 | AD111: 0.9761216017 | AE111: 0.6617153405 | AF111: 0.4270384017
A112: 0.4270384017 | C112: 185.7 | D112: 0.009342382464 | F112: 0.01995546368 | O112: =IF(K112="","",AVERAGE(L$26:L112)) ->  | P112: =IFERROR(_xlfn.STDEV.S(L$26:L112)/J112^0.5,"") ->  | T112: 201.05 | U112: 87 | W112: 0.9999999964 | Y112: 1.868 | Z112: 0.9871570844 | AA112: 0.4284200482 | AB112: 0.1054950891 | AC112: 0.969218307 | AD112: 0.9774834915 | AE112: 0.6731792041 | AF112: 0.4328596514
A113: 0.4328596514 | C113: 186.8 | D113: 0.00929896498 | F113: 0.01950606168 | O113: =IF(K113="","",AVERAGE(L$26:L113)) ->  | P113: =IFERROR(_xlfn.STDEV.S(L$26:L113)/J113^0.5,"") ->  | T113: 201.05 | U113: 88 | W113: 0.9999999977 | Y113: 1.879 | Z113: 0.9874123663 | AA113: 0.4466759907 | AB113: 0.1126676947 | AC113: 0.9703638404 | AD113: 0.9788093251 | AE113: 0.6845089906 | AF113: 0.4386846025
A114: 0.4386846025 | C114: 187.9 | D114: 0.009248546114 | F114: 0.01899825913 | O114: =IF(K114="","",AVERAGE(L$26:L114)) ->  | P114: =IFERROR(_xlfn.STDEV.S(L$26:L114)/J114^0.5,"") ->  | T114: 201.05 | U114: 89 | W114: 0.9999999985 | Y114: 1.89 | Z114: 0.9876617921 | AA114: 0.4649942479 | AB114: 0.1202964705 | AC114: 0.9714331155 | AD114: 0.9801032234 | AE114: 0.6956853572 | AF114: 0.4444978651
A115: 0.4444978651 | C115: 189 | D115: 0.00919128884 | F115: 0.01843929705 | O115: =IF(K115="","",AVERAGE(L$26:L115)) ->  | P115: =IFERROR(_xlfn.STDEV.S(L$26:L115)/J115^0.5,"") ->  | T115: 201.05 | U115: 90 | W115: 0.9999999991 | Y115: 1.901 | Z115: 0.9879055148 | AA115: 0.4833349757 | AB115: 0.1284877085 | AC115: 0.9724296363 | AD115: 0.9813311906 | AE115: 0.7066797009 | AF115: 0.450274309
A116: 0.450274309 | C116: 190.1 | D116: 0.009127376505 | F116: 0.01783677249 | O116: =IF(K116="","",AVERAGE(L$26:L116)) ->  | P116: =IFERROR(_xlfn.STDEV.S(L$26:L116)/J116^0.5,"") ->  | T116: 201.05 | U116: 91 | W116: 0.9999999994 | Y116: 1.912 | Z116: 0.9881436825 | AA116: 0.5016574062 | AB116: 0.1373394758 | AC116: 0.973359723 | AD116: 0.9825045585 | AE116: 0.7174591471 | AF116: 0.4560162719
A117: 0.4560162719 | C117: 191.2 | D117: 0.009057011579 | F117: 0.01719843629 | O117: =IF(K117="","",AVERAGE(L$26:L117)) ->  | P117: =IFERROR(_xlfn.STDEV.S(L$26:L117)/J117^0.5,"") ->  | T117: 201.05 | U117: 92 | W117: 0.9999999996 | Y117: 1.923 | Z117: 0.9883764393 | AA117: 0.5199222859 | AB117: 0.1469032312 | AC117: 0.9742320608 | AD117: 0.9836913187 | AE117: 0.7279922157 | AF117: 0.4617138186
A118: 0.4617138186 | C118: 192.3 | D118: 0.008980414315 | F118: 0.0165320041 | O118: =IF(K118="","",AVERAGE(L$26:L118)) ->  | P118: =IFERROR(_xlfn.STDEV.S(L$26:L118)/J118^0.5,"") ->  | T118: 201.05 | U118: 93 | W118: 0.9999999998 | Y118: 1.934 | Z118: 0.9886039248 | AA118: 0.5380904231 | AB118: 0.1572038606 | AC118: 0.9750571102 | AD118: 0.9847451865 | AE118: 0.7382544865 | AF118: 0.4673544814
A119: 0.4673544814 | C119: 193.4 | D119: 0.008897821298 | F119: 0.01584498701 | O119: =IF(K119="","",AVERAGE(L$26:L119)) ->  | P119: =IFERROR(_xlfn.STDEV.S(L$26:L119)/J119^0.5,"") ->  | T119: 201.05 | U119: 94 | W119: 0.9999999999 | Y119: 1.945 | Z119: 0.9888262747 | AA119: 0.5561243154 | AB119: 0.1681557398 | AC119: 0.9758463479 | AD119: 0.985749606 | AE119: 0.748234241 | AF119: 0.472920338
A120: 0.472920338 | C120: 194.5 | D120: 0.00880948393 | F120: 0.01514454671 | O120: =IF(K120="","",AVERAGE(L$26:L120)) ->  | P120: =IFERROR(_xlfn.STDEV.S(L$26:L120)/J120^0.5,"") ->  | T120: 201.05 | U120: 95 | W120: 0.9999999999 | Y120: 1.956 | Z120: 0.9890436208 | AA120: 0.5739868181 | AB120: 0.1795844571 | AC120: 0.9766113433 | AD120: 0.9866942753 | AE120: 0.757938104 | AF120: 0.4784456745
A121: 0.4784456745 | C121: 195.6 | D121: 0.008715666843 | F121: 0.01443737785 | O121: =IF(K121="","",AVERAGE(L$26:L121)) ->  | P121: =IFERROR(_xlfn.STDEV.S(L$26:L121)/J121^0.5,"") ->  | T121: 201.05 | U121: 96 | W121: 0.9999999999 | Y121: 1.967 | Z121: 0.9892560912 | AA121: 0.591642945 | AB121: 0.1912607673 | AC121: 0.9773626744 | AD121: 0.98761113 | AE121: 0.7673826298 | AF121: 0.4839610758
A122: 0.4839610758 | C122: =C121+OFFSET(W$23,,B$11-1) -> 196.7 | D122: 0.008616646267 | F122: 0.01372961852 | I122: =IF(L122<>"",0,"") ->  | J122: =IF(B$9>J121,J121+1,"") ->  | K122: =IFERROR(( MOD(( MOD( MOD( 999999999999989, MOD( PM_Index*2499997 +$J122*1800451, 7450589 ) * 4658 + 7450581 ) * 383, 99991 ) * 7440893 + MOD( MOD( 999999999999989, MOD( PM_Index*2246527 +$J122*2399993, 7450987 ) * 7580 + 7560584 ) * 17669, 7440893 )) * 1343, 4294967296 ) + 0.5 ) / 4294967296,"") ->  | M122: =IF(L122="",NA(),L122) ->  | O122: =IF(K122="","",AVERAGE(L$26:L122)) ->  | P122: =IFERROR(_xlfn.STDEV.S(L$26:L122)/J122^0.5,"") ->  | T122: =OFFSET(W$19,,B$11-1) -> 201.05 | U122: 97 | W122: 1 | Y122: 1.978 | Z122: 0.9894638102 | AA122: 0.6090584284 | AB122: 0.2030581325 | AC122: 0.978108838 | AD122: 0.9885135622 | AE122: 0.7765858876 | AF122: 0.4895053087
A123: 0.4895053087 | C123: 197.8 | D123: 0.008512708374 | F123: 0.01302678866 | O123: =IF(K123="","",AVERAGE(L$26:L123)) ->  | P123: =IFERROR(_xlfn.STDEV.S(L$26:L123)/J123^0.5,"") ->  | T123: 201.05 | U123: 98 | W123: 1 | Y123: 1.989 | Z123: 0.9896668984 | AA123: 0.6262016224 | AB123: 0.2149584153 | AC123: 0.9788553485 | AD123: 0.9893809686 | AE123: 0.7855631662 | AF123: 0.4950680483
A124: 0.4950680483 | C124: 198.9 | D124: 0.008404147607 | F124: 0.01233375413 | O124: =IF(K124="","",AVERAGE(L$26:L124)) ->  | P124: =IFERROR(_xlfn.STDEV.S(L$26:L124)/J124^0.5,"") ->  | T124: 201.05 | U124: 99 | W124: 1 | Y124: 2 | Z124: 0.9898654732 | AA124: 0.6430418727 | AB124: 0.2270786637 | AC124: 0.979604115 | AD124: 0.9901494782 | AE124: 0.7943226783 | AF124: 0.5006329309
A125: 0.5006329309 | C125: 200 | D125: 0.008291265002 | F125: 0.01165471419 | O125: =IF(K125="","",AVERAGE(L$26:L125)) ->  | P125: =IFERROR(_xlfn.STDEV.S(L$26:L125)/J125^0.5,"") ->  | T125: 201.05 | U125: 100 | W125: 1 | Y125: 2.011 | Z125: 0.9900596486 | AA125: 0.6595514065 | AB125: 0.2395806356 | AC125: 0.9803531082 | AD125: 0.9909015051 | AE125: 0.8028628118 | AF125: 0.5061814495
A126: 0.5061814495 | C126: 201.1 | D126: 0.008174366543 | F126: 0.01099320874 | O126: =IF(K126="","",AVERAGE(L$26:L126)) ->  | P126: =IFERROR(_xlfn.STDEV.S(L$26:L126)/J126^0.5,"") ->  | T126: 201.05 | U126: 101 | W126: 1 | Y126: 2.022 | Z126: 0.9902495354 | AA126: 0.6757039609 | AB126: 0.2526815549 | AC126: 0.9810964423 | AD126: 0.9916700147 | AE126: 0.8111693823 | AF126: 0.5117167213
A127: 0.5117167213 | C127: 202.2 | D127: 0.008053761533 | F127: 0.01035214187 | O127: =IF(K127="","",AVERAGE(L$26:L127)) ->  | P127: =IFERROR(_xlfn.STDEV.S(L$26:L127)/J127^0.5,"") ->  | T127: 201.05 | U127: 102 | W127: 1 | Y127: 2.033 | Z127: 0.9904352411 | AA127: 0.6914764069 | AB127: 0.2665128103 | AC127: 0.9818249923 | AD127: 0.992406589 | AE127: 0.8192243122 | AF127: 0.5172227718
A128: 0.5172227718 | C128: 203.3 | D128: 0.00792976102 | F128: 0.009733818044 | O128: =IF(K128="","",AVERAGE(L$26:L128)) ->  | P128: =IFERROR(_xlfn.STDEV.S(L$26:L128)/J128^0.5,"") ->  | T128: 201.05 | U128: 103 | W128: 1 | Y128: 2.044 | Z128: 0.9906168704 | AA128: 0.7068472396 | AB128: 0.2811129961 | AC128: 0.9825275138 | AD128: 0.9930669304 | AE128: 0.8270143116 | AF128: 0.5226849906
A129: 0.5226849906 | C129: 204.4 | D129: 0.00780267627 | F129: 0.009139987486 | O129: =IF(K129="","",AVERAGE(L$26:L129)) ->  | P129: =IFERROR(_xlfn.STDEV.S(L$26:L129)/J129^0.5,"") ->  | T129: 201.05 | U129: 104 | W129: 1 | Y129: 2.055 | Z129: 0.990794525 | AA129: 0.7217980248 | AB129: 0.2963764528 | AC129: 0.9831920795 | AD129: 0.9936767933 | AE129: 0.834532554 | AF129: 0.5280879877
A130: 0.5280879877 | C130: 205.5 | D130: 0.007672817314 | F130: 0.008571897512 | O130: =IF(K130="","",AVERAGE(L$26:L130)) ->  | P130: =IFERROR(_xlfn.STDEV.S(L$26:L130)/J130^0.5,"") ->  | T130: 201.05 | U130: 105 | W130: 1 | Y130: 2.066 | Z130: 0.9909683035 | AA130: 0.7363121048 | AB130: 0.3122074332 | AC130: 0.9838075925 | AD130: 0.9942495699 | AE130: 0.8417803533 | AF130: 0.5334602052
A131: 0.5334602052 | C131: 206.6 | D131: 0.007540491566 | F131: 0.008030347148 | O131: =IF(K131="","",AVERAGE(L$26:L131)) ->  | P131: =IFERROR(_xlfn.STDEV.S(L$26:L131)/J131^0.5,"") ->  | T131: 201.05 | U131: 106 | W131: 1 | Y131: 2.077 | Z131: 0.9911383022 | AA131: 0.7503759536 | AB131: 0.3284939511 | AC131: 0.9843651709 | AD131: 0.9947986525 | AE131: 0.848768372 | AF131: 0.5388378774
A132: 0.5388378774 | C132: 207.7 | D132: 0.007406002524 | F132: 0.007515742671 | O132: =IF(K132="","",AVERAGE(L$26:L132)) ->  | P132: =IFERROR(_xlfn.STDEV.S(L$26:L132)/J132^0.5,"") ->  | T132: 201.05 | U132: 107 | W132: 1 | Y132: 2.088 | Z132: 0.9913046143 | AA132: 0.7639773339 | AB132: 0.3451729482 | AC132: 0.9848592922 | AD132: 0.9953652481 | AE132: 0.8555178307 | AF132: 0.5442595761
A133: 0.5442595761 | C133: 208.8 | D133: 0.007269648563 | F133: 0.007028152239 | O133: =IF(K133="","",AVERAGE(L$26:L133)) ->  | P133: =IFERROR(_xlfn.STDEV.S(L$26:L133)/J133^0.5,"") ->  | T133: 201.05 | U133: 108 | W133: 1 | Y133: 2.099 | Z133: 0.9914673308 | AA133: 0.7771067933 | AB133: 0.3621358126 | AC133: 0.9852885252 | AD133: 0.9958288263 | AE133: 0.8620545438 | AF133: 0.549716535
A134: 0.549716535 | C134: 209.9 | D134: 0.007131721823 | F134: 0.006567358193 | O134: =IF(K134="","",AVERAGE(L$26:L134)) ->  | P134: =IFERROR(_xlfn.STDEV.S(L$26:L134)/J134^0.5,"") ->  | T134: 201.05 | U134: 109 | W134: 1 | Y134: 2.11 | Z134: 0.9916265398 | AA134: 0.7897564079 | AB134: 0.3793281329 | AC134: 0.9856556775 | AD134: 0.9962501674 | AE134: 0.8684029558 | AF134: 0.5551999878
A135: 0.5551999878 | C135: 211 | D135: 0.006992507193 | F135: 0.006132905998 | O135: =IF(K135="","",AVERAGE(L$26:L135)) ->  | P135: =IFERROR(_xlfn.STDEV.S(L$26:L135)/J135^0.5,"") ->  | T135: 201.05 | U135: 110 | W135: 1 | Y135: 2.121 | Z135: 0.9917823272 | AA135: 0.8019210805 | AB135: 0.3966933887 | AC135: 0.9859673724 | AD135: 0.9966560559 | AE135: 0.8745849399 | AF135: 0.5607031163
A136: 0.5607031163 | C136: 212.1 | D136: 0.006852281398 | F136: 0.005724149168 | O136: =IF(K136="","",AVERAGE(L$26:L136)) ->  | P136: =IFERROR(_xlfn.STDEV.S(L$26:L136)/J136^0.5,"") ->  | T136: 201.05 | U136: 111 | W136: 1 | Y136: 2.132 | Z136: 0.9919347766 | AA136: 0.813597312 | AB136: 0.4142912639 | AC136: 0.9862331829 | AD136: 0.9970289788 | AE136: 0.8806185977 | AF136: 0.5662399465
A137: 0.5662399465 | C137: 213.2 | D137: 0.00671131219 | F137: 0.005340289778 | O137: =IF(K137="","",AVERAGE(L$26:L137)) ->  | P137: =IFERROR(_xlfn.STDEV.S(L$26:L137)/J137^0.5,"") ->  | T137: 201.05 | U137: 112 | W137: 1 | Y137: 2.143 | Z137: 0.9920839691 | AA137: 0.8247843299 | AB137: 0.4322250979 | AC137: 0.986464509 | AD137: 0.9973905698 | AE137: 0.8865159056 | AF137: 0.571815933
A138: 0.571815933 | C138: 214.3 | D138: 0.006569857636 | F138: 0.00498041442 | O138: =IF(K138="","",AVERAGE(L$26:L138)) ->  | P138: =IFERROR(_xlfn.STDEV.S(L$26:L138)/J138^0.5,"") ->  | T138: 201.05 | U138: 113 | W138: 1 | Y138: 2.154 | Z138: 0.9922299838 | AA138: 0.8354827709 | AB138: 0.4506657173 | AC138: 0.9866733789 | AD138: 0.9977068331 | AE138: 0.8922803613 | AF138: 0.5774306864
A139: 0.5774306864 | C139: 215.4 | D139: 0.006428165512 | F139: 0.004643525639 | O139: =IF(K139="","",AVERAGE(L$26:L139)) ->  | P139: =IFERROR(_xlfn.STDEV.S(L$26:L139)/J139^0.5,"") ->  | T139: 201.05 | U139: 114 | W139: 1 | Y139: 2.165 | Z139: 0.9923728975 | AA139: 0.8456958816 | AB139: 0.4696139658 | AC139: 0.9868712968 | AD139: 0.9979592257 | AE139: 0.8979091603 | AF139: 0.5830838169
A140: 0.5830838169 | C140: 216.5 | D140: 0.006286472794 | F140: 0.004328569014 | O140: =IF(K140="","",AVERAGE(L$26:L140)) ->  | P140: =IFERROR(_xlfn.STDEV.S(L$26:L140)/J140^0.5,"") ->  | T140: 201.05 | U140: 115 | W140: 1 | Y140: 2.176 | Z140: 0.992512785 | AA140: 0.855428088 | AB140: 0.4889099833 | AC140: 0.9870682777 | AD140: 0.9981817433 | AE140: 0.9033953712 | AF140: 0.5888152602
A141: 0.5888152602 | C141: 217.6 | D141: 0.006145005248 | F141: 0.004034456156 | O141: =IF(K141="","",AVERAGE(L$26:L141)) ->  | P141: =IFERROR(_xlfn.STDEV.S(L$26:L141)/J141^0.5,"") ->  | T141: 201.05 | U141: 116 | W141: 1 | Y141: 2.187 | Z141: 0.992649719 | AA141: 0.8646859338 | AB141: 0.5082437513 | AC141: 0.9872722152 | AD141: 0.9983888082 | AE141: 0.9087289361 | AF141: 0.5946696272
A142: 0.5946696272 | C142: 218.7 | D142: 0.006003977106 | F142: 0.003760083943 | O142: =IF(K142="","",AVERAGE(L$26:L142)) ->  | P142: =IFERROR(_xlfn.STDEV.S(L$26:L142)/J142^0.5,"") ->  | T142: 201.05 | U142: 117 | W142: 1 | Y142: 2.198 | Z142: 0.9927837703 | AA142: 0.8734769401 | AB142: 0.5274153396 | AC142: 0.9874886042 | AD142: 0.9985701188 | AE142: 0.9138976688 | AF142: 0.6006917239
A143: 0.6006917239 | C143: 219.8 | D143: 0.005863590839 | F143: 0.003504350355 | O143: =IF(K143="","",AVERAGE(L$26:L143)) ->  | P143: =IFERROR(_xlfn.STDEV.S(L$26:L143)/J143^0.5,"") ->  | T143: 201.05 | U143: 118 | W143: 1 | Y143: 2.209 | Z143: 0.9929150078 | AA143: 0.8818105938 | AB143: 0.5462840799 | AC143: 0.9877205912 | AD143: 0.9987473087 | AE143: 0.9188896818 | AF143: 0.6068603161
A144: 0.6068603161 | C144: 220.9 | D144: 0.005724037008 | F144: 0.00326616728 | O144: =IF(K144="","",AVERAGE(L$26:L144)) ->  | P144: =IFERROR(_xlfn.STDEV.S(L$26:L144)/J144^0.5,"") ->  | T144: 201.05 | U144: 119 | W144: 1 | Y144: 2.22 | Z144: 0.9930434985 | AA144: 0.8896971792 | AB144: 0.5647940844 | AC144: 0.9879692551 | AD144: 0.9989049253 | AE144: 0.9236958114 | AF144: 0.6131341046
A145: 0.6131341046 | C145: 222 | D145: 0.005585494196 | F145: 0.003044470664 | O145: =IF(K145="","",AVERAGE(L$26:L145)) ->  | P145: =IFERROR(_xlfn.STDEV.S(L$26:L145)/J145^0.5,"") ->  | T145: 201.05 | U145: 120 | W145: 1 | Y145: 2.231 | Z145: 0.9931693078 | AA145: 0.8971484237 | AB145: 0.5828797643 | AC145: 0.9882340277 | AD145: 0.9990460591 | AE145: 0.9283096182 | AF145: 0.6194719849
A146: 0.6194719849 | C146: 223.1 | D146: 0.00544812901 | F146: 0.002838228344 | O146: =IF(K146="","",AVERAGE(L$26:L146)) ->  | P146: =IFERROR(_xlfn.STDEV.S(L$26:L146)/J146^0.5,"") ->  | T146: 201.05 | U146: 121 | W146: 1 | Y146: 2.242 | Z146: 0.993292499 | AA146: 0.9041766453 | AB146: 0.600638132 | AC146: 0.9885131801 | AD146: 0.9991408351 | AE146: 0.9327273866 | AF146: 0.6258449306
A147: 0.6258449306 | C147: 224.2 | D147: 0.005312096156 | F147: 0.002646445917 | O147: =IF(K147="","",AVERAGE(L$26:L147)) ->  | P147: =IFERROR(_xlfn.STDEV.S(L$26:L147)/J147^0.5,"") ->  | T147: 201.05 | U147: 122 | W147: 1 | Y147: 2.253 | Z147: 0.993413134 | AA147: 0.9107956576 | AB147: 0.6182292585 | AC147: 0.9888042981 | AD147: 0.9992263395 | AE147: 0.9369479563 | AF147: 0.6322139801
A148: 0.6322139801 | C148: 225.3 | D148: 0.005177538567 | F148: 0.00246817093 | O148: =IF(K148="","",AVERAGE(L$26:L148)) ->  | P148: =IFERROR(_xlfn.STDEV.S(L$26:L148)/J148^0.5,"") ->  | T148: 201.05 | U148: 123 | W148: 1 | Y148: 2.264 | Z148: 0.993531273 | AA148: 0.9170196408 | AB148: 0.6358336715 | AC148: 0.9891046694 | AD148: 0.9993015422 | AE148: 0.940972552 | AF148: 0.6385354965
A149: 0.6385354965 | C149: 226.4 | D149: 0.005044587592 | F149: 0.002302495672 | O149: =IF(K149="","",AVERAGE(L$26:L149)) ->  | P149: =IFERROR(_xlfn.STDEV.S(L$26:L149)/J149^0.5,"") ->  | T149: 201.05 | U149: 124 | W149: 1 | Y149: 2.275 | Z149: 0.9936469746 | AA149: 0.9228638953 | AB149: 0.6534496838 | AC149: 0.9894115464 | AD149: 0.9993685035 | AE149: 0.9448038014 | AF149: 0.6447611675
A150: 0.6447611675 | C150: 227.5 | D150: 0.004913363236 | F150: 0.002148558813 | O150: =IF(K150="","",AVERAGE(L$26:L150)) ->  | P150: =IFERROR(_xlfn.STDEV.S(L$26:L150)/J150^0.5,"") ->  | T150: 201.05 | U150: 125 | W150: 1 | Y150: 2.286 | Z150: 0.9937602958 | AA150: 0.9283439511 | AB150: 0.6710051687 | AC150: 0.9897222636 | AD150: 0.9994220725 | AE150: 0.9484447508 | AF150: 0.6509194349
A151: 0.6509194349 | C151: 228.6 | D151: 0.004783974439 | F151: 0.002005546098 | O151: =IF(K151="","",AVERAGE(L$26:L151)) ->  | P151: =IFERROR(_xlfn.STDEV.S(L$26:L151)/J151^0.5,"") ->  | T151: 201.05 | U151: 126 | W151: 1 | Y151: 2.297 | Z151: 0.9938712923 | AA151: 0.9334760064 | AB151: 0.6883535527 | AC151: 0.990034248 | AD151: 0.9994591588 | AE151: 0.9518985918 | AF151: 0.6570630917
A152: 0.6570630917 | C152: 229.7 | D152: 0.004656519392 | F152: 0.001872690292 | O152: =IF(K152="","",AVERAGE(L$26:L152)) ->  | P152: =IFERROR(_xlfn.STDEV.S(L$26:L152)/J152^0.5,"") ->  | T152: 201.05 | U152: 127 | W152: 1 | Y152: 2.308 | Z152: 0.993980018 | AA152: 0.93827616 | AB152: 0.7054115317 | AC152: 0.9903449624 | AD152: 0.9994910941 | AE152: 0.955168387 | AF152: 0.6632449308
A153: =OFFSET(W152,,B$11-1) -> 0.6632449308 | C153: 230.8 | D153: =_xlfn.T.DIST((C153+B$22/2-B$17)/B$18,B$9-1,1)-_xlfn.T.DIST((C153-B$22/2-B$17)/B$18,B$9-1,1) -> 0.004531085892 | F153: =_xlfn.T.DIST((C153+B$22/2-B$17)/B$19,B$9-1,1)-_xlfn.T.DIST((C153-B$22/2-B$17)/B$19,B$9-1,1) -> 0.001749270519 | O153: =IF(K153="","",AVERAGE(L$26:L153)) ->  | P153: =IFERROR(_xlfn.STDEV.S(L$26:L153)/J153^0.5,"") ->  | T153: 201.05 | U153: 128 | W153: =NORMDIST(C154,100,15,1) -> 1 | X153: =IFERROR(BETADIST(C154,6,3,0,100),"") ->  | Y153: =C154/100 -> 2.319 | Z153: 0.9940865258 | AA153: 0.9427608643 | AB153: 0.7221183672 | AC153: 0.9906518149 | AD153: 0.9995209692 | AE153: 0.9582568766 | AF153: 0.6694704069
A154: 0.6694704069 | C154: =C153+OFFSET(W$23,,B$11-1) -> 231.9 | D154: 0.00440775172 | F154: 0.00163461115 | I154: =IF(L154<>"",0,"") ->  | J154: =IF(B$9>J153,J153+1,"") ->  | K154: =IFERROR(( MOD(( MOD( MOD( 999999999999989, MOD( PM_Index*2499997 +$J154*1800451, 7450589 ) * 4658 + 7450581 ) * 383, 99991 ) * 7440893 + MOD( MOD( 999999999999989, MOD( PM_Index*2246527 +$J154*2399993, 7450987 ) * 7580 + 7560584 ) * 17669, 7440893 )) * 1343, 4294967296 ) + 0.5 ) / 4294967296,"") ->  | M154: =IF(L154="",NA(),L154) ->  | O154: =IF(K154="","",AVERAGE(L$26:L154)) ->  | P154: =IFERROR(_xlfn.STDEV.S(L$26:L154)/J154^0.5,"") ->  | T154: =OFFSET(W$19,,B$11-1) -> 201.05 | U154: 129 | W154: 1 | Y154: 2.33 | Z154: =_xlfn.LOGNORM.DIST(C155,(LN(120)+LN(10))/2,(LN(120)-LN(10))/3.29,1) -> 0.9941908669 | AA154: 0.9469461155 | AB154: 0.7385350085 | AC154: 0.9909520715 | AD154: 0.9995508442 | AE154: 0.961166285 | AF154: 0.6757480916
A155: 0.6757480916 | B155: =IF(B$12,A155-A154,"") ->  | C155: 233 | D155: 0.004286585037 | F155: 0.001528080336 | L155: =IFERROR(VLOOKUP(K155,A$25:C$225,3),"") ->  | O155: =IF(K155="","",AVERAGE(L$26:L155)) ->  | P155: =IFERROR(_xlfn.STDEV.S(L$26:L155)/J155^0.5,"") ->  | T155: 201.05 | U155: 130 | W155: 1 | Y155: 2.341 | Z155: 0.9942930913 | AA155: 0.9508480368 | AB155: 0.7547251464 | AC155: 0.9912428071 | AD155: 0.9995765986 | AE155: 0.9638987802 | AF155: 0.6820918161
A156: 0.6820918161 | C156: 234.1 | D156: 0.004167644808 | F156: 0.001429088294 | O156: =IF(K156="","",AVERAGE(L$26:L156)) ->  | P156: =IFERROR(_xlfn.STDEV.S(L$26:L156)/J156^0.5,"") ->  | Q156: =IFERROR(TINV(0.1,J156-1)*P156,"") ->  | R156: =IFERROR(O156+Q156,"") ->  | S156: =IFERROR(O156-Q156,"") ->  | T156: 201.05 | U156: 131 | W156: 1 | Y156: 2.352 | Z156: 0.9943932477 | AA156: 0.9544821843 | AB156: 0.770721681 | AC156: 0.9915209244 | AD156: 0.9996002926 | AE156: 0.9664569332 | AF156: 0.688544633
A157: 0.688544633 | C157: 235.2 | D157: 0.004050981228 | F157: 0.001337085416 | O157: =IF(K157="","",AVERAGE(L$26:L157)) ->  | P157: =IFERROR(_xlfn.STDEV.S(L$26:L157)/J157^0.5,"") ->  | T157: 201.05 | U157: 132 | W157: 1 | Y157: 2.363 | Z157: 0.9944913836 | AA157: 0.9578640011 | AB157: 0.7864073534 | AC157: 0.9917832689 | AD157: 0.9996250167 | AE157: 0.9688441612 | AF157: 0.6951063476
A158: 0.6951063476 | C158: 236.3 | D158: 0.003936636166 | F158: 0.001251560269 | O158: =IF(K158="","",AVERAGE(L$26:L158)) ->  | P158: =IFERROR(_xlfn.STDEV.S(L$26:L158)/J158^0.5,"") ->  | T158: 201.05 | U158: 133 | W158: 1 | Y158: 2.374 | Z158: 0.9945875451 | AA158: 0.9610082046 | AB158: 0.8016486659 | AC158: 0.9920268117 | AD158: 0.9996518013 | AE158: 0.9710651709 | AF158: 0.7017648817
A159: 0.7017648817 | C159: 237.4 | D159: 0.003824643607 | F159: 0.001172037544 | O159: =IF(K159="","",AVERAGE(L$26:L159)) ->  | P159: =IFERROR(_xlfn.STDEV.S(L$26:L159)/J159^0.5,"") ->  | T159: 201.05 | U159: 134 | W159: 1 | Y159: 2.385 | Z159: 0.9946817774 | AA159: 0.9639292708 | AB159: 0.8163144406 | AC159: 0.9922488735 | AD159: 0.9996754953 | AE159: 0.9731267161 | AF159: 0.7085087416
A160: 0.7085087416 | C160: 238.5 | D160: 0.003715030101 | F160: 0.001098075973 | O160: =IF(K160="","",AVERAGE(L$26:L160)) ->  | P160: =IFERROR(_xlfn.STDEV.S(L$26:L160)/J160^0.5,"") ->  | T160: 201.05 | U160: 135 | W160: 1 | Y160: 2.396 | Z160: 0.9947741243 | AA160: 0.9666410076 | AB160: 0.8303766282 | AC160: 0.9924473622 | AD160: 0.9996960987 | AE160: 0.9750383554 | AF160: 0.7153796163
A161: 0.7153796163 | C161: 239.6 | D161: 0.00360781521 | F161: 0.001029266279 | O161: =IF(K161="","",AVERAGE(L$26:L161)) ->  | P161: =IFERROR(_xlfn.STDEV.S(L$26:L161)/J161^0.5,"") ->  | T161: 201.05 | U161: 136 | W161: 1 | Y161: 2.407 | Z161: 0.9948646286 | AA161: 0.969156905 | AB161: 0.8437995871 | AC161: 0.9926209967 | AD161: 0.9997105212 | AE161: 0.9768118958 | AF161: 0.7224108179
A162: 0.7224108179 | C162: 240.7 | D162: 0.003503011949 | F162: 0.0009652291541 | O162: =IF(K162="","",AVERAGE(L$26:L162)) ->  | P162: =IFERROR(_xlfn.STDEV.S(L$26:L162)/J162^0.5,"") ->  | T162: 201.05 | U162: 137 | W162: 1 | Y162: 2.418 | Z162: 0.9949533319 | AA162: 0.9714896868 | AB162: 0.8565753033 | AC162: 0.9927694931 | AD162: 0.9997239134 | AE162: 0.978460837 | AF162: 0.7296229961
A163: 0.7296229961 | C163: 241.8 | D163: 0.003400627223 | F163: 0.0009056133022 | O163: =IF(K163="","",AVERAGE(L$26:L163)) ->  | P163: =IFERROR(_xlfn.STDEV.S(L$26:L163)/J163^0.5,"") ->  | T163: 201.05 | U163: 138 | W163: 1 | Y163: 2.429 | Z163: 0.9950402749 | AA163: 0.9736517634 | AB163: 0.8686234249 | AC163: 0.9928936871 | AD163: 0.999739366 | AE163: 0.9799993475 | AF163: 0.7369582928
A164: 0.7369582928 | C164: 242.9 | D164: 0.003300662253 | F164: 0.0008500935526 | O164: =IF(K164="","",AVERAGE(L$26:L164)) ->  | P164: =IFERROR(_xlfn.STDEV.S(L$26:L164)/J164^0.5,"") ->  | T164: 201.05 | U164: 139 | W164: 1 | Y164: 2.44 | Z164: 0.9951254972 | AA164: 0.9756547324 | AB164: 0.8798821592 | AC164: 0.9929955698 | AD164: 0.9997496678 | AE164: 0.9814412412 | AF164: 0.7443705387
A165: 0.7443705387 | C165: 244 | D165: 0.003203112997 | F165: 0.000798369057 | O165: =IF(K165="","",AVERAGE(L$26:L165)) ->  | P165: =IFERROR(_xlfn.STDEV.S(L$26:L165)/J165^0.5,"") ->  | T165: 201.05 | U165: 140 | W165: 1 | Y165: 2.451 | Z165: 0.9952090374 | AA165: 0.9775096082 | AB165: 0.8902932986 | AC165: 0.9930782492 | AD165: 0.9997579092 | AE165: 0.9827985509 | AF165: 0.7518135642
A166: 0.7518135642 | C166: 245.1 | D166: 0.003107970552 | F166: 0.0007501615742 | O166: =IF(K166="","",AVERAGE(L$26:L166)) ->  | P166: =IFERROR(_xlfn.STDEV.S(L$26:L166)/J166^0.5,"") ->  | T166: 201.05 | U166: 141 | W166: 1 | Y166: 2.462 | Z166: 0.9952909331 | AA166: 0.9792265998 | AB166: 0.8999133635 | AC166: 0.9931458524 | AD166: 0.9997692411 | AE166: 0.9840801016 | AF166: 0.7592657456
A167: 0.7592657456 | C167: 246.2 | D167: 0.00301522155 | F167: 0.0007052138472 | O167: =IF(K167="","",AVERAGE(L$26:L167)) ->  | P167: =IFERROR(_xlfn.STDEV.S(L$26:L167)/J167^0.5,"") ->  | T167: 201.05 | U167: 142 | W167: 1 | Y167: 2.473 | Z167: 0.995371221 | AA167: 0.9808153776 | AB167: 0.9088191204 | AC167: 0.99320338 | AD167: 0.9997816032 | AE167: 0.9852917204 | AF167: 0.7666910436
A168: 0.7666910436 | C168: 247.3 | D168: 0.002924848535 | F168: 0.000663288073 | O168: =IF(K168="","",AVERAGE(L$26:L168)) ->  | P168: =IFERROR(_xlfn.STDEV.S(L$26:L168)/J168^0.5,"") ->  | T168: 201.05 | U168: 143 | W168: 1 | Y168: 2.484 | Z168: 0.9954499369 | AA168: 0.9822849136 | AB168: 0.9170759474 | AC168: 0.9932565296 | AD168: 0.9997939652 | AE168: 0.9864364457 | AF168: 0.7740588733
A169: 0.7740588733 | C169: 248.4 | D169: 0.002836830328 | F169: 0.0006241644658 | O169: =IF(K169="","",AVERAGE(L$26:L169)) ->  | P169: =IFERROR(_xlfn.STDEV.S(L$26:L169)/J169^0.5,"") ->  | T169: 201.05 | U169: 144 | W169: 1 | Y169: 2.495 | Z169: 0.9955271156 | AA169: 0.9836438026 | AB169: 0.9246543188 | AC169: 0.993311479 | AD169: 0.9998052972 | AE169: 0.9875153897 | AF169: 0.7813497538
A170: 0.7813497538 | C170: 249.5 | D170: 0.002751142373 | F170: 0.0005876399117 | O170: =IF(K170="","",AVERAGE(L$26:L170)) ->  | P170: =IFERROR(_xlfn.STDEV.S(L$26:L170)/J170^0.5,"") ->  | T170: 201.05 | U170: 145 | W170: 1 | Y170: 2.506 | Z170: 0.9956027912 | AA170: 0.9849000249 | AB170: 0.9315234437 | AC170: 0.9933746275 | AD170: 0.9998145687 | AE170: 0.9885286008 | AF170: 0.7886303095
A171: 0.7886303095 | C171: 250.6 | D171: 0.002667757071 | F171: 0.0005535267116 | O171: =IF(K171="","",AVERAGE(L$26:L171)) ->  | P171: =IFERROR(_xlfn.STDEV.S(L$26:L171)/J171^0.5,"") ->  | T171: 201.05 | U171: 146 | W171: 1 | Y171: 2.517 | Z171: 0.9956769968 | AA171: 0.9860612572 | AB171: 0.9376860638 | AC171: 0.993452287 | AD171: 0.9998238403 | AE171: 0.9894759338 | AF171: 0.7959665803
A172: 0.7959665803 | C172: 251.7 | D172: 0.002586644098 | F172: 0.0005216514104 | O172: =IF(K172="","",AVERAGE(L$26:L172)) ->  | P172: =IFERROR(_xlfn.STDEV.S(L$26:L172)/J172^0.5,"") ->  | T172: 201.05 | U172: 147 | W172: 1 | Y172: 2.528 | Z172: 0.9957497648 | AA172: 0.987134664 | AB172: 0.9432271706 | AC172: 0.993550335 | AD172: 0.9998331118 | AE172: 0.9903579208 | AF172: 0.8034197358
A173: 0.8034197358 | C173: 252.8 | D173: 0.002507770698 | F173: 0.0004918537079 | O173: =IF(K173="","",AVERAGE(L$26:L173)) ->  | P173: =IFERROR(_xlfn.STDEV.S(L$26:L173)/J173^0.5,"") ->  | T173: 201.05 | U173: 148 | W173: 1 | Y173: 2.539 | Z173: 0.9958211268 | AA173: 0.9881270836 | AB173: 0.9482562196 | AC173: 0.9936738407 | AD173: 0.9998403231 | AE173: 0.9911756899 | AF173: 0.8109864644
A174: 0.8109864644 | C174: 253.9 | D174: 0.002431101974 | F174: 0.0004639854476 | O174: =IF(K174="","",AVERAGE(L$26:L174)) ->  | P174: =IFERROR(_xlfn.STDEV.S(L$26:L174)/J174^0.5,"") ->  | T174: 201.05 | U174: 149 | W174: 1 | Y174: 2.55 | Z174: 0.9958911134 | AA174: 0.9890448214 | AB174: 0.9528942655 | AC174: 0.9938266743 | AD174: 0.9998454739 | AE174: 0.9919308854 | AF174: 0.8186492332
A175: 0.8186492332 | C175: 255 | D175: 0.002356601149 | F175: 0.0004379096796 | O175: =IF(K175="","",AVERAGE(L$26:L175)) ->  | P175: =IFERROR(_xlfn.STDEV.S(L$26:L175)/J175^0.5,"") ->  | T175: 201.05 | U175: 150 | W175: 1 | Y175: 2.561 | Z175: 0.9959597548 | AA175: 0.9898938481 | AB175: 0.9572229257 | AC175: 0.9940111135 | AD175: 0.999851655 | AE175: 0.9926256834 | AF175: 0.8263833017
A176: 0.8263833017 | C176: 256.1 | D176: 0.002284229818 | F176: 0.0004134997919 | O176: =IF(K176="","",AVERAGE(L$26:L176)) ->  | P176: =IFERROR(_xlfn.STDEV.S(L$26:L176)/J176^0.5,"") ->  | T176: 201.05 | U176: 151 | W176: 1 | Y176: 2.572 | Z176: 0.9960270802 | AA176: 0.9906796203 | AB176: 0.9612845903 | AC176: 0.994227519 | AD176: 0.999857836 | AE176: 0.9932628078 | AF176: 0.8341797087
A177: 0.8341797087 | C177: 257.2 | D177: 0.002213948185 | F177: 0.0003906387087 | O177: =IF(K177="","",AVERAGE(L$26:L177)) ->  | P177: =IFERROR(_xlfn.STDEV.S(L$26:L177)/J177^0.5,"") ->  | T177: 201.05 | U177: 152 | W177: 1 | Y177: 2.583 | Z177: 0.9960931183 | AA177: 0.9914072167 | AB177: 0.965065551 | AC177: 0.9944741481 | AD177: 0.9998629869 | AE177: 0.9938456115 | AF177: 0.8419821548
A178: 0.8419821548 | C178: 258.3 | D178: 0.002145715277 | F178: 0.0003692181479 | O178: =IF(K178="","",AVERAGE(L$26:L178)) ->  | P178: =IFERROR(_xlfn.STDEV.S(L$26:L178)/J178^0.5,"") ->  | T178: 201.05 | U178: 153 | W178: 1 | Y178: 2.594 | Z178: 0.9961578968 | AA178: 0.9920811742 | AB178: 0.9685343842 | AC178: 0.9947471799 | AD178: 0.9998691679 | AE178: 0.9943781564 | AF178: 0.849733756
A179: 0.849733756 | C179: 259.4 | D179: 0.002079489153 | F179: 0.000349137937 | O179: =IF(K179="","",AVERAGE(L$26:L179)) ->  | P179: =IFERROR(_xlfn.STDEV.S(L$26:L179)/J179^0.5,"") ->  | T179: 201.05 | U179: 154 | W179: 1 | Y179: 2.605 | Z179: 0.9962214429 | AA179: 0.9927056937 | AB179: 0.9716569246 | AC179: 0.9950409416 | AD179: 0.9998743188 | AE179: 0.9948651573 | AF179: 0.8573904858
A180: 0.8573904858 | C180: 260.5 | D180: 0.002015227094 | F180: 0.0003303053807 | O180: =IF(K180="","",AVERAGE(L$26:L180)) ->  | P180: =IFERROR(_xlfn.STDEV.S(L$26:L180)/J180^0.5,"") ->  | T180: 201.05 | U180: 155 | W180: 1 | Y180: 2.616 | Z180: 0.9962837834 | AA180: 0.9932846252 | AB180: 0.9744331722 | AC180: 0.9953483294 | AD180: 0.9998804998 | AE180: 0.9953119253 | AF180: 0.8649655911
A181: 0.8649655911 | C181: 261.6 | D181: 0.001952885772 | F181: 0.000312634679 | O181: =IF(K181="","",AVERAGE(L$26:L181)) ->  | P181: =IFERROR(_xlfn.STDEV.S(L$26:L181)/J181^0.5,"") ->  | T181: 201.05 | U181: 156 | W181: 1 | Y181: 2.627 | Z181: 0.9963449439 | AA181: 0.9938215848 | AB181: 0.9768977141 | AC181: 0.9956614145 | AD181: 0.9998866809 | AE181: 0.9957235703 | AF181: 0.8724797215
A182: 0.8724797215 | C182: 262.7 | D182: 0.001892421421 | F182: 0.0002960463901 | O182: =IF(K182="","",AVERAGE(L$26:L182)) ->  | P182: =IFERROR(_xlfn.STDEV.S(L$26:L182)/J182^0.5,"") ->  | T182: 201.05 | U182: 157 | W182: 1 | Y182: 2.638 | Z182: 0.9964049499 | AA182: 0.9943198856 | AB182: 0.9791260514 | AC182: 0.9959722082 | AD182: 0.9998908016 | AE182: 0.9961042024 | AF182: 0.879962293
A183: 0.879962293 | C183: 263.8 | D183: 0.001833789978 | F183: 0.0002804669357 | O183: =IF(K183="","",AVERAGE(L$26:L183)) ->  | P183: =IFERROR(_xlfn.STDEV.S(L$26:L183)/J183^0.5,"") ->  | T183: 201.05 | U183: 158 | W183: 1 | Y183: 2.649 | Z183: 0.9964638259 | AA183: 0.9947825851 | AB183: 0.9811951615 | AC183: 0.9962734616 | AD183: 0.9998949223 | AE183: 0.9964565862 | AF183: 0.8873864221
A184: 0.8873864221 | C184: 264.9 | D184: 0.001776947224 | F184: 0.000265828146 | O184: =IF(K184="","",AVERAGE(L$26:L184)) ->  | P184: =IFERROR(_xlfn.STDEV.S(L$26:L184)/J184^0.5,"") ->  | T184: 201.05 | U184: 159 | W184: 1 | Y184: 2.66 | Z184: 0.9965215962 | AA184: 0.9952123956 | AB184: 0.9831653609 | AC184: 0.9965593793 | AD184: 0.9998980128 | AE184: 0.9967817934 | AF184: 0.8947425633
A185: 0.8947425633 | C185: 266 | D185: 0.00172184891 | F185: 0.0002520668401 | O185: =IF(K185="","",AVERAGE(L$26:L185)) ->  | P185: =IFERROR(_xlfn.STDEV.S(L$26:L185)/J185^0.5,"") ->  | T185: 201.05 | U185: 160 | W185: 1 | Y185: 2.671 | Z185: 0.9965782841 | AA185: 0.9956117987 | AB185: 0.9850598483 | AC185: 0.9968261211 | AD185: 0.9999011033 | AE185: 0.9970795743 | AF185: 0.9020073396
A186: 0.9020073396 | C186: =C185+OFFSET(W$23,,B$11-1) -> 267.1 | D186: 0.001668450866 | F186: 0.0002391244397 | I186: =IF(L186<>"",0,"") ->  | J186: =IF(B$9>J185,J185+1,"") ->  | K186: =IFERROR(( MOD(( MOD( MOD( 999999999999989, MOD( PM_Index*2499997 +$J186*1800451, 7450589 ) * 4658 + 7450581 ) * 383, 99991 ) * 7440893 + MOD( MOD( 999999999999989, MOD( PM_Index*2246527 +$J186*2399993, 7450987 ) * 7580 + 7560584 ) * 17669, 7440893 )) * 1343, 4294967296 ) + 0.5 ) / 4294967296,"") ->  | M186: =IF(L186="",NA(),L186) ->  | O186: =IF(K186="","",AVERAGE(L$26:L186)) ->  | P186: =IFERROR(_xlfn.STDEV.S(L$26:L186)/J186^0.5,"") ->  | T186: =OFFSET(W$19,,B$11-1) -> 201.05 | U186: 161 | W186: 1 | Y186: 2.682 | Z186: 0.9966339127 | AA186: 0.9959829483 | AB186: 0.9868817872 | AC186: 0.9970720647 | AD186: 0.999905224 | AE186: 0.997348728 | AF186: 0.909142179
A187: 0.909142179 | C187: 268.2 | D187: 0.001616709109 | F187: 0.0002269466147 | O187: =IF(K187="","",AVERAGE(L$26:L187)) ->  | P187: =IFERROR(_xlfn.STDEV.S(L$26:L187)/J187^0.5,"") ->  | T187: 201.05 | U187: 162 | W187: 1 | Y187: 2.693 | Z187: 0.9966885044 | AA187: 0.9963277714 | AB187: 0.98860355 | AC187: 0.9972977972 | AD187: 0.9999093447 | AE187: 0.9975879811 | AF187: 0.9160788988
A188: 0.9160788988 | C188: 269.3 | D188: 0.001566579935 | F188: 0.0002154829553 | O188: =IF(K188="","",AVERAGE(L$26:L188)) ->  | P188: =IFERROR(_xlfn.STDEV.S(L$26:L188)/J188^0.5,"") ->  | T188: 201.05 | U188: 163 | W188: 1 | Y188: 2.704 | Z188: 0.996742081 | AA188: 0.9966479556 | AB188: 0.9901764195 | AC188: 0.9975058069 | AD188: 0.9999134654 | AE188: 0.9977968662 | AF188: 0.9227450304
A189: 0.9227450304 | C189: 270.4 | D189: 0.001518020001 | F189: 0.0002046866716 | O189: =IF(K189="","",AVERAGE(L$26:L189)) ->  | P189: =IFERROR(_xlfn.STDEV.S(L$26:L189)/J189^0.5,"") ->  | T189: 201.05 | U189: 164 | W189: 1 | Y189: 2.715 | Z189: 0.9967946638 | AA189: 0.9969450586 | AB189: 0.9915423991 | AC189: 0.997699901 | AD189: 0.9999175861 | AE189: 0.9979759232 | AF189: 0.9290550531
A190: 0.9290550531 | C190: 271.5 | D190: 0.001470986403 | F190: 0.0001945143166 | O190: =IF(K190="","",AVERAGE(L$26:L190)) ->  | P190: =IFERROR(_xlfn.STDEV.S(L$26:L190)/J190^0.5,"") ->  | T190: 201.05 | U190: 165 | W190: 1 | Y190: 2.726 | Z190: 0.9968462738 | AA190: 0.9972204445 | AB190: 0.9926818754 | AC190: 0.997884474 | AD190: 0.9999217068 | AE190: 0.9981269011 | AF190: 0.9349692262
A191: 0.9349692262 | C191: 272.6 | D191: 0.001425436741 | F191: 0.0001849255312 | O191: =IF(K191="","",AVERAGE(L$26:L191)) ->  | P191: =IFERROR(_xlfn.STDEV.S(L$26:L191)/J191^0.5,"") ->  | T191: 201.05 | U191: 166 | W191: 1 | Y191: 2.737 | Z191: 0.9968969314 | AA191: 0.9974753663 | AB191: 0.9936237413 | AC191: 0.9980637485 | AD191: 0.999928918 | AE191: 0.9982524836 | AF191: 0.9404349515
A192: 0.9404349515 | C192: 273.7 | D192: 0.001381329177 | F192: 0.0001758828099 | O192: =IF(K192="","",AVERAGE(L$26:L192)) ->  | P192: =IFERROR(_xlfn.STDEV.S(L$26:L192)/J192^0.5,"") ->  | T192: 201.05 | U192: 167 | W192: 1 | Y192: 2.748 | Z192: 0.9969466563 | AA192: 0.9977109731 | AB192: 0.9944274696 | AC192: 0.9982411112 | AD192: 0.9999350991 | AE192: 0.9983560154 | AF192: 0.9454265144
A193: 0.9454265144 | C193: 274.8 | D193: 0.001338622494 | F193: 0.0001673512844 | O193: =IF(K193="","",AVERAGE(L$26:L193)) ->  | P193: =IFERROR(_xlfn.STDEV.S(L$26:L193)/J193^0.5,"") ->  | T193: 201.05 | U193: 168 | W193: 1 | Y193: 2.759 | Z193: 0.9969954681 | AA193: 0.9979283938 | AB193: 0.9951360834 | AC193: 0.9984186104 | AD193: 0.9999412801 | AE193: 0.9984415585 | AF193: 0.949929499
A194: 0.949929499 | C194: 275.9 | D194: 0.001297276131 | F194: 0.0001592985253 | O194: =IF(K194="","",AVERAGE(L$26:L194)) ->  | P194: =IFERROR(_xlfn.STDEV.S(L$26:L194)/J194^0.5,"") ->  | T194: 201.05 | U194: 169 | W194: 1 | Y194: 2.77 | Z194: 0.9970433856 | AA194: 0.9981286951 | AB194: 0.9957637127 | AC194: 0.9985966804 | AD194: 0.9999454008 | AE194: 0.9985139485 | AF194: 0.9539598797
A195: 0.9539598797 | C195: 277 | D195: 0.001257250231 | F195: 0.0001516943586 | O195: =IF(K195="","",AVERAGE(L$26:L195)) ->  | P195: =IFERROR(_xlfn.STDEV.S(L$26:L195)/J195^0.5,"") ->  | T195: 201.05 | U195: 170 | W195: 1 | Y195: 2.781 | Z195: 0.9970904275 | AA195: 0.9983129079 | AB195: 0.9963084596 | AC195: 0.9987741578 | AD195: 0.9999515818 | AE195: 0.9985786015 | AF195: 0.9575511634
A196: 0.9575511634 | C196: 278.1 | D196: 0.00121850567 | F196: 0.0001445106973 | O196: =IF(K196="","",AVERAGE(L$26:L196)) ->  | P196: =IFERROR(_xlfn.STDEV.S(L$26:L196)/J196^0.5,"") ->  | T196: 201.05 | U196: 171 | W196: 1 | Y196: 2.792 | Z196: 0.9971366119 | AA196: 0.9984819964 | AB196: 0.9967806579 | AC196: 0.9989485598 | AD196: 0.9999577629 | AE196: 0.9986413202 | AF196: 0.9607555586
A197: 0.9607555586 | C197: 279.2 | D197: 0.001181004086 | F197: 0.0001377213862 | O197: =IF(K197="","",AVERAGE(L$26:L197)) ->  | P197: =IFERROR(_xlfn.STDEV.S(L$26:L197)/J197^0.5,"") ->  | T197: 201.05 | U197: 172 | W197: 1 | Y197: 2.803 | Z197: 0.9971819564 | AA197: 0.9986368873 | AB197: 0.9972064588 | AC197: 0.999116538 | AD197: 0.9999649741 | AE197: 0.9987082299 | AF197: 0.9636244945
A198: 0.9636244945 | C198: 280.3 | D198: 0.001144707905 | F198: 0.0001313020584 | O198: =IF(K198="","",AVERAGE(L$26:L198)) ->  | P198: =IFERROR(_xlfn.STDEV.S(L$26:L198)/J198^0.5,"") ->  | T198: 201.05 | U198: 173 | W198: 1 | Y198: 2.814 | Z198: 0.9972264782 | AA198: 0.9987784699 | AB198: 0.9976143336 | AC198: 0.9992744188 | AD198: 0.9999690948 | AE198: 0.9987857135 | AF198: 0.9662279073
A199: 0.9662279073 | C199: 281.4 | D199: 0.001109580355 | F199: 0.0001252300039 | O199: =IF(K199="","",AVERAGE(L$26:L199)) ->  | P199: =IFERROR(_xlfn.STDEV.S(L$26:L199)/J199^0.5,"") ->  | T199: 201.05 | U199: 174 | W199: 1 | Y199: 2.825 | Z199: 0.9972701944 | AA199: 0.9989076278 | AB199: 0.9980122961 | AC199: 0.9994187447 | AD199: 0.9999732155 | AE199: 0.9988786632 | AF199: 0.9686222912
A200: 0.9686222912 | C200: 282.5 | D200: 0.001075585487 | F200: 0.0001194840475 | O200: =IF(K200="","",AVERAGE(L$26:L200)) ->  | P200: =IFERROR(_xlfn.STDEV.S(L$26:L200)/J200^0.5,"") ->  | T200: 201.05 | U200: 175 | W200: 1 | Y200: 2.836 | Z200: 0.9973131213 | AA200: 0.9990251995 | AB200: 0.9983849511 | AC200: 0.999546746 | AD200: 0.999976306 | AE200: 0.9989887313 | AF200: 0.9708619977
A201: 0.9708619977 | C201: 283.6 | D201: 0.001042688179 | F201: 0.0001140444373 | O201: =IF(K201="","",AVERAGE(L$26:L201)) ->  | P201: =IFERROR(_xlfn.STDEV.S(L$26:L201)/J201^0.5,"") ->  | T201: 201.05 | U201: 176 | W201: 1 | Y201: 2.847 | Z201: 0.9973552751 | AA201: 0.9991320151 | AB201: 0.9987061471 | AC201: 0.9996566775 | AD201: 0.9999793965 | AE201: 0.9991145797 | AF201: 0.9729737153
A202: 0.9729737153 | C202: 284.7 | D202: 0.001010854152 | F202: 0.0001088927404 | O202: =IF(K202="","",AVERAGE(L$26:L202)) ->  | P202: =IFERROR(_xlfn.STDEV.S(L$26:L202)/J202^0.5,"") ->  | T202: 201.05 | U202: 177 | W202: 1 | Y202: 2.858 | Z202: 0.9973966715 | AA202: 0.9992288759 | AB202: 0.9989613325 | AC202: 0.9997479494 | AD202: 0.9999804267 | AE202: 0.9992521305 | AF202: 0.9749691327
A203: 0.9749691327 | C203: 285.8 | D203: 0.000980049966 | F203: 0.0001040117484 | O203: =IF(K203="","",AVERAGE(L$26:L203)) ->  | P203: =IFERROR(_xlfn.STDEV.S(L$26:L203)/J203^0.5,"") ->  | T203: 201.05 | U203: 178 | W203: 1 | Y203: 2.869 | Z203: 0.9974373259 | AA203: 0.9993165599 | AB203: 0.9991551468 | AC203: 0.9998210806 | AD203: 0.9999814569 | AE203: 0.9993947185 | AF203: 0.9768521459
... 22 more rows

Sheet PopMean Ws
B1: Worksheet: Computing 90% Confidence Intervals with Small Samples
B2: The "t-stat" is used for small samples. Note that two excel formulas are introduced here that give the same answers as the steps in the book: VAR() and TINV(). This will slightly simplify the calculation. You can use this spreadsheet to compute ranges for larger samples, too. Just add however many rows you need and don't forget to change the references in the cells to capture all the new rows. See how close the answers would be if you just used the "Mathless" table. This sheet will also calculate an estimate of the underlying distribution using a t-distribution. One will notice from the previous example that this may or ay not be a good assumption.
B3: 90% Confidence Interval Calculations (by steps described in book)
B4: Average of Sample Values (step 1.a in book) | D4: =AVERAGE(C18:C117) -> 27.10356937
B5: Population Variance | D5: =VAR(C18:C117) -> 57.07136857
B6: SD of the estimate of the mean | D6: =SQRT(D5/COUNT(C18:C117)) -> 1.689250848
B7: t-stat using Excel's "Tinv()" formula (same answer as step 3 in book) | D7: =TINV(0.1,COUNT(C18:C117)-1) -> 1.729132812
B8: Sample error (step 4 in book) | D8: =D7*D6 -> 2.920939069
B9: SD | D9: =_xlfn.STDEV.S(C18:C117) -> 7.554559456
B10: Sample size | D10: =COUNT(C18:C1001) -> 20
B12: Computing bounds for 90% CI (step 5 in book)
B13: Upper bound | D13: =D4+D8 -> 30.02450844
B14: Lower bound | D14: =D4-D8 -> 24.1826303
B16: Data | D16: Chart Data | F16: Std Error for Estimate of Mean (Normalized) | G16: cpf for Sample | H16: Incremental P | I16: Sample | J16: Error of the mean | K16: Confidence Interval Bars | M16: Estimate of Distribution | N16: Estimate of Distribution | O16: Error of the Mean
B17: Data Point | C17: Sample Value | D17: Min | E17: =MIN(C18:C117) -> 14 | F17: -4.2 | G17: =NORMDIST(F17+0.05,0,1,1) -> 1.662376373e-05 | K17: =D14 -> 24.1826303 | L17: 0 | M17: =E17-(E19*100) -> -3.1875
A18: 0 | B18: 1 | C18: 19.60341451 | D18: Max | E18: =MAX(C18:C117) -> 41.5 | F18: -4.1 | G18: =NORMDIST(F18+0.05,0,1,1) -> 2.560881647e-05 | H18: =(G18-G17) -> 8.985052744e-06 | I18: =D$4+F18*D$6 -> 20.17764089 | K18: =D14 -> 24.1826303 | L18: =_xlfn.T.DIST(((K18+2*E19)-D$4)/D$6,D$10-1,1)-_xlfn.T.DIST((K18-D$4)/D$6,D$10-1,1) -> 0.02178687124 | M18: =M17+$E$19 -> -3.015625 | N18: =_xlfn.T.DIST((M19-D$4)/D$9,D$10-1,1)-_xlfn.T.DIST((M17-D$4)/D$9,D$10-1,1) -> 4.104815415e-05 | O18: =_xlfn.T.DIST((M19-D$4)/D$6,D$10-1,1)-_xlfn.T.DIST((M17-D$4)/D$6,D$10-1,1) -> 2.612624929e-14
A19: 0 | B19: 2 | C19: 14 | D19: Increment | E19: =(E18-E17)/160 -> 0.171875 | F19: -4 | G19: =NORMDIST(F19+0.05,0,1,1) -> 3.90755966e-05 | H19: =(G19-G18) -> 1.346678012e-05 | I19: 20.34656597 | J19: =_xlfn.T.DIST((I19-D$4)/D$6,D$10-1,1)-_xlfn.T.DIST((I18-D$4)/D$6,D$10-1,1) -> 7.822297032e-05 | K19: =D13 -> 30.02450844 | L19: 0 | M19: -2.84375 | N19: =_xlfn.T.DIST((M20-D$4)/D$9,D$10-1,1)-_xlfn.T.DIST((M18-D$4)/D$9,D$10-1,1) -> 4.323798252e-05 | O19: =_xlfn.T.DIST((M20-D$4)/D$6,D$10-1,1)-_xlfn.T.DIST((M18-D$4)/D$6,D$10-1,1) -> 2.910552513e-14
A20: 0 | B20: 3 | C20: 29.77796994 | F20: -3.9 | G20: =NORMDIST(F20+0.05,0,1,1) -> 5.905891242e-05 | H20: =(G20-G19) -> 1.998331582e-05 | I20: 20.51549106 | J20: 9.830871461e-05 | K20: =D13 -> 30.02450844 | L20: =L18 -> 0.02178687124 | M20: -2.671875 | N20: 4.554334619e-05 | O20: 3.244240022e-14
A21: 0 | B21: 4 | C21: 19 | F21: -3.8 | G21: 8.84172852e-05 | H21: =(G21-G20) -> 2.935837278e-05 | I21: 20.68441614 | J21: 0.0001234813702 | M21: -2.5 | N21: 4.797018242e-05 | O21: 3.618194861e-14
A22: 0 | B22: 5 | C22: 22.47266207 | F22: -3.7 | G22: 0.0001311201544 | H22: =(G22-G21) -> 4.270286922e-05 | I22: 20.85334123 | J22: =_xlfn.T.DIST((I22-D$4)/D$6,D$10-1,1)-_xlfn.T.DIST((I21-D$4)/D$6,D$10-1,1) -> 0.0001549857457 | M22: -2.328125 | N22: 5.052471882e-05 | O22: 4.037519788e-14
A23: 0 | B23: 6 | C23: 36 | F23: -3.6 | G23: =NORMDIST(F23+0.05,0,1,1) -> 0.0001926155756 | H23: 6.149542122e-05 | I23: 21.02226631 | J23: 0.0001943514317 | M23: -2.15625 | N23: 5.32134863e-05 | O23: 4.507995168e-14
A24: 0 | B24: 7 | C24: 26.24873078 | F24: -3.5 | G24: 0.0002802932768 | H24: 8.767770118e-05 | I24: =D$4+F24*D$6 -> 21.1911914 | J24: 0.0002434499141 | M24: -1.984375 | N24: 5.604333247e-05 | O24: 5.036173067e-14
A25: 0 | B25: 8 | C25: 32.49631261 | F25: -3.4 | G25: =NORMDIST(F25+0.05,0,1,1) -> 0.0004040578019 | H25: 0.000123764525 | I25: 21.36011648 | J25: 0.0003045600619 | M25: -1.8125 | N25: 5.902143563e-05 | O25: 5.629485005e-14
A26: 0 | B26: 9 | C26: 17 | F26: -3.3 | G26: 0.0005770250424 | H26: 0.0001729672405 | I26: 21.52904157 | J26: 0.0003804420315 | M26: -1.640625 | N26: 6.215531913e-05 | O26: 6.296365408e-14
A27: 0 | B27: 10 | C27: 35 | F27: -3.2 | G27: 0.0008163523128 | H27: 0.0002393272704 | I27: 21.69796665 | J27: 0.0004744190759 | M27: -1.46875 | N27: 6.545286631e-05 | O27: 7.046393153e-14
A28: 0 | B28: 11 | C28: 26.44677252 | F28: -3.1 | G28: 0.001144206831 | H28: 0.0003278545182 | I28: 21.86689174 | J28: 0.0005904659598 | M28: -1.296875 | N28: 6.892233597e-05 | O28: 7.890453964e-14
A29: 0 | B29: 12 | C29: 39 | F29: -3 | G29: 0.001588869647 | H29: =(G29-G28) -> 0.0004446628163 | I29: 22.03581682 | J29: 0.000733301618 | M29: -1.125 | N29: 7.257237831e-05 | O29: 8.840926864e-14
A30: 0 | B30: 13 | C30: 41.5 | F30: -2.9 | G30: 0.002185961455 | H30: 0.0005970918075 | I30: 22.20474191 | J30: 0.0009084823083 | M30: -0.953125 | N30: 7.641205142e-05 | O30: 9.911898403e-14
A31: 0 | B31: 14 | C31: 22.85143994 | F31: -2.8 | G31: 0.002979763235 | H31: 0.0007938017801 | I31: 22.37366699 | J31: 0.00112248979 | M31: -0.78125 | N31: 8.045083832e-05 | O31: 1.111940895e-13
A32: 0 | B32: 15 | C32: 30.26941439 | F32: -2.7 | G32: 0.004024588543 | H32: 0.001044825308 | I32: 22.54259208 | J32: 0.001382806994 | M32: -0.609375 | N32: 8.469866448e-05 | O32: 1.248173609e-13
A33: 0 | B33: 16 | C33: 34 | F33: -2.6 | G33: 0.005386145954 | H33: 0.001361557411 | I33: 22.71151716 | J33: 0.001697971311 | M33: -0.4375 | N33: 8.916591597e-05 | O33: 1.401972091e-13
A34: 0 | B34: 17 | C34: 23.50836979 | F34: -2.5 | G34: 0.007142810735 | H34: 0.001756664781 | I34: 22.88044225 | J34: 0.002077593089 | M34: -0.265625 | N34: 9.386345808e-05 | O34: 1.575714395e-13
A35: 0 | B35: 18 | C35: 22.52725565 | F35: -2.4 | G35: 0.009386705535 | H35: 0.0022438948 | I35: 23.04936733 | J35: 0.002532324436 | M35: -0.09375 | N35: 9.880265447e-05 | O35: 1.772115872e-13
A36: 0 | B36: 19 | C36: 21.82083612 | F36: -2.3 | G36: 0.01222447266 | H36: 0.00283776712 | I36: 23.21829242 | J36: 0.003073761211 | M36: 0.078125 | N36: 0.0001039953869 | O36: 1.994279196e-13
A37: 0 | B37: 20 | C37: 28.548209 | F37: -2.2 | G37: 0.01577760739 | H37: 0.003553134736 | I37: 23.3872175 | J37: 0.003714259591 | M37: 0.25 | N37: 0.0001094540757 | O37: 2.245752129e-13
A38: 0 | B38: 21 | F38: -2.1 | G38: 0.02018221541 | H38: 0.004404608015 | I38: 23.55614258 | J38: 0.004466648299 | M38: 0.421875 | N38: 0.0001151917001 | O38: 2.530594282e-13
A39: 0 | B39: 22 | F39: -2 | G39: 0.02558805952 | H39: 0.005405844116 | I39: 23.72506767 | J39: 0.005343819071 | M39: 0.59375 | N39: 0.0001212218199 | O39: 2.853454329e-13
A40: 0 | B40: 23 | F40: -1.9 | G40: 0.0321567748 | H40: 0.006568715274 | I40: 23.89399275 | J40: 0.006358181849 | M40: 0.765625 | N40: 0.0001275585973 | O40: 3.219659365e-13
A41: 0 | B41: 24 | F41: -1.8 | G41: 0.04005915686 | H41: 0.007902382068 | I41: 24.06291784 | J41: 0.007520978011 | M41: 0.9375 | N41: 0.0001342168191 | O41: 3.635318429e-13
A42: 0 | B42: 25 | F42: -1.7 | G42: 0.04947146803 | H42: 0.00941231117 | I42: 24.23184292 | J42: 0.00884145524 | M42: 1.109375 | N42: 0.0001412119196 | O42: 4.107442496e-13
A43: 0 | B43: 26 | F43: -1.6 | G43: 0.060570758 | H43: 0.01109928997 | I43: 24.40076801 | J43: 0.0103259213 | M43: 1.28125 | N43: 0.0001485600037 | O43: 4.644083692e-13
A44: 0 | B44: 27 | F44: -1.5 | G44: 0.07352925961 | H44: 0.01295850161 | I44: 24.56969309 | J44: 0.01197671078 | M44: 1.453125 | N44: 0.0001562778709 | O44: 5.254496932e-13
A45: 0 | B45: 28 | F45: -1.4 | G45: 0.08850799144 | H45: 0.01497873183 | I45: 24.73861818 | J45: 0.01379111779 | M45: 1.625 | N45: 0.0001643830395 | O45: 5.949327739e-13
A46: 0 | B46: 29 | F46: -1.3 | G46: 0.1056497737 | H46: 0.01714178223 | I46: 24.90754326 | J46: 0.01576036698 | M46: 1.796875 | N46: 0.0001728937706 | O46: 6.74083067e-13
A47: 0 | B47: 30 | F47: -1.2 | G47: 0.1250719356 | H47: 0.01942216197 | I47: 25.07646835 | J47: 0.01786871251 | M47: 1.96875 | N47: 0.0001818290938 | O47: 7.64312354e-13
A48: 0 | B48: 31 | F48: -1.1 | G48: 0.1468590564 | H48: 0.02178712074 | I48: 25.24539343 | J48: 0.02009276744 | M48: 2.140625 | N48: 0.000191208832 | O48: 8.672483549e-13
A49: 0 | B49: 32 | F49: -1 | G49: 0.1710561263 | H49: 0.02419706993 | I49: 25.41431852 | J49: 0.02240117036 | M49: 2.3125 | N49: 0.0002010536268 | O49: 9.84769252e-13
A50: 0 | B50: 33 | F50: -0.9 | G50: 0.1976625431 | H50: 0.02660641681 | I50: =D$4+F50*D$6 -> 25.5832436 | J50: 0.02475468974 | M50: 2.484375 | N50: 0.000211384965 | O50: 1.119043972e-12
A51: 0 | B51: 34 | F51: -0.8 | G51: 0.2266273524 | H51: 0.02896480925 | I51: 25.75216869 | J51: =_xlfn.T.DIST((I51-D$4)/D$6,D$10-1,1)-_xlfn.T.DIST((I50-D$4)/D$6,D$10-1,1) -> 0.02710684712 | M51: 2.65625 | N51: 0.0002222252035 | O51: 1.272579226e-12
A52: 0 | B52: 35 | F52: -0.7 | G52: 0.2578461108 | H52: 0.03121875843 | I52: 25.92109377 | J52: 0.02940510679 | M52: 2.828125 | N52: 0.0002335975966 | O52: 1.448274492e-12
A53: 0 | B53: 36 | F53: -0.6 | G53: 0.2911596868 | H53: 0.03331357598 | I53: 26.09001886 | J53: 0.03159263386 | M53: 3 | N53: 0.0002455263214 | O53: 1.649486327e-12
A54: 0 | B54: 37 | F54: -0.5 | G54: 0.3263552203 | H54: 0.0351955335 | I54: 26.25894394 | J54: 0.03361056767 | M54: 3.171875 | N54: 0.0002580365043 | O54: 1.880103674e-12
A55: 0 | B55: 38 | F55: -0.4 | G55: 0.3631693488 | H55: 0.03681412854 | I55: 26.42786903 | J55: 0.03540069904 | M55: 3.34375 | N55: 0.0002711542472 | O55: 2.1446361e-12
A56: 0 | B56: 39 | F56: -0.3 | G56: 0.4012936743 | H56: 0.03812432549 | I56: 26.59679411 | J56: 0.03690838548 | M56: 3.515625 | N56: 0.0002849066538 | O56: 2.448317295e-12
A57: 0 | B57: 40 | F57: -0.2 | G57: 0.4403823076 | H57: 0.03908863331 | I57: 26.7657192 | J57: 0.03808549544 | M57: 3.6875 | N57: 0.0002993218548 | O57: 2.797226571e-12
A58: 0 | B58: 41 | F58: -0.1 | G58: 0.4800611942 | H58: 0.03967888653 | I58: 26.93464428 | J58: 0.03889314927 | M58: 3.859375 | N58: 0.0003144290343 | O58: 3.198431618e-12
A59: 0 | B59: 42 | F59: 0 | G59: 0.5199388058 | H59: 0.03987761168 | I59: 27.10356937 | J59: 0.03930402512 | M59: 4.03125 | N59: 0.0003302584543 | O59: 3.660156401e-12
A60: 0 | B60: 43 | F60: 0.1 | G60: 0.5596176924 | H60: 0.03967888653 | I60: 27.27249445 | J60: 0.03930402512 | M60: 4.203125 | N60: 0.0003468414796 | O60: 4.191978793e-12
A61: 0 | B61: 44 | F61: 0.2 | G61: 0.5987063257 | H61: 0.03908863331 | I61: 27.44141954 | J61: 0.03889314927 | M61: 4.375 | N61: 0.0003642106019 | O61: 4.80506343e-12
A62: 0 | B62: 45 | F62: 0.3 | G62: 0.6368306512 | H62: 0.03812432549 | I62: 27.61034462 | J62: 0.03808549544 | M62: 4.546875 | N62: 0.0003823994631 | O62: 5.512436332e-12
A63: 0 | B63: 46 | F63: 0.4 | G63: 0.6736447797 | H63: 0.03681412854 | I63: 27.77926971 | J63: 0.03690838548 | M63: 4.71875 | N63: 0.0004014428779 | O63: 6.329309066e-12
A64: 0 | B64: 47 | F64: 0.5 | G64: 0.7088403132 | H64: 0.0351955335 | I64: 27.94819479 | J64: 0.03540069904 | M64: 4.890625 | N64: 0.0004213768548 | O64: 7.273461782e-12
A65: 0 | B65: 48 | F65: 0.6 | G65: 0.7421538892 | H65: 0.03331357598 | I65: 28.11711988 | J65: 0.03361056767 | M65: 5.0625 | N65: 0.0004422386171 | O65: 8.365696213e-12
A66: 0 | B66: 49 | F66: 0.7 | G66: 0.7733726476 | H66: 0.03121875843 | I66: 28.28604496 | J66: 0.03159263386 | M66: 5.234375 | N66: 0.0004640666217 | O66: 9.630371971e-12
A67: 0 | B67: 50 | F67: 0.8 | G67: 0.8023374569 | H67: 0.02896480925 | I67: 28.45497005 | J67: 0.02940510679 | M67: 5.40625 | N67: 0.0004869005765 | O67: 1.109604205e-11
A68: 0 | B68: 51 | F68: 0.9 | G68: 0.8289438737 | H68: 0.02660641681 | I68: 28.62389513 | J68: 0.02710684712 | M68: 5.578125 | N68: 0.000510781457 | O68: 1.279620665e-11
A69: 0 | B69: 52 | F69: 1 | G69: 0.8531409436 | H69: 0.02419706993 | I69: 28.79282021 | J69: 0.02475468974 | M69: 5.75 | N69: 0.0005357515199 | O69: 1.47702082e-11
A70: 0 | B70: 53 | F70: 1.1 | G70: 0.8749280644 | H70: 0.02178712074 | I70: 28.9617453 | J70: 0.02240117036 | M70: 5.921875 | N70: 0.0005618543161 | O70: 1.70642952e-11
A71: 0 | B71: 54 | F71: 1.2 | G71: 0.8943502263 | H71: 0.01942216197 | I71: 29.13067038 | J71: 0.02009276744 | M71: 6.09375 | N71: 0.0005891347002 | O71: 1.973288778e-11
A72: 0 | B72: 55 | F72: 1.3 | G72: 0.9114920086 | H72: 0.01714178223 | I72: 29.29959547 | J72: 0.01786871251 | M72: 6.265625 | N72: 0.0006176388386 | O72: 2.284008507e-11
A73: 0 | B73: 56 | F73: 1.4 | G73: 0.9264707404 | H73: 0.01497873183 | I73: 29.46852055 | J73: 0.01576036698 | M73: 6.4375 | N73: 0.0006474142148 | O73: 2.646146214e-11
A74: 0 | B74: 57 | F74: 1.5 | G74: 0.939429242 | H74: 0.01295850161 | I74: 29.63744564 | J74: 0.01379111779 | M74: 6.609375 | N74: 0.0006785096317 | O74: 3.068621452e-11
A75: 0 | B75: 58 | F75: 1.6 | G75: 0.950528532 | H75: 0.01109928997 | I75: 29.80637072 | J75: 0.01197671078 | M75: 6.78125 | N75: 0.0007109752108 | O75: 3.561972013e-11
A76: 0 | B76: 59 | F76: 1.7 | G76: 0.9599408431 | H76: 0.00941231117 | I76: 29.97529581 | J76: 0.0103259213 | M76: 6.953125 | N76: 0.0007448623887 | O76: 4.138660316e-11
A77: 0 | B77: 60 | F77: 1.8 | G77: 0.9678432252 | H77: 0.007902382068 | I77: 30.14422089 | J77: 0.00884145524 | M77: 7.125 | N77: 0.0007802239098 | O77: 4.813440201e-11
A78: 0 | B78: 61 | F78: 1.9 | G78: 0.9744119405 | H78: 0.006568715274 | I78: 30.31314598 | J78: 0.007520978011 | M78: 7.296875 | N78: 0.000817113815 | O78: 5.603796523e-11
A79: 0 | B79: 62 | F79: 2 | G79: 0.9798177846 | H79: 0.005405844116 | I79: 30.48207106 | J79: 0.006358181849 | M79: 7.46875 | N79: 0.0008555874266 | O79: 6.530472542e-11
A80: 0 | B80: 63 | F80: 2.1 | G80: 0.9842223926 | H80: 0.004404608015 | I80: 30.65099615 | J80: 0.005343819071 | M80: 7.640625 | N80: 0.0008957013294 | O80: 7.618103357e-11
A81: 0 | B81: 64 | F81: 2.2 | G81: 0.9877755273 | H81: 0.003553134736 | I81: 30.81992123 | J81: 0.004466648299 | M81: 7.8125 | N81: 0.0009375133466 | O81: 8.895977509e-11
A82: 0 | B82: 65 | F82: 2.3 | G82: =NORMDIST(F82+0.05,0,1,1) -> 0.9906132945 | H82: 0.00283776712 | I82: =D$4+F82*D$6 -> 30.98884632 | J82: 0.003714259591 | M82: =M81+$E$19 -> 7.984375 | N82: 0.0009810825112 | O82: 1.039895371e-10
A83: 0 | B83: 66 | F83: 2.4 | G83: 0.9928571893 | H83: =(G83-G82) -> 0.0022438948 | I83: 31.1577714 | J83: =_xlfn.T.DIST((I83-D$4)/D$6,D$10-1,1)-_xlfn.T.DIST((I82-D$4)/D$6,D$10-1,1) -> 0.003073761211 | M83: 8.15625 | N83: =_xlfn.T.DIST((M84-D$4)/D$9,D$10-1,1)-_xlfn.T.DIST((M82-D$4)/D$9,D$10-1,1) -> 0.001026469032 | O83: =_xlfn.T.DIST((M84-D$4)/D$6,D$10-1,1)-_xlfn.T.DIST((M82-D$4)/D$6,D$10-1,1) -> 1.216856554e-10
A84: 0 | B84: 67 | F84: 2.5 | G84: 0.994613854 | H84: 0.001756664781 | I84: 31.32669649 | J84: 0.002532324436 | M84: 8.328125 | N84: 0.001073734256 | O84: 1.425435405e-10
A85: 0 | B85: 68 | F85: 2.6 | G85: 0.9959754115 | H85: 0.001361557411 | I85: 31.49562157 | J85: 0.002077593089 | M85: 8.5 | N85: 0.001122940622 | O85: 1.671547725e-10
A86: 0 | B86: 69 | F86: 2.7 | G86: 0.9970202368 | H86: 0.001044825308 | I86: 31.66454666 | J86: 0.001697971311 | M86: 8.671875 | N86: 0.001174151611 | O86: 1.962265602e-10
A87: 0 | B87: 70 | F87: 2.8 | G87: 0.9978140385 | H87: 0.0007938017801 | I87: 31.83347174 | J87: 0.001382806994 | M87: 8.84375 | N87: 0.001227431689 | O87: 2.306052965e-10
A88: 0 | B88: 71 | F88: 2.9 | G88: 0.9984111304 | H88: 0.0005970918075 | I88: 32.00239683 | J88: 0.00112248979 | M88: 9.015625 | N88: 0.001282846245 | O88: 2.713051028e-10
A89: 0 | B89: 72 | F89: 3 | G89: 0.9988557932 | H89: 0.0004446628163 | I89: 32.17132191 | J89: 0.0009084823083 | M89: 9.1875 | N89: 0.001340461519 | O89: 3.195424608e-10
A90: 0 | B90: 73 | F90: 3.1 | G90: 0.9991836477 | H90: 0.0003278545182 | I90: 32.340247 | J90: 0.000733301618 | M90: 9.359375 | N90: 0.001400344528 | O90: 3.767782775e-10
A91: 0 | B91: 74 | F91: 3.2 | G91: 0.999422975 | H91: 0.0002393272704 | I91: 32.50917208 | J91: 0.0005904659598 | M91: 9.53125 | N91: 0.00146256298 | O91: 4.447690386e-10
A92: 0 | B92: 75 | F92: 3.3 | G92: 0.9995959422 | H92: 0.0001729672405 | I92: 32.67809717 | J92: 0.0004744190759 | M92: 9.703125 | N92: 0.00152718518 | O92: 5.256290864e-10
A93: 0 | B93: 76 | F93: 3.4 | G93: 0.9997197067 | H93: 0.000123764525 | I93: 32.84702225 | J93: 0.0003804420315 | M93: 9.875 | N93: 0.001594279938 | O93: 6.21906531e-10
A94: 0 | B94: 77 | F94: 3.5 | G94: 0.9998073844 | H94: 8.767770118e-05 | I94: 33.01594734 | J94: 0.0003045600619 | M94: 10.046875 | N94: 0.001663916452 | O94: 7.366758884e-10
A95: 0 | B95: 78 | F95: 3.6 | G95: 0.9998688798 | H95: 6.149542122e-05 | I95: 33.18487242 | J95: 0.0002434499141 | M95: 10.21875 | N95: 0.0017361642 | O95: 8.736512646e-10
A96: 0 | B96: 79 | F96: 3.7 | G96: 0.9999115827 | H96: 4.270286922e-05 | I96: 33.35379751 | J96: 0.0001943514317 | M96: 10.390625 | N96: 0.001811092813 | O96: 1.037324808e-09
A97: 0 | B97: 80 | F97: 3.8 | G97: 0.9999409411 | H97: 2.935837278e-05 | I97: 33.52272259 | J97: 0.0001549857457 | M97: 10.5625 | N97: 0.001888771941 | O97: 1.233136272e-09
A98: 0 | B98: 81 | F98: 3.9 | G98: 0.9999609244 | H98: 1.998331582e-05 | I98: 33.69164767 | J98: 0.0001234813702 | M98: 10.734375 | N98: 0.001969271115 | O98: 1.46768093e-09
A99: 0 | B99: 82 | F99: 4 | G99: 0.9999743912 | H99: 1.346678012e-05 | I99: 33.86057276 | J99: 9.830871461e-05 | M99: 10.90625 | N99: 0.002052659594 | O99: 1.748964814e-09
A100: 0 | B100: 83 | F100: 4.1 | G100: 0.9999833762 | H100: 8.985052744e-06 | I100: 34.02949784 | J100: 7.822297032e-05 | M100: 11.078125 | N100: 0.002139006205 | O100: 2.086718444e-09
A101: 0 | B101: 84 | F101: 4.2 | G101: 0.9999893115 | H101: 5.935237955e-06 | I101: 34.19842293 | J101: 6.221496225e-05 | M101: 11.25 | N101: 0.002228379178 | O101: 2.492782887e-09
A102: 0 | B102: 85 | J102: -0.9997573418 | M102: 11.421875 | N102: 0.002320845968 | O102: 2.981585421e-09
A103: 0 | B103: 86 | M103: 11.59375 | N103: 0.002416473064 | O103: 3.570726289e-09
A104: 0 | B104: 87 | M104: 11.765625 | N104: 0.002515325798 | O104: 4.28170337e-09
A105: 0 | B105: 88 | M105: 11.9375 | N105: 0.002617468137 | O105: 5.140808241e-09
A106: 0 | B106: 89 | M106: 12.109375 | N106: 0.002722962473 | O106: 6.180235521e-09
A107: 0 | B107: 90 | M107: 12.28125 | N107: 0.002831869394 | O107: 7.439457875e-09
A108: 0 | B108: 91 | M108: 12.453125 | N108: 0.002944247459 | O108: 8.96693234e-09
A109: 0 | B109: 92 | M109: 12.625 | N109: 0.003060152954 | O109: 1.082222032e-08
A110: 0 | B110: 93 | M110: 12.796875 | N110: 0.003179639648 | O110: 1.307862459e-08
A111: 0 | B111: 94 | M111: 12.96875 | N111: 0.003302758532 | O111: 1.582647335e-08
A112: 0 | B112: 95 | M112: 13.140625 | N112: 0.003429557562 | O112: 1.917721455e-08
A113: 0 | B113: 96 | M113: 13.3125 | N113: 0.003560081383 | O113: 2.326852666e-08
A114: 0 | B114: 97 | M114: 13.484375 | N114: 0.003694371058 | O114: 2.827070503e-08
A115: 0 | B115: 98 | M115: 13.65625 | N115: 0.003832463783 | O115: 3.439465132e-08
A116: 0 | B116: 99 | M116: 13.828125 | N116: 0.003974392602 | O116: 4.190187936e-08
A117: 0 | B117: 100 | M117: 14 | N117: 0.004120186113 | O117: 5.111705979e-08
M118: 14.171875 | N118: 0.004269868174 | O118: 6.244376416e-08
M119: 14.34375 | N119: 0.004423457606 | O119: 7.638424493e-08
M120: 14.515625 | N120: 0.004580967891 | O120: 9.356431084e-08
M121: 14.6875 | N121: 0.004742406873 | O121: 1.147646403e-07
M122: 14.859375 | N122: 0.004907776459 | O122: 1.409602361e-07
M123: 15.03125 | N123: 0.005077072315 | O123: 1.733701829e-07
M124: 15.203125 | N124: 0.005250283574 | O124: 2.135204503e-07
M125: 15.375 | N125: 0.00542739254 | O125: 2.633232283e-07
M126: 15.546875 | N126: 0.005608374402 | O126: 3.251772204e-07
M127: 15.71875 | N127: 0.00579319695 | O127: 4.020945213e-07
M128: 15.890625 | N128: 0.005981820302 | O128: 4.978612288e-07
M129: 16.0625 | N129: 0.006174196639 | O129: 6.17240876e-07
M130: 16.234375 | N130: 0.00637026995 | O130: 7.662322285e-07
M131: 16.40625 | N131: 0.006569975791 | O131: 9.52396116e-07
M132: 16.578125 | N132: 0.006773241056 | O132: 1.185269921e-06
M133: 16.75 | N133: 0.006979983762 | O133: 1.476893365e-06
M134: 16.921875 | N134: 0.007190112853 | O134: 1.842475567e-06
M135: 17.09375 | N135: 0.007403528024 | O135: 2.301241359e-06
M136: 17.265625 | N136: 0.007620119559 | O136: 2.877504924e-06
M137: 17.4375 | N137: 0.0078397682 | O137: 3.602031503e-06
M138: 17.609375 | N138: 0.008062345025 | O138: 4.513763811e-06
M139: 17.78125 | N139: 0.008287711366 | O139: 5.662009673e-06
M140: 17.953125 | N140: 0.008515718745 | O140: 7.109212129e-06
M141: 18.125 | N141: 0.008746208835 | O141: 8.934453915e-06
M142: 18.296875 | N142: 0.008979013458 | O142: 1.12378861e-05
M143: 18.46875 | N143: 0.009213954603 | O143: 1.414631709e-05
M144: 18.640625 | N144: 0.00945084449 | O144: 1.78202547e-05
M145: 18.8125 | N145: 0.009689485648 | O145: 2.246276273e-05
M146: =M145+$E$19 -> 18.984375 | N146: 0.009929671044 | O146: 2.833057495e-05
M147: 19.15625 | N147: =_xlfn.T.DIST((M148-D$4)/D$9,D$10-1,1)-_xlfn.T.DIST((M146-D$4)/D$9,D$10-1,1) -> 0.01017118423 | O147: =_xlfn.T.DIST((M148-D$4)/D$6,D$10-1,1)-_xlfn.T.DIST((M146-D$4)/D$6,D$10-1,1) -> 3.574800725e-05
M148: 19.328125 | N148: 0.01041379956 | O148: 4.512432173e-05
M149: 19.5 | N149: 0.01065728236 | O149: 5.697532789e-05
M150: 19.671875 | N150: 0.01090138927 | O150: 7.195015316e-05
M151: 19.84375 | N151: 0.01114586848 | O151: 9.086427734e-05
M152: 20.015625 | N152: 0.0113904601 | O152: 0.0001147400972
M153: 20.1875 | N153: 0.01163489652 | O153: 0.00014485646
M154: 20.359375 | N154: 0.01187890283 | O154: 0.0001828087657
M155: 20.53125 | N155: 0.01212219727 | O155: 0.0002305813637
M156: 20.703125 | N156: 0.01236449171 | O156: 0.0002906340349
M157: 20.875 | N157: 0.01260549217 | O157: 0.0003660043115
M158: 21.046875 | N158: 0.01284489938 | O158: 0.0004604271895
M159: 21.21875 | N159: 0.01308240935 | O159: 0.0005784733721
M160: 21.390625 | N160: 0.01331771402 | O160: 0.0007257064492
M161: 21.5625 | N161: 0.01355050188 | O161: 0.0009088582876
M162: 21.734375 | N162: 0.01378045868 | O162: 0.001136020254
M163: 21.90625 | N163: 0.0140072681 | O163: 0.001416845624
M164: 22.078125 | N164: 0.01423061251 | O164: 0.001762755524
M165: 22.25 | N165: 0.01445017371 | O165: 0.002187136976
M166: 22.421875 | N166: 0.01466563373 | O166: 0.002705517023
M167: 22.59375 | N167: 0.01487667556 | O167: 0.003335691616
M168: 22.765625 | N168: 0.01508298404 | O168: 0.004097782169
M169: 22.9375 | N169: 0.01528424661 | O169: 0.005014186864
M170: 23.109375 | N170: 0.01548015418 | O170: 0.006109388537
M171: 23.28125 | N171: 0.01567040192 | O171: 0.007409577211
M172: 23.453125 | N172: 0.01585469016 | O172: 0.008942044242
M173: 23.625 | N173: 0.01603272515 | O173: 0.01073430797
M174: 23.796875 | N174: 0.01620421995 | O174: 0.01281293914
M175: 23.96875 | N175: 0.01636889523 | O175: 0.01520206965
M176: 24.140625 | N176: 0.01652648007 | O176: 0.01792159115
M177: 24.3125 | N177: 0.01667671277 | O177: 0.0209850814
M178: 24.484375 | N178: 0.01681934165 | O178: 0.02439753454
M179: 24.65625 | N179: 0.01695412575 | O179: 0.02815301502
M180: 24.828125 | N180: 0.01708083563 | O180: 0.03223239943
M181: 25 | N181: 0.017199254 | O181: 0.03660141019
M182: 25.171875 | N182: 0.01730917647 | O182: 0.04120917389
M183: 25.34375 | N183: 0.01741041213 | O183: 0.04598754589
M184: 25.515625 | N184: 0.01750278417 | O184: 0.05085142697
M185: 25.6875 | N185: 0.01758613043 | O185: 0.05570024983
M186: 25.859375 | N186: 0.01766030394 | O186: 0.06042073454
M187: 26.03125 | N187: 0.01772517336 | O187: 0.06489090342
M188: 26.203125 | N188: 0.0177806234 | O188: 0.06898521813
M189: 26.375 | N189: 0.01782655523 | O189: 0.07258056792
M190: 26.546875 | N190: 0.01786288677 | O190: 0.07556271575
M191: 26.71875 | N191: 0.01788955294 | O191: 0.07783271725
M192: 26.890625 | N192: 0.01790650593 | O192: 0.07931278254
M193: 27.0625 | N193: 0.01791371528 | O193: 0.07995106475
M194: 27.234375 | N194: 0.01791116804 | O194: 0.07972493397
M195: 27.40625 | N195: 0.0178988688 | O195: 0.0786424261
M196: 27.578125 | N196: 0.01787683964 | O196: 0.07674172697
M197: 27.75 | N197: 0.0178451201 | O197: 0.07408874171
M198: 27.921875 | N198: 0.01780376703 | O198: 0.07077298182
M199: 28.09375 | N199: 0.01775285441 | O199: 0.06690215512
M200: 28.265625 | N200: 0.01769247311 | O200: 0.06259594626
M201: 28.4375 | N201: 0.01762273061 | O201: 0.05797951911
M202: 28.609375 | N202: 0.0175437506 | O202: 0.05317725403
... 418 more rows
